Workbook

Sheet DEKOMPOZYCJA RÓŻNIC
H1: DEKOMPOZYCJA RÓŻNIC WDB PER CAPITA
A2: WYBIERZ PONIŻEJ PORÓWNANIE: | H2: dla województw
N3: 2012

Sheet Podkarpackie (hidden)
A1: DEKOMPOZYCJA RÓŻNIC W POZIOMIE WDB PER CAPITA
A2: PODKARPACKIE
B3: Różnice względem średniej | C3: WDB per capita | D3: WDB na 1 pracującego | E3: Współczynnik dojazdów netto | F3: Udział pracujących wśród aktwnych zawodowo | G3: Współczynnik aktywności zawodowej | H3: Wskaźnik różnicy w metodologii BAEL/demo | I3: Wskaźnik struktury wiekowej
C4: WDB_i/N_i | D4: WDB_i/Pp_i | E4: Pp_i/Pz_i | F4: Pz_i/Az_i | G4: Az_i/NB15+_i | H4: NB15+_i/N15+_i*(N15+/NB15+) | I4: Ni15+_i/N_i
B5: 2013
B6: 2012 | C6: =(C21-C36)/C36 -> -30.1% | D6: -27.0% | E6: 2.3% | F6: -3.6% | G6: 0.7% | H6: -2.8% | I6: -0.8%
B7: 2011 | C7: -29.9% | D7: -27.1% | E7: 0.1% | F7: -2.9% | G7: 1.2% | H7: -1.4% | I7: -1.0%
B8: 2010 | C8: -30.4% | D8: -26.8% | E8: -2.7% | F8: -2.4% | G8: 2.4% | H8: -1.2% | I8: -1.2%
B9: 2009 | C9: -29.3% | D9: -25.4% | E9: -6.6% | F9: -2.1% | G9: 3.1% | H9: 1.8% | I9: -1.1%
B10: 2008 | C10: -28.4% | D10: -25.4% | E10: -4.4% | F10: -1.2% | G10: 0.9% | H10: 2.1% | I10: -1.4%
B11: 2007 | C11: -29.5% | D11: -26.8% | E11: -2.1% | F11: 0.1% | G11: 1.4% | H11: -1.5% | I11: -1.6%
B12: 2006 | C12: -28.5% | D12: -26.2% | E12: -0.8% | F12: 0.4% | G12: -0.0% | H12: -0.9% | I12: -1.9%
B13: 2005 | C13: -27.9% | D13: -25.8% | E13: 1.0% | F13: 1.1% | G13: -1.1% | H13: -1.6% | I13: -2.2%
B14: 2004 | C14: -27.3% | D14: -25.8% | E14: 1.0% | F14: 2.8% | G14: -1.7% | H14: -1.7% | I14: -2.5%
B15: 2003 | C15: -25.3% | D15: -23.9% | E15: -4.5% | F15: 2.3% | G15: 2.4% | H15: 0.7% | I15: -2.7%
B16: 2002 | C16: -25.9% | D16: -24.1% | E16: -1.9% | F16: 2.3% | G16: 3.7% | H16: -3.4% | I16: -3.0%
B18: Wskaźniki | C18: WDB per capita | D18: WDB na 1 pracującego | E18: Współczynnik dojazdów netto | F18: Udział pracujących wśród aktwnych zawodowo | G18: Współczynnik aktywności zawodowej | H18: Wskaźnik różnicy w metodologii BAEL/demo | I18: Wskaźnik struktury wiekowej
C19: WDB_i/N_i | D19: WDB_i/Pp_i | E19: Pp_i/Pz_i | F19: Pz_i/Az_i | G19: Az_i/NB15+_i | H19: NB15+_i/N15+_i | I19: Ni15+_i/N_i
B20: 2013
B21: 2012 | C21: 25,980.41 | D21: 75,205.00 | E21: 0.91 | F21: 0.87 | G21: 0.56 | H21: 0.92 | I21: 0.84
B22: 2011 | C22: 24,836.91 | D22: 71,432.25 | E22: 0.90 | F22: 0.88 | G22: 0.56 | H22: 0.93 | I22: 0.84
B23: 2010 | C23: 22,853.94 | D23: 67,010.19 | E23: 0.87 | F23: 0.88 | G23: 0.57 | H23: 0.94 | I23: 0.84
B24: 2009 | C24: 22,410.09 | D24: 64,177.04 | E24: 0.83 | F24: 0.90 | G24: 0.57 | H24: 0.99 | I24: 0.84
B25: 2008 | C25: 20,946.47 | D25: 58,729.21 | E25: 0.86 | F25: 0.92 | G25: 0.55 | H25: 0.99 | I25: 0.84
B26: 2007 | C26: 19,149.51 | D26: 55,639.73 | E26: 0.87 | F26: 0.90 | G26: 0.54 | H26: 0.96 | I26: 0.83
B27: 2006 | C27: 17,488.38 | D27: 52,263.25 | E27: 0.90 | F27: 0.87 | G27: 0.54 | H27: 0.97 | I27: 0.83
B28: 2005 | C28: 16,335.89 | D28: 49,270.91 | E28: 0.93 | F28: 0.83 | G28: 0.54 | H28: 0.96 | I28: 0.82
B29: 2004 | C29: 15,598.37 | D29: 47,124.77 | E29: 0.94 | F29: 0.83 | G29: 0.54 | H29: 0.96 | I29: 0.81
B30: 2003 | C30: 14,571.00 | D30: 43,780.27 | E30: 0.91 | F30: 0.82 | G30: 0.56 | H30: 0.99 | I30: 0.81
B31: 2002 | C31: 13,869.03 | D31: 41,699.73 | E31: 0.93 | F31: 0.82 | G31: 0.57 | H31: 0.96 | I31: 0.80
B33: Wskaźniki dla Polski | C33: WDB per capita | D33: WDB na 1 pracującego | E33: Współczynnik dojazdów netto | F33: Udział pracujących wśród aktwnych zawodowo | G33: Współczynnik aktywności zawodowej | H33: Wskaźnik różnicy w metodologii BAEL/demo | I33: Wskaźnik struktury wiekowej
C34: WDB/N | D34: WDB/Pp | E34: Pp/Pz | F34: Pz/Az | G34: Az/NB15+ | H34: NB15+/N15+ | I34: Ni15+/N
B35: 2013
B36: 2012 | C36: 37,159.37 | D36: 103,021.84 | E36: 0.89 | F36: 0.90 | G36: 0.56 | H36: 0.95 | I36: 0.85
B37: 2011 | C37: 35,435.31 | D37: 97,927.91 | E37: 0.90 | F37: 0.90 | G37: 0.56 | H37: 0.95 | I37: 0.85
B38: 2010 | C38: 32,855.16 | D38: 91,511.90 | E38: 0.89 | F38: 0.90 | G38: 0.55 | H38: 0.95 | I38: 0.85
B39: 2009 | C39: 31,695.72 | D39: 86,036.76 | E39: 0.89 | F39: 0.92 | G39: 0.55 | H39: 0.97 | I39: 0.85
B40: 2008 | C40: 29,239.45 | D40: 78,678.78 | E40: 0.90 | F40: 0.93 | G40: 0.54 | H40: 0.97 | I40: 0.85
B41: 2007 | C41: 27,171.37 | D41: 76,006.04 | E41: 0.89 | F41: 0.90 | G41: 0.54 | H41: 0.97 | I41: 0.85
B42: 2006 | C42: 24,472.19 | D42: 70,835.16 | E42: 0.90 | F42: 0.86 | G42: 0.54 | H42: 0.98 | I42: 0.84
B43: 2005 | C43: 22,664.20 | D43: 66,423.05 | E43: 0.92 | F43: 0.82 | G43: 0.55 | H43: 0.98 | I43: 0.84
B44: 2004 | C44: 21,469.94 | D44: 63,501.40 | E44: 0.94 | F44: 0.81 | G44: 0.55 | H44: 0.98 | I44: 0.83
B45: 2003 | C45: 19,513.04 | D45: 57,522.26 | E45: 0.95 | F45: 0.80 | G45: 0.55 | H45: 0.98 | I45: 0.83
B46: 2002 | C46: 18,707.36 | D46: 54,906.64 | E46: 0.94 | F46: 0.80 | G46: 0.55 | H46: 0.99 | I46: 0.82

Sheet odwolania (hidden)
B1: wybierz: | C1: województwo | D1: rok
B2: różnice | C2: Łódzkie | D2: 2012
B3: dekompozycje różnic | C3: Mazowieckie | D3: 2011
C4: Małopolskie | D4: 2010
C5: Śląskie | D5: 2009
C6: Lubelskie | D6: 2008
C7: Podkarpackie | D7: 2007
C8: Podlaskie | D8: 2006
C9: Świętokrzyskie | D9: 2005
C10: Lubuskie | D10: 2004
C11: Wielkopolskie | D11: 2003
C12: Zachodniopomorskie | D12: 2002
C13: Dolnośląskie
C14: Opolskie
C15: Kujawsko-Pomorskie
C16: Pomorskie
C17: Warmińsko-Mazurskie

Sheet 2013 (hidden)
A1: DEKOMPOZYCJA RÓŻNIC W POZIOMIE WDB PER CAPITA
A2: 2013
B3: Różnice względem średniej | C3: WDB per capita | D3: WDB na 1 pracującego | E3: Współczynnik dojazdów netto | F3: Udział pracujących wśród aktwnych zawodowo | G3: Współczynnik aktywności zawodowej | H3: Wskaźnik różnicy w metodologii BAEL/demo | I3: Wskaźnik struktury wiekowej
C4: WDB_i/N_i | D4: WDB_i/Pp_i | E4: Pp_i/Pz_i | F4: Pz_i/Az_i | G4: Az_i/NB15+_i | H4: NB15+_i/N15+_i*(N15+/NB15+) | I4: Ni15+_i/N_i
B5: ŁÓDZKIE | C5: =(C24-C$40)/C$40 ->  | D5: =(D24-D$40)/D$40 ->  | F5: =(F24-F$40)/F$40 ->  | G5: =(G24-G$40)/G$40 -> 
B6: MAZOWIECKIE | C6: =(C25-C$40)/C$40 -> 
B7: MAŁOPOLSKIE
B8: ŚLĄSKIE
B9: LUBELSKIE
B10: PODKARPACKIE
B11: PODLASKIE
B12: ŚWIĘTOKRZYSKIE
B13: LUBUSKIE
B14: WIELKOPOLSKIE
B15: ZACHODNIOPOMORSKIE
B16: DOLNOŚLĄSKIE
B17: OPOLSKIE
B18: KUJAWSKO-POMORSKIE
B19: POMORSKIE
B20: WARMIŃSKO-MAZURSKIE
B22: Wartości | C22: WDB per capita | D22: WDB na 1 pracującego | E22: Współczynnik dojazdów netto | F22: Udział pracujących wśród aktwnych zawodowo | G22: Współczynnik aktywności zawodowej | H22: Wskaźnik różnicy w metodologii BAEL/demo | I22: Wskaźnik struktury wiekowej
C23: WDB_i/N_i | D23: WDB_i/Pp_i | E23: Pp_i/Pz_i | F23: Pz_i/Az_i | G23: Az_i/NB15+_i | H23: NB15+_i/N15+_i*(N15+/NB15+) | I23: Ni15+_i/N_i
B24: ŁÓDZKIE
B25: MAZOWIECKIE
B26: MAŁOPOLSKIE
B27: ŚLĄSKIE
B28: LUBELSKIE
B29: PODKARPACKIE
B30: PODLASKIE
B31: ŚWIĘTOKRZYSKIE
B32: LUBUSKIE
B33: WIELKOPOLSKIE
B34: ZACHODNIOPOMORSKIE
B35: DOLNOŚLĄSKIE
B36: OPOLSKIE
B37: KUJAWSKO-POMORSKIE
B38: POMORSKIE
B39: WARMIŃSKO-MAZURSKIE
B40: POLSKA
B42: Dane | C42: WDB_i | D42: PP_i | E42: PZ_i | F42: AZ_i | G42: NB15+_i | H42: N15+_i | I42: N_i
B43: ŁÓDZKIE
B44: MAZOWIECKIE
B45: MAŁOPOLSKIE
B46: ŚLĄSKIE
B47: LUBELSKIE
B48: PODKARPACKIE
B49: PODLASKIE
B50: ŚWIĘTOKRZYSKIE
B51: LUBUSKIE
B52: WIELKOPOLSKIE
B53: ZACHODNIOPOMORSKIE
B54: DOLNOŚLĄSKIE
B55: OPOLSKIE
B56: KUJAWSKO-POMORSKIE
B57: POMORSKIE
B58: WARMIŃSKO-MAZURSKIE
B59: POLSKA

Sheet 2012 (hidden)
A1: DEKOMPOZYCJA RÓŻNIC W POZIOMIE WDB PER CAPITA
A2: 2012
B3: Różnice względem średniej | C3: WDB per capita | D3: WDB na 1 pracującego | E3: Współczynnik dojazdów netto | F3: Udział pracujących wśród aktwnych zawodowo | G3: Współczynnik aktywności zawodowej | H3: Wskaźnik różnicy w metodologii BAEL/demo | I3: Wskaźnik struktury wiekowej | J3: Interakcje
C4: WDB_i/N_i | D4: WDB_i/Pp_i | E4: Pp_i/Pz_i | F4: Pz_i/Az_i | G4: Az_i/NB15+_i | H4: NB15+_i/N15+_i | I4: Ni15+_i/N_i
B5: ŁÓDZKIE | C5: =(C24-C$40)/C$40 -> -6.7% | D5: =(D24-D$40)/D$40 -> -9.4% | E5: =(E24-E$40)/E$40 -> -11.8% | F5: =(F24-F$40)/F$40 -> -1.0% | G5: =(G24-G$40)/G$40 -> 1.2% | H5: =(H24-H$40)/H$40 -> 15.1% | I5: =(I24-I$40)/I$40 -> 1.3% | J5: =C5-SUM(D5:I5) -> -2.1%
B6: MAZOWIECKIE | C6: =(C25-C$40)/C$40 -> 58.9% | D6: =(D25-D$40)/D$40 -> 30.8% | E6: 6.4% | F6: 2.3% | G6: 7.8% | H6: 4.0% | I6: -0.5% | J6: =C6-SUM(D6:I6) -> 8.1%
B7: MAŁOPOLSKIE | C7: -12.0% | D7: -12.9% | E7: 5.7% | F7: -0.4% | G7: -1.0% | H7: -2.0% | I7: -1.0% | J7: -0.3%
B8: ŚLĄSKIE | C8: 5.9% | D8: 6.5% | E8: -2.6% | F8: 0.8% | G8: -4.4% | H8: 4.6% | I8: 1.3% | J8: -0.3%
B9: LUBELSKIE | C9: -29.6% | D9: -27.5% | E9: -10.2% | F9: -0.5% | G9: 1.2% | H9: 7.3% | I9: -0.0% | J9: 0.0%
B10: PODKARPACKIE | C10: -30.1% | D10: -27.0% | E10: 2.3% | F10: -3.6% | G10: 0.8% | H10: -2.8% | I10: -0.8% | J10: 1.1%
B11: PODLASKIE | C11: -28.3% | D11: -21.5% | E11: -3.4% | F11: 1.1% | G11: -0.3% | H11: -6.5% | I11: 0.4% | J11: 2.0%
B12: ŚWIĘTOKRZYSKIE | C12: -24.9% | D12: -23.4% | E12: -13.5% | F12: -3.5% | G12: 2.4% | H12: 13.4% | I12: 1.0% | J12: -1.4%
B13: LUBUSKIE | C13: -16.9% | D13: -5.4% | E13: -10.1% | F13: 1.0% | G13: -3.8% | H13: 1.0% | I13: -0.3% | J13: 0.8%
B14: WIELKOPOLSKIE | C14: 6.2% | D14: -3.2% | E14: 12.0% | F14: 1.7% | G14: 2.5% | H14: -4.9% | I14: -1.2% | J14: -0.7%
B15: ZACHODNIOPOMORSKIE | C15: -15.7% | D15: 0.6% | E15: 3.8% | F15: -0.9% | G15: -6.6% | H15: -13.3% | I15: 0.5% | J15: 0.1%
B16: DOLNOŚLĄSKIE | C16: 13.2% | D16: 16.3% | E16: 5.6% | F16: -1.2% | G16: -3.7% | H16: -4.3% | I16: 1.3% | J16: -0.7%
B17: OPOLSKIE | C17: -19.0% | D17: -4.6% | E17: -3.9% | F17: 0.6% | G17: -2.7% | H17: -11.5% | I17: 2.0% | J17: 1.1%
B18: KUJAWSKO-POMORSKIE | C18: -18.6% | D18: -10.7% | E18: -2.2% | F18: -2.0% | G18: 0.8% | H18: -5.2% | I18: -0.3% | J18: 1.2%
B19: POMORSKIE | C19: -2.3% | D19: 6.7% | E19: -1.2% | F19: 0.6% | G19: -0.6% | H19: -5.8% | I19: -1.5% | J19: -0.4%
B20: WARMIŃSKO-MAZURSKIE | C20: -28.2% | D20: -11.8% | E20: -5.4% | F20: -1.3% | G20: -7.8% | H20: -4.7% | I20: -0.8% | J20: 3.6%
B22: Wartości | C22: WDB per capita | D22: WDB na 1 pracującego | E22: Współczynnik dojazdów netto | F22: Udział pracujących wśród aktwnych zawodowo | G22: Współczynnik aktywności zawodowej | H22: Wskaźnik różnicy w metodologii BAEL/demo | I22: Wskaźnik struktury wiekowej | J22: Weryfikacja
C23: WDB_i/N_i | D23: WDB_i/Pp_i | E23: Pp_i/Pz_i | F23: Pz_i/Az_i | G23: Az_i/NB15+_i | H23: NB15+_i/N15+_i | I23: Ni15+_i/N_i
B24: ŁÓDZKIE | C24: =C43/I43*1000000 -> 34,684.00 | D24: =C43/D43*1000000 -> 93,385.62 | E24: =D43/E43/1000 -> 0.79 | F24: =E43/F43 -> 0.89 | G24: =F43/G43 -> 0.57 | H24: =G43/H43*1000 -> 1.09 | I24: =H43/I43 -> 0.86 | J24: =IF(PRODUCT(D24:I24)-C24<0.0001,"prawidłowo","nieprawidłowo") -> prawidłowo
B25: MAZOWIECKIE | C25: =C44/I44*1000000 -> 59,057.37 | D25: =C44/D44*1000000 -> 134,768.51 | E25: =D44/E44/1000 -> 0.95 | F25: =E44/F44 -> 0.92 | G25: 0.60 | H25: =G44/H44*1000 -> 0.99 | I25: =H44/I44 -> 0.85 | J25: prawidłowo
B26: MAŁOPOLSKIE | C26: 32,715.11 | D26: 89,708.08 | E26: 0.94 | F26: 0.90 | G26: 0.55 | H26: 0.93 | I26: 0.84 | J26: prawidłowo
B27: ŚLĄSKIE | C27: 39,358.99 | D27: 109,698.30 | E27: 0.87 | F27: 0.91 | G27: 0.53 | H27: 0.99 | I27: 0.86 | J27: prawidłowo
B28: LUBELSKIE | C28: 26,157.49 | D28: 74,709.04 | E28: 0.80 | F28: 0.90 | G28: 0.57 | H28: 1.02 | I28: 0.85 | J28: prawidłowo
B29: PODKARPACKIE | C29: 25,980.41 | D29: 75,205.00 | E29: 0.91 | F29: 0.87 | G29: 0.56 | H29: 0.92 | I29: 0.84 | J29: prawidłowo
B30: PODLASKIE | C30: 26,655.77 | D30: 80,843.15 | E30: 0.86 | F30: 0.91 | G30: 0.56 | H30: 0.89 | I30: 0.85 | J30: prawidłowo
B31: ŚWIĘTOKRZYSKIE | C31: 27,909.06 | D31: 78,930.22 | E31: 0.77 | F31: 0.87 | G31: 0.57 | H31: 1.08 | I31: 0.86 | J31: prawidłowo
B32: LUBUSKIE | C32: 30,884.86 | D32: 97,426.30 | E32: 0.80 | F32: 0.91 | G32: 0.54 | H32: 0.96 | I32: 0.85 | J32: prawidłowo
B33: WIELKOPOLSKIE | C33: 39,454.15 | D33: 99,696.55 | E33: 1.00 | F33: 0.91 | G33: 0.57 | H33: 0.90 | I33: 0.84 | J33: prawidłowo
B34: ZACHODNIOPOMORSKIE | C34: 31,323.25 | D34: 103,665.68 | E34: 0.93 | F34: 0.89 | G34: 0.52 | H34: 0.82 | I34: 0.85 | J34: prawidłowo
B35: DOLNOŚLĄSKIE | C35: 42,049.68 | D35: 119,773.63 | E35: 0.94 | F35: 0.89 | G35: 0.54 | H35: 0.91 | I35: 0.86 | J35: prawidłowo
B36: OPOLSKIE | C36: 30,090.98 | D36: 98,318.22 | E36: 0.86 | F36: 0.90 | G36: 0.54 | H36: 0.84 | I36: 0.87 | J36: prawidłowo
B37: KUJAWSKO-POMORSKIE | C37: 30,233.68 | D37: 91,954.46 | E37: 0.87 | F37: 0.88 | G37: 0.56 | H37: 0.90 | I37: 0.85 | J37: prawidłowo
B38: POMORSKIE | C38: 36,317.67 | D38: 109,930.80 | E38: 0.88 | F38: 0.90 | G38: 0.56 | H38: 0.89 | I38: 0.84 | J38: prawidłowo
B39: WARMIŃSKO-MAZURSKIE | C39: 26,663.73 | D39: 90,841.15 | E39: 0.84 | F39: 0.89 | G39: 0.51 | H39: 0.90 | I39: 0.84 | J39: prawidłowo
B40: POLSKA | C40: 37,159.34 | D40: 103,022.34 | E40: 0.89 | F40: 0.90 | G40: 0.56 | H40: 0.95 | I40: 0.85 | J40: =IF(PRODUCT(D40:I40)-C40<0.0001,"prawidłowo","nieprawidłowo") -> prawidłowo
B42: Dane | C42: WDB_i | D42: PP_i | E42: PZ_i | F42: AZ_i | G42: NB15+_i | H42: N15+_i | I42: N_i
B43: ŁÓDZKIE | C43: 87565 | D43: 937671.1763 | E43: 1193 | F43: 1340 | G43: 2371 | H43: 2171813 | I43: 2524651
B44: MAZOWIECKIE | C44: 313108 | D44: 2323302.389 | E44: 2450 | F44: 2663 | G44: 4420 | H44: 4482168 | I44: 5301760
B45: MAŁOPOLSKIE | C45: 109729 | D45: 1223178.498 | E45: 1298 | F45: 1449 | G45: 2620 | H45: 2820670 | I45: 3354077
B46: ŚLĄSKIE | C46: 181676 | D46: 1656142.297 | E46: 1907 | F46: 2105 | G46: 3940 | H46: 3971922 | I46: 4615870
B47: LUBELSKIE | C47: 56648 | D47: 758248.2794 | E47: 947 | F47: 1058 | G47: 1871 | H47: 1839507 | I47: 2165651
B48: PODKARPACKIE | C48: 55337 | D48: 735815.4823 | E48: 807 | F48: 931 | G48: 1654 | H48: 1794597 | I48: 2129951
B49: PODLASKIE | C49: 31952 | D49: 395234.4767 | E49: 459 | F49: 505 | G49: 907 | H49: 1022734 | I49: 1198690
B50: ŚWIĘTOKRZYSKIE | C50: 35556 | D50: 450473.8507 | E50: 584 | F50: 673 | G50: 1176 | H50: 1093487 | I50: 1273995
B51: LUBUSKIE | C51: 31605 | D51: 324399.0462 | E51: 405 | F51: 446 | G51: 830 | H51: 866999 | I51: 1023317
B52: WIELKOPOLSKIE | C52: 136598 | D52: 1370137.656 | E52: 1372 | F52: 1500 | G52: 2619 | H52: 2906029 | I52: 3462196
B53: ZACHODNIOPOMORSKIE | C53: 53920 | D53: 520133.5863 | E53: 562 | F53: 631 | G53: 1209 | H53: 1470003 | I53: 1721405
B54: DOLNOŚLĄSKIE | C54: 122548 | D54: 1023163.433 | E54: 1087 | F54: 1224 | G54: 2274 | H54: 2507043 | I54: 2914362
B55: OPOLSKIE | C55: 30398 | D55: 309179.7299 | E55: 361 | F55: 399 | G55: 734 | H55: 875084 | I55: 1010203
B56: KUJAWSKO-POMORSKIE | C56: 63382 | D56: 689275.9945 | E56: 791 | F56: 898 | G56: 1595 | H56: 1775475 | I56: 2096404
B57: POMORSKIE | C57: 83170 | D57: 756566.8257 | E57: 859 | F57: 950 | G57: 1711 | H57: 1916115 | I57: 2290070
B58: WARMIŃSKO-MAZURSKIE | C58: 38681 | D58: 425809.2406 | E58: 505 | F58: 569 | G58: 1105 | H58: 1223039 | I58: 1450697
B59: POLSKA | C59: 1431872 | D59: 13898654.86 | E59: 15591 | F59: 17340 | G59: 31038 | H59: 32736685 | I59: 38533299

Sheet 2011 (hidden)
A1: DEKOMPOZYCJA RÓŻNIC W POZIOMIE WDB PER CAPITA
A2: 2011
B3: Różnice względem średniej | C3: WDB per capita | D3: WDB na 1 pracującego | E3: Współczynnik dojazdów netto | F3: Udział pracujących wśród aktwnych zawodowo | G3: Współczynnik aktywności zawodowej | H3: Wskaźnik różnicy w metodologii BAEL/demo | I3: Wskaźnik struktury wiekowej | J3: Interakcje
C4: WDB_i/N_i | D4: WDB_i/Pp_i | E4: Pp_i/Pz_i | F4: Pz_i/Az_i | G4: Az_i/NB15+_i | H4: NB15+_i/N15+_i | I4: Ni15+_i/N_i
B5: ŁÓDZKIE | C5: =(C24-C$40)/C$40 -> -7.1% | D5: -10.5% | E5: -13.6% | F5: 0.4% | G5: 2.4% | H5: 15.4% | I5: 1.3% | J5: =C5-SUM(D5:I5) -> -2.5%
B6: MAZOWIECKIE | C6: 57.9% | D6: 31.0% | E6: 6.9% | F6: 2.0% | G6: 7.2% | H6: 3.5% | I6: -0.3% | J6: =C6-SUM(D6:I6) -> 7.7%
B7: MAŁOPOLSKIE | C7: -11.4% | D7: -11.9% | E7: 5.4% | F7: 0.4% | G7: -0.5% | H7: -3.4% | I7: -1.0% | J7: -0.3%
B8: ŚLĄSKIE | C8: 7.5% | D8: 8.2% | E8: -2.4% | F8: 0.4% | G8: -4.1% | H8: 4.3% | I8: 1.4% | J8: -0.3%
B9: LUBELSKIE | C9: -30.2% | D9: -28.3% | E9: -12.0% | F9: -0.7% | G9: 2.0% | H9: 9.4% | I9: -0.1% | J9: -0.4%
B10: PODKARPACKIE | C10: -29.9% | D10: -27.1% | E10: 0.1% | F10: -2.9% | G10: 1.2% | H10: -1.4% | I10: -1.0% | J10: 1.1%
B11: PODLASKIE | C11: -26.9% | D11: -20.3% | E11: -6.4% | F11: 0.5% | G11: -0.9% | H11: -1.9% | I11: 0.3% | J11: 1.8%
B12: ŚWIĘTOKRZYSKIE | C12: -23.6% | D12: -22.6% | E12: -15.2% | F12: -3.6% | G12: 2.7% | H12: 16.6% | I12: 0.9% | J12: -2.3%
B13: LUBUSKIE | C13: -16.8% | D13: -6.2% | E13: -12.5% | F13: -0.1% | G13: -1.5% | H13: 3.3% | I13: -0.3% | J13: 0.5%
B14: WIELKOPOLSKIE | C14: 5.1% | D14: -3.6% | E14: 11.6% | F14: 1.1% | G14: 3.2% | H14: -5.2% | I14: -1.2% | J14: -0.8%
B15: ZACHODNIOPOMORSKIE | C15: =(C34-C$40)/C$40 -> -15.9% | D15: -0.3% | E15: 7.3% | F15: -2.2% | G15: -7.7% | H15: -13.3% | I15: 0.5% | J15: -0.2%
B16: DOLNOŚLĄSKIE | C16: 14.0% | D16: 17.4% | E16: 4.4% | F16: -1.1% | G16: -3.9% | H16: -3.4% | I16: 1.3% | J16: -0.7%
B17: OPOLSKIE | C17: -18.0% | D17: -4.1% | E17: -2.6% | F17: 0.1% | G17: -3.7% | H17: -10.7% | I17: 1.9% | J17: 1.0%
B18: KUJAWSKO-POMORSKIE | C18: -18.2% | D18: -10.8% | E18: 1.9% | F18: -1.5% | G18: -2.4% | H18: -6.1% | I18: -0.4% | J18: 1.0%
B19: POMORSKIE | C19: -4.2% | D19: 3.7% | E19: 6.9% | F19: 1.3% | G19: -1.9% | H19: -11.6% | I19: -1.5% | J19: -1.0%
B20: WARMIŃSKO-MAZURSKIE | C20: -27.8% | D20: -12.0% | E20: -7.6% | F20: -0.1% | G20: -6.9% | H20: -3.6% | I20: -0.9% | J20: 3.4%
B22: Wartości | C22: WDB per capita | D22: WDB na 1 pracującego | E22: Współczynnik dojazdów netto | F22: Udział pracujących wśród aktwnych zawodowo | G22: Współczynnik aktywności zawodowej | H22: Wskaźnik różnicy w metodologii BAEL/demo | I22: Wskaźnik struktury wiekowej | J22: Weryfikacja
C23: WDB_i/N_i | D23: WDB_i/Pp_i | E23: Pp_i/Pz_i | F23: Pz_i/Az_i | G23: Az_i/NB15+_i | H23: NB15+_i/N15+_i | I23: Ni15+_i/N_i
B24: ŁÓDZKIE | C24: =C43/I43*1000000 -> 32,911.80 | D24: =C43/D43*1000000 -> 87,608.58 | E24: =D43/E43/1000 -> 0.77 | F24: =E43/F43 -> 0.91 | G24: =F43/G43 -> 0.57 | H24: =G43/H43*1000 -> 1.09 | I24: =H43/I43 -> 0.86 | J24: =IF(PRODUCT(D24:I24)-C24<0.0001,"prawidłowo","nieprawidłowo") -> prawidłowo
B25: MAZOWIECKIE | C25: =C44/I44*1000000 -> 55,939.49 | D25: =C44/D44*1000000 -> 128,319.81 | E25: =D44/E44/1000 -> 0.96 | F25: =E44/F44 -> 0.92 | G25: 0.60 | H25: =G44/H44*1000 -> 0.98 | I25: =H44/I44 -> 0.85 | J25: prawidłowo
B26: MAŁOPOLSKIE | C26: 31,396.30 | D26: 86,245.43 | E26: 0.94 | F26: 0.91 | G26: 0.55 | H26: 0.92 | I26: 0.84 | J26: prawidłowo
B27: ŚLĄSKIE | C27: 38,089.15 | D27: 105,913.87 | E27: 0.87 | F27: 0.91 | G27: 0.53 | H27: 0.99 | I27: 0.86 | J27: prawidłowo
B28: LUBELSKIE | C28: 24,735.97 | D28: 70,243.31 | E28: 0.79 | F28: 0.90 | G28: 0.57 | H28: 1.04 | I28: 0.85 | J28: prawidłowo
B29: PODKARPACKIE | C29: 24,836.91 | D29: 71,432.25 | E29: 0.90 | F29: 0.88 | G29: 0.56 | H29: 0.93 | I29: 0.84 | J29: prawidłowo
B30: PODLASKIE | C30: 25,910.46 | D30: 78,091.53 | E30: 0.84 | F30: 0.91 | G30: 0.55 | H30: 0.93 | I30: 0.85 | J30: prawidłowo
B31: ŚWIĘTOKRZYSKIE | C31: 27,065.62 | D31: 75,784.49 | E31: 0.76 | F31: 0.87 | G31: 0.57 | H31: 1.10 | I31: 0.86 | J31: prawidłowo
B32: LUBUSKIE | C32: 29,497.89 | D32: 91,862.06 | E32: 0.78 | F32: 0.90 | G32: 0.55 | H32: 0.98 | I32: 0.85 | J32: prawidłowo
B33: WIELKOPOLSKIE | C33: 37,238.27 | D33: 94,377.63 | E33: 1.00 | F33: 0.91 | G33: 0.57 | H33: 0.90 | I33: 0.84 | J33: prawidłowo
B34: ZACHODNIOPOMORSKIE | C34: 29,814.15 | D34: 97,613.76 | E34: 0.96 | F34: 0.88 | G34: 0.51 | H34: 0.82 | I34: 0.85 | J34: prawidłowo
B35: DOLNOŚLĄSKIE | C35: 40,398.04 | D35: 114,943.99 | E35: 0.94 | F35: 0.89 | G35: 0.53 | H35: 0.92 | I35: 0.86 | J35: prawidłowo
B36: OPOLSKIE | C36: 29,041.87 | D36: 93,931.24 | E36: 0.87 | F36: 0.90 | G36: 0.54 | H36: 0.85 | I36: 0.87 | J36: prawidłowo
B37: KUJAWSKO-POMORSKIE | C37: 28,981.07 | D37: 87,381.51 | E37: 0.91 | F37: 0.89 | G37: 0.54 | H37: 0.89 | I37: 0.85 | J37: prawidłowo
B38: POMORSKIE | C38: 33,945.26 | D38: 101,555.79 | E38: 0.96 | F38: 0.92 | G38: 0.54 | H38: 0.84 | I38: 0.84 | J38: prawidłowo
B39: WARMIŃSKO-MAZURSKIE | C39: 25,572.15 | D39: 86,134.74 | E39: 0.83 | F39: 0.90 | G39: 0.52 | H39: 0.91 | I39: 0.84 | J39: prawidłowo
B40: POLSKA | C40: 35,435.31 | D40: 97,928.03 | E40: 0.90 | F40: 0.90 | G40: 0.56 | H40: 0.95 | I40: 0.85 | J40: =IF(PRODUCT(D40:I40)-C40<0.0001,"prawidłowo","nieprawidłowo") -> prawidłowo
B42: Dane | C42: WDB_i | D42: PP_i | E42: PZ_i | F42: AZ_i | G42: NB15+_i | H42: N15+_i | I42: N_i
B43: ŁÓDZKIE | C43: 83388 | D43: 951824.6229 | E43: 1229 | F43: 1355 | G43: 2382 | H43: 2179170 | I43: 2533681
B44: MAZOWIECKIE | C44: 295674 | D44: 2304196.116 | E44: 2406 | F44: 2610 | G44: 4385 | H44: 4472170 | I44: 5285604
B45: MAŁOPOLSKIE | C45: 105077 | D45: 1218348.553 | E45: 1290 | F45: 1422 | G45: 2573 | H45: 2811858 | I45: 3346796
B46: ŚLĄSKIE | C46: 176214 | D46: 1663748.068 | E46: 1902 | F46: 2096 | G46: 3934 | H46: 3981751 | I46: 4626357
B47: LUBELSKIE | C47: 53723 | D47: 764813.0307 | E47: 970 | F47: 1081 | G47: 1908 | H47: 1841440 | I47: 2171857
B48: PODKARPACKIE | C48: 52870 | D48: 740141.8963 | E48: 825 | F48: 940 | G48: 1672 | H48: 1788801 | I48: 2128687
B49: PODLASKIE | C49: 31118 | D49: 398481.1363 | E49: 475 | F49: 523 | G49: 950 | H49: 1022371 | I49: 1200982
B50: ŚWIĘTOKRZYSKIE | C50: 34593 | D50: 456465.4221 | E50: 601 | F50: 690 | G50: 1210 | H50: 1095142 | I50: 1278116
B51: LUBUSKIE | C51: 30181 | D51: 328546.9688 | E51: 419 | F51: 464 | G51: 848 | H51: 866199 | I51: 1023158
B52: WIELKOPOLSKIE | C52: 128676 | D52: 1363416.324 | E52: 1363 | F52: 1492 | G52: 2603 | H52: 2899124 | I52: 3455477
B53: ZACHODNIOPOMORSKIE | C53: 51362 | D53: 526175.8442 | E53: 547 | F53: 619 | G53: 1207 | H53: 1469312 | I53: 1722739
B54: DOLNOŚLĄSKIE | C54: 117824 | D54: 1025055.764 | E54: 1096 | F54: 1226 | G54: 2297 | H54: 2508267 | I54: 2916577
B55: OPOLSKIE | C55: 29447 | D55: 313495.2883 | E55: 359 | F55: 397 | G55: 742 | H55: 877244 | I55: 1013950
B56: KUJAWSKO-POMORSKIE | C56: 60813 | D56: 695948.1724 | E56: 762 | F56: 856 | G56: 1579 | H56: 1774738 | I56: 2098370
B57: POMORSKIE | C57: 77514 | D57: 763265.1893 | E57: 797 | F57: 871 | G57: 1599 | H57: 1909580 | I57: 2283500
B58: WARMIŃSKO-MAZURSKIE | C58: 37146 | D58: 431254.5651 | E58: 521 | F58: 577 | G58: 1116 | H58: 1222303 | I58: 1452596
B59: POLSKA | C59: 1365622 | D59: 13945159.47 | E59: 15562 | F59: 17220 | G59: 31003 | H59: 32719470 | I59: 38538447

Sheet 2010 (hidden)
A1: DEKOMPOZYCJA RÓŻNIC W POZIOMIE WDB PER CAPITA
A2: 2010
B3: Różnice względem średniej | C3: WDB per capita | D3: WDB na 1 pracującego | E3: Współczynnik dojazdów netto | F3: Udział pracujących wśród aktwnych zawodowo | G3: Współczynnik aktywności zawodowej | H3: Wskaźnik różnicy w metodologii BAEL/demo | I3: Wskaźnik struktury wiekowej | J3: Interakcje
C4: WDB_i/N_i | D4: WDB_i/Pp_i | E4: Pp_i/Pz_i | F4: Pz_i/Az_i | G4: Az_i/NB15+_i | H4: NB15+_i/N15+_i | I4: Ni15+_i/N_i
B5: ŁÓDZKIE | C5: =(C24-C$40)/C$40 -> -7.0% | D5: =(D24-D$40)/D$40 -> -10.8% | E5: =(E24-E$40)/E$40 -> -12.6% | F5: =(F24-F$40)/F$40 -> 0.4% | G5: =(G24-G$40)/G$40 -> 1.8% | H5: =(H24-H$40)/H$40 -> 15.2% | I5: =(I24-I$40)/I$40 -> 1.3% | J5: =C5-SUM(D5:I5) -> -2.3%
B6: MAZOWIECKIE | C6: =(C25-C$40)/C$40 -> 58.4% | D6: 31.1% | E6: 9.8% | F6: 2.5% | G6: 4.9% | H6: 2.6% | I6: -0.2% | J6: =C6-SUM(D6:I6) -> 7.8%
B7: MAŁOPOLSKIE | C7: -12.4% | D7: -12.9% | E7: 7.0% | F7: 0.5% | G7: -1.0% | H7: -4.5% | I7: -1.1% | J7: -0.4%
B8: ŚLĄSKIE | C8: 7.0% | D8: 7.6% | E8: 2.8% | F8: 0.6% | G8: -5.4% | H8: 0.2% | I8: 1.5% | J8: -0.2%
B9: LUBELSKIE | C9: -30.6% | D9: -28.4% | E9: -14.1% | F9: -0.3% | G9: 1.1% | H9: 12.0% | I9: -0.2% | J9: -0.8%
B10: PODKARPACKIE | C10: -30.4% | D10: -26.8% | E10: -2.7% | F10: -2.3% | G10: 2.4% | H10: -1.2% | I10: -1.2% | J10: 1.4%
B11: PODLASKIE | C11: -26.8% | D11: -19.9% | E11: -6.9% | F11: -0.5% | G11: -1.8% | H11: 0.2% | I11: 0.1% | J11: 1.9%
B12: ŚWIĘTOKRZYSKIE | C12: -22.5% | D12: -21.1% | E12: -16.9% | F12: -2.5% | G12: 2.3% | H12: 17.6% | I12: 0.8% | J12: -2.7%
B13: LUBUSKIE | C13: -15.3% | D13: -4.5% | E13: -14.9% | F13: -0.7% | G13: -0.3% | H13: 5.5% | I13: -0.3% | J13: -0.2%
B14: WIELKOPOLSKIE | C14: 5.1% | D14: -3.3% | E14: 11.8% | F14: 1.1% | G14: 4.5% | H14: -6.9% | I14: -1.1% | J14: -0.9%
B15: ZACHODNIOPOMORSKIE | C15: -14.2% | D15: 1.4% | E15: 3.9% | F15: -3.1% | G15: -5.5% | H15: -11.4% | I15: 0.4% | J15: 0.1%
B16: DOLNOŚLĄSKIE | C16: 12.6% | D16: 16.2% | E16: 0.2% | F16: -1.9% | G16: -2.0% | H16: -0.7% | I16: 1.3% | J16: -0.5%
B17: OPOLSKIE | C17: -17.7% | D17: -3.6% | E17: -3.9% | F17: 0.4% | G17: -3.8% | H17: -9.6% | I17: 1.8% | J17: 1.0%
B18: KUJAWSKO-POMORSKIE | C18: -16.9% | D18: -9.6% | E18: -0.4% | F18: -1.3% | G18: -1.7% | H18: -4.4% | I18: -0.5% | J18: 1.0%
B19: POMORSKIE | C19: -4.1% | D19: 2.6% | E19: 6.1% | F19: 0.2% | G19: 0.4% | H19: -11.2% | I19: -1.5% | J19: -0.8%
B20: WARMIŃSKO-MAZURSKIE | C20: -27.3% | D20: -11.6% | E20: -12.5% | F20: -0.1% | G20: -4.3% | H20: -0.7% | I20: -1.0% | J20: 2.9%
B22: Wartości | C22: WDB per capita | D22: WDB na 1 pracującego | E22: Współczynnik dojazdów netto | F22: Udział pracujących wśród aktwnych zawodowo | G22: Współczynnik aktywności zawodowej | H22: Wskaźnik różnicy w metodologii BAEL/demo | I22: Wskaźnik struktury wiekowej | J22: Weryfikacja
C23: WDB_i/N_i | D23: WDB_i/Pp_i | E23: Pp_i/Pz_i | F23: Pz_i/Az_i | G23: Az_i/NB15+_i | H23: NB15+_i/N15+_i | I23: Ni15+_i/N_i
B24: ŁÓDZKIE | C24: =C43/I43*1000000 -> 30,553.77 | D24: =C43/D43*1000000 -> 81,650.02 | E24: =D43/E43/1000 -> 0.78 | F24: =E43/F43 -> 0.91 | G24: =F43/G43 -> 0.56 | H24: =G43/H43*1000 -> 1.09 | I24: =H43/I43 -> 0.86 | J24: =IF(PRODUCT(D24:I24)-C24<0.0001,"prawidłowo","nieprawidłowo") -> prawidłowo
B25: MAZOWIECKIE | C25: =C44/I44*1000000 -> 52,049.41 | D25: =C44/D44*1000000 -> 119,948.03 | E25: =D44/E44/1000 -> 0.98 | F25: =E44/F44 -> 0.93 | G25: 0.58 | H25: =G44/H44*1000 -> 0.97 | I25: =H44/I44 -> 0.85 | J25: =IF(PRODUCT(D25:I25)-C25<0.0001,"prawidłowo","nieprawidłowo") -> prawidłowo
B26: MAŁOPOLSKIE | C26: 28,795.82 | D26: 79,742.61 | E26: 0.96 | F26: 0.91 | G26: 0.55 | H26: 0.90 | I26: 0.84 | J26: prawidłowo
B27: ŚLĄSKIE | C27: 35,146.12 | D27: 98,455.28 | E27: 0.92 | F27: 0.91 | G27: 0.52 | H27: 0.95 | I27: 0.86 | J27: prawidłowo
B28: LUBELSKIE | C28: 22,789.29 | D28: 65,548.77 | E28: 0.77 | F28: 0.90 | G28: 0.56 | H28: 1.06 | I28: 0.85 | J28: prawidłowo
B29: PODKARPACKIE | C29: 22,853.94 | D29: 67,010.19 | E29: 0.87 | F29: 0.88 | G29: 0.57 | H29: 0.94 | I29: 0.84 | J29: prawidłowo
B30: PODLASKIE | C30: 24,049.23 | D30: 73,329.79 | E30: 0.83 | F30: 0.90 | G30: 0.54 | H30: 0.95 | I30: 0.85 | J30: prawidłowo
B31: ŚWIĘTOKRZYSKIE | C31: 25,468.09 | D31: 72,220.42 | E31: 0.74 | F31: 0.88 | G31: 0.57 | H31: 1.11 | I31: 0.85 | J31: prawidłowo
B32: LUBUSKIE | C32: 27,827.00 | D32: 87,417.78 | E32: 0.76 | F32: 0.90 | G32: 0.55 | H32: 1.00 | I32: 0.85 | J32: prawidłowo
B33: WIELKOPOLSKIE | C33: 34,526.78 | D33: 88,469.70 | E33: 1.00 | F33: 0.91 | G33: 0.58 | H33: 0.88 | I33: 0.84 | J33: prawidłowo
B34: ZACHODNIOPOMORSKIE | C34: 28,194.49 | D34: 92,802.71 | E34: 0.93 | F34: 0.88 | G34: 0.52 | H34: 0.84 | I34: 0.85 | J34: prawidłowo
B35: DOLNOŚLĄSKIE | C35: 36,994.87 | D35: 106,330.13 | E35: 0.90 | F35: 0.89 | G35: 0.54 | H35: 0.94 | I35: 0.86 | J35: prawidłowo
B36: OPOLSKIE | C36: 27,044.72 | D36: 88,226.95 | E36: 0.86 | F36: 0.91 | G36: 0.53 | H36: 0.86 | I36: 0.86 | J36: prawidłowo
B37: KUJAWSKO-POMORSKIE | C37: 27,291.51 | D37: 82,690.27 | E37: 0.89 | F37: 0.89 | G37: 0.54 | H37: 0.91 | I37: 0.84 | J37: prawidłowo
B38: POMORSKIE | C38: 31,502.61 | D38: 93,904.03 | E38: 0.95 | F38: 0.91 | G38: 0.56 | H38: 0.84 | I38: 0.84 | J38: prawidłowo
B39: WARMIŃSKO-MAZURSKIE | C39: 23,891.48 | D39: 80,911.93 | E39: 0.78 | F39: 0.90 | G39: 0.53 | H39: 0.94 | I39: 0.84 | J39: prawidłowo
B40: POLSKA | C40: 32,855.16 | D40: 91,512.83 | E40: 0.89 | F40: 0.90 | G40: 0.55 | H40: 0.95 | I40: 0.85 | J40: prawidłowo
B42: Dane | C42: WDB_i | D42: PP_i | E42: PZ_i | F42: AZ_i | G42: NB15+_i | H42: N15+_i | I42: N_i
B43: ŁÓDZKIE | C43: 77681 | D43: 951389.8798 | E43: 1218 | F43: 1342 | G43: 2384 | H43: 2184989 | I43: 2542436
B44: MAZOWIECKIE | C44: 274148 | D44: 2285556.501 | E44: 2328 | F44: 2513 | G44: 4331 | H44: 4457564 | I44: 5267072
B45: MAŁOPOLSKIE | C45: 96083 | D45: 1204914.179 | E45: 1259 | F45: 1386 | G45: 2532 | H45: 2799372 | I45: 3336699
B46: ŚLĄSKIE | C46: 162900 | D46: 1654558.21 | E46: 1800 | F46: 1980 | G46: 3785 | H46: 3987906 | I46: 4634935
B47: LUBELSKIE | C47: 49649 | D47: 757436.0856 | E47: 986 | F47: 1094 | G47: 1956 | H47: 1843126 | I47: 2178611
B48: PODKARPACKIE | C48: 48632 | D48: 725740.3556 | E48: 834 | F48: 945 | G48: 1669 | H48: 1782532 | I48: 2127948
B49: PODLASKIE | C49: 28942 | D49: 394682.6958 | E49: 474 | F49: 527 | G49: 970 | H49: 1021572 | I49: 1203448
B50: ŚWIĘTOKRZYSKIE | C50: 32664 | D50: 452282.0418 | E50: 609 | F50: 691 | G50: 1221 | H50: 1096339 | I50: 1282546
B51: LUBUSKIE | C51: 28473 | D51: 325711.77 | E51: 428 | F51: 477 | G51: 865 | H51: 865171 | I51: 1023215
B52: WIELKOPOLSKIE | C52: 119005 | D52: 1345149.883 | E52: 1346 | F52: 1474 | G52: 2550 | H52: 2889704 | I52: 3446745
B53: ZACHODNIOPOMORSKIE | C53: 48600 | D53: 523691.5994 | E53: 564 | F53: 644 | G53: 1232 | H53: 1467279 | I53: 1723741
B54: DOLNOŚLĄSKIE | C54: 107923 | D54: 1014980.405 | E54: 1133 | F54: 1278 | G54: 2358 | H54: 2507254 | I54: 2917242
B55: OPOLSKIE | C55: 27511 | D55: 311820.8096 | E55: 363 | F55: 400 | G55: 752 | H55: 878200 | I55: 1017241
B56: KUJAWSKO-POMORSKIE | C56: 57277 | D56: 692669.1548 | E56: 778 | F56: 872 | G56: 1604 | H56: 1771431 | I56: 2098711
B57: POMORSKIE | C57: 71684 | D57: 763375.1361 | E57: 805 | F57: 889 | G57: 1600 | H57: 1901312 | I57: 2275494
B58: WARMIŃSKO-MAZURSKIE | C58: 34733 | D58: 429269.2037 | E58: 549 | F58: 608 | G58: 1148 | H58: 1220349 | I58: 1453782
B59: POLSKA | C59: 1265905 | D59: 13833087.72 | E59: 15473 | F59: 17123 | G59: 30956 | H59: 32674100 | I59: 38529866

Sheet 2009 (hidden)
A1: DEKOMPOZYCJA RÓŻNIC W POZIOMIE WDB PER CAPITA
A2: 2009
B3: Różnice względem średniej | C3: WDB per capita | D3: WDB na 1 pracującego | E3: Współczynnik dojazdów netto | F3: Udział pracujących wśród aktwnych zawodowo | G3: Współczynnik aktywności zawodowej | H3: Wskaźnik różnicy w metodologii BAEL/demo | I3: Wskaźnik struktury wiekowej | J3: Interakcje
C4: WDB_i/N_i | D4: WDB_i/Pp_i | E4: Pp_i/Pz_i | F4: Pz_i/Az_i | G4: Az_i/NB15+_i | H4: NB15+_i/N15+_i | I4: Ni15+_i/N_i
B5: ŁÓDZKIE | C5: =(C24-C$40)/C$40 -> -8.1% | D5: =(D24-D$40)/D$40 -> -11.5% | E5: =(E24-E$40)/E$40 -> -14.1% | F5: =(F24-F$40)/F$40 -> 0.7% | G5: =(G24-G$40)/G$40 -> -0.0% | H5: =(H24-H$40)/H$40 -> 18.5% | I5: =(I24-I$40)/I$40 -> 1.3% | J5: =C5-SUM(D5:I5) -> -3.0%
B6: MAZOWIECKIE | C6: =(C25-C$40)/C$40 -> 55.3% | D6: 28.1% | E6: 6.2% | F6: 2.3% | G6: 7.1% | H6: 4.1% | I6: 0.0% | J6: =C6-SUM(D6:I6) -> 7.4%
B7: MAŁOPOLSKIE | C7: -11.3% | D7: -11.1% | E7: 5.6% | F7: 0.2% | G7: -1.1% | H7: -3.6% | I7: -1.0% | J7: -0.2%
B8: ŚLĄSKIE | C8: 6.4% | D8: 8.8% | E8: 1.7% | F8: 1.5% | G8: -4.4% | H8: -2.3% | I8: 1.5% | J8: -0.3%
B9: LUBELSKIE | C9: -30.8% | D9: -29.2% | E9: -10.6% | F9: -1.7% | G9: 1.5% | H9: 10.1% | I9: -0.4% | J9: -0.4%
B10: PODKARPACKIE | C10: -29.3% | D10: -25.4% | E10: -6.6% | F10: -2.1% | G10: 3.1% | H10: 1.8% | I10: -1.1% | J10: 1.1%
B11: PODLASKIE | C11: -26.2% | D11: -21.5% | E11: -6.3% | F11: 1.1% | G11: 0.0% | H11: -1.0% | I11: 0.1% | J11: 1.3%
B12: ŚWIĘTOKRZYSKIE | C12: -20.6% | D12: -21.3% | E12: -8.7% | F12: -2.9% | G12: 2.0% | H12: 10.8% | I12: 0.7% | J12: -1.2%
B13: LUBUSKIE | C13: -14.4% | D13: -2.1% | E13: -9.8% | F13: -1.5% | G13: -2.5% | H13: 1.3% | I13: -0.4% | J13: 0.6%
B14: WIELKOPOLSKIE | C14: 7.7% | D14: -0.4% | E14: 18.0% | F14: 0.8% | G14: 2.1% | H14: -10.0% | I14: -1.1% | J14: -1.7%
B15: ZACHODNIOPOMORSKIE | C15: -12.5% | D15: 1.1% | E15: 1.9% | F15: -2.2% | G15: -5.1% | H15: -8.6% | I15: 0.2% | J15: 0.3%
B16: DOLNOŚLĄSKIE | C16: 9.3% | D16: 12.8% | E16: 1.3% | F16: -2.1% | G16: -1.8% | H16: -1.9% | I16: 1.3% | J16: -0.4%
B17: OPOLSKIE | C17: -17.6% | D17: -3.4% | E17: -5.0% | F17: -2.0% | G17: -2.2% | H17: -8.0% | I17: 1.9% | J17: 1.2%
B18: KUJAWSKO-POMORSKIE | C18: -16.0% | D18: -10.0% | E18: -3.3% | F18: -2.3% | G18: -0.2% | H18: -0.4% | I18: -0.6% | J18: 0.8%
B19: POMORSKIE | C19: -1.8% | D19: 5.7% | E19: 9.0% | F19: 2.2% | G19: -4.7% | H19: -11.1% | I19: -1.6% | J19: -1.3%
B20: WARMIŃSKO-MAZURSKIE | C20: -26.3% | D20: -9.7% | E20: -14.0% | F20: -0.3% | G20: -4.5% | H20: 0.9% | I20: -1.3% | J20: 2.5%
B22: Wartości | C22: WDB per capita | D22: WDB na 1 pracującego | E22: Współczynnik dojazdów netto | F22: Udział pracujących wśród aktwnych zawodowo | G22: Współczynnik aktywności zawodowej | H22: Wskaźnik różnicy w metodologii BAEL/demo | I22: Wskaźnik struktury wiekowej | J22: Weryfikacja
C23: WDB_i/N_i | D23: WDB_i/Pp_i | E23: Pp_i/Pz_i | F23: Pz_i/Az_i | G23: Az_i/NB15+_i | H23: NB15+_i/N15+_i | I23: Ni15+_i/N_i
B24: ŁÓDZKIE | C24: =C43/I43*1000000 -> 29,131.74 | D24: =C43/D43*1000000 -> 76,169.44 | E24: =D43/E43/1000 -> 0.76 | F24: =E43/F43 -> 0.92 | G24: =F43/G43 -> 0.55 | H24: =G43/H43*1000 -> 1.15 | I24: =H43/I43 -> 0.86 | J24: =IF(PRODUCT(D24:I24)-C24<0.0001,"prawidłowo","nieprawidłowo") -> prawidłowo
B25: MAZOWIECKIE | C25: =C44/I44*1000000 -> 49,233.39 | D25: =C44/D44*1000000 -> 110,253.00 | E25: =D44/E44/1000 -> 0.94 | F25: =E44/F44 -> 0.94 | G25: 0.59 | H25: =G44/H44*1000 -> 1.01 | I25: =H44/I44 -> 0.85 | J25: =IF(PRODUCT(D25:I25)-C25<0.0001,"prawidłowo","nieprawidłowo") -> prawidłowo
B26: MAŁOPOLSKIE | C26: 28,108.37 | D26: 76,462.52 | E26: 0.94 | F26: 0.92 | G26: 0.54 | H26: 0.94 | I26: 0.84 | J26: prawidłowo
B27: ŚLĄSKIE | C27: 33,735.68 | D27: 93,594.61 | E27: 0.90 | F27: 0.93 | G27: 0.53 | H27: 0.95 | I27: 0.86 | J27: prawidłowo
B28: LUBELSKIE | C28: 21,929.80 | D28: 60,900.01 | E28: 0.79 | F28: 0.90 | G28: 0.56 | H28: 1.07 | I28: 0.85 | J28: prawidłowo
B29: PODKARPACKIE | C29: 22,410.09 | D29: 64,177.04 | E29: 0.83 | F29: 0.90 | G29: 0.57 | H29: 0.99 | I29: 0.84 | J29: prawidłowo
B30: PODLASKIE | C30: 23,376.71 | D30: 67,523.15 | E30: 0.83 | F30: 0.93 | G30: 0.55 | H30: 0.96 | I30: 0.85 | J30: prawidłowo
B31: ŚWIĘTOKRZYSKIE | C31: 25,151.17 | D31: 67,716.48 | E31: 0.81 | F31: 0.89 | G31: 0.56 | H31: 1.08 | I31: 0.85 | J31: prawidłowo
B32: LUBUSKIE | C32: 27,138.34 | D32: 84,245.83 | E32: 0.80 | F32: 0.90 | G32: 0.54 | H32: 0.98 | I32: 0.84 | J32: prawidłowo
B33: WIELKOPOLSKIE | C33: 34,132.16 | D33: 85,706.94 | E33: 1.05 | F33: 0.93 | G33: 0.56 | H33: 0.87 | I33: 0.84 | J33: prawidłowo
B34: ZACHODNIOPOMORSKIE | C34: 27,745.13 | D34: 86,980.87 | E34: 0.90 | F34: 0.90 | G34: 0.52 | H34: 0.89 | I34: 0.85 | J34: prawidłowo
B35: DOLNOŚLĄSKIE | C35: 34,652.04 | D35: 97,056.83 | E35: 0.90 | F35: 0.90 | G35: 0.54 | H35: 0.95 | I35: 0.86 | J35: prawidłowo
B36: OPOLSKIE | C36: 26,125.57 | D36: 83,083.70 | E36: 0.84 | F36: 0.90 | G36: 0.54 | H36: 0.89 | I36: 0.86 | J36: prawidłowo
B37: KUJAWSKO-POMORSKIE | C37: 26,609.86 | D37: 77,431.95 | E37: 0.86 | F37: 0.90 | G37: 0.55 | H37: 0.97 | I37: 0.84 | J37: prawidłowo
B38: POMORSKIE | C38: 31,124.18 | D38: 90,982.26 | E38: 0.97 | F38: 0.94 | G38: 0.52 | H38: 0.86 | I38: 0.84 | J38: prawidłowo
B39: WARMIŃSKO-MAZURSKIE | C39: 23,366.67 | D39: 77,713.26 | E39: 0.76 | F39: 0.92 | G39: 0.52 | H39: 0.98 | I39: 0.84 | J39: prawidłowo
B40: POLSKA | C40: 31,695.72 | D40: 86,036.92 | E40: 0.89 | F40: 0.92 | G40: 0.55 | H40: 0.97 | I40: 0.85 | J40: prawidłowo
B42: Dane | C42: WDB_i | D42: PP_i | E42: PZ_i | F42: AZ_i | G42: NB15+_i | H42: N15+_i | I42: N_i
B43: ŁÓDZKIE | C43: 74048 | D43: 972148.402 | E43: 1277 | F43: 1381 | G43: 2515 | H43: 2185376 | I43: 2541832
B44: MAZOWIECKIE | C44: 257105 | D44: 2331954.675 | E44: 2479 | F44: 2638 | G44: 4483 | H44: 4432067 | I44: 5222167
B45: MAŁOPOLSKIE | C45: 92709 | D45: 1212476.349 | E45: 1296 | F45: 1408 | G45: 2593 | H45: 2770174 | I45: 3298270
B46: ŚLĄSKIE | C46: 156558 | D46: 1672724.476 | E46: 1856 | F46: 1991 | G46: 3791 | H46: 3996103 | I46: 4640725
B47: LUBELSKIE | C47: 47307 | D47: 776797.9322 | E47: 981 | F47: 1087 | G47: 1950 | H47: 1823386 | I47: 2157202
B48: PODKARPACKIE | C48: 47100 | D48: 733907.3371 | E48: 887 | F48: 987 | G48: 1743 | H48: 1762912 | I48: 2101732
B49: PODLASKIE | C49: 27812 | D49: 411888.3788 | E49: 496 | F49: 534 | G49: 972 | H49: 1010594 | I49: 1189731
B50: ŚWIĘTOKRZYSKIE | C50: 31945 | D50: 471746.3257 | E50: 583 | F50: 654 | G50: 1168 | H50: 1084740 | I50: 1270120
B51: LUBUSKIE | C51: 27411 | D51: 325369.2377 | E51: 407 | F51: 450 | G51: 840 | H51: 853441 | I51: 1010047
B52: WIELKOPOLSKIE | C52: 116332 | D52: 1357322.995 | E52: 1298 | F52: 1402 | G52: 2500 | H52: 2859232 | I52: 3408281
B53: ZACHODNIOPOMORSKIE | C53: 46978 | D53: 540095.7679 | E53: 598 | F53: 666 | G53: 1278 | H53: 1439286 | I53: 1693198
B54: DOLNOŚLĄSKIE | C54: 99681 | D54: 1027037.432 | E54: 1144 | F54: 1272 | G54: 2358 | H54: 2473125 | I54: 2876627
B55: OPOLSKIE | C55: 26938 | D55: 324227.2418 | E55: 385 | F55: 428 | G55: 797 | H55: 891296 | I55: 1031097
B56: KUJAWSKO-POMORSKIE | C56: 55058 | D56: 711050.1694 | E56: 830 | F56: 925 | G56: 1688 | H56: 1745036 | I56: 2069083
B57: POMORSKIE | C57: 69410 | D57: 762895.9635 | E57: 790 | F57: 842 | G57: 1609 | H57: 1862665 | I57: 2230099
B58: WARMIŃSKO-MAZURSKIE | C58: 33347 | D58: 429103.0874 | E58: 563 | F58: 615 | G58: 1172 | H58: 1195119 | I58: 1427118
B59: POLSKA | C59: 1209741 | D59: 14060720.18 | E59: 15867 | F59: 17279 | G59: 31461 | H59: 32384552 | I59: 38167329

Sheet 2008 (hidden)
A1: DEKOMPOZYCJA RÓŻNIC W POZIOMIE WDB PER CAPITA
A2: 2008
B3: Różnice względem średniej | C3: WDB per capita | D3: WDB na 1 pracującego | E3: Współczynnik dojazdów netto | F3: Udział pracujących wśród aktwnych zawodowo | G3: Współczynnik aktywności zawodowej | H3: Wskaźnik różnicy w metodologii BAEL/demo | I3: Wskaźnik struktury wiekowej | J3: Interakcje
C4: WDB_i/N_i | D4: WDB_i/Pp_i | E4: Pp_i/Pz_i | F4: Pz_i/Az_i | G4: Az_i/NB15+_i | H4: NB15+_i/N15+_i | I4: Ni15+_i/N_i
B5: ŁÓDZKIE | C5: =(C24-C$40)/C$40 -> -6.8% | D5: =(D24-D$40)/D$40 -> -11.6% | E5: =(E24-E$40)/E$40 -> -16.4% | F5: =(F24-F$40)/F$40 -> 0.6% | G5: =(G24-G$40)/G$40 -> 2.0% | H5: =(H24-H$40)/H$40 -> 21.4% | I5: =(I24-I$40)/I$40 -> 1.4% | J5: =C5-SUM(D5:I5) -> -4.0%
B6: MAZOWIECKIE | C6: =(C25-C$40)/C$40 -> 52.3% | D6: 28.5% | E6: 3.2% | F6: 1.2% | G6: 8.5% | H6: 4.5% | I6: 0.2% | J6: =C6-SUM(D6:I6) -> 6.3%
B7: MAŁOPOLSKIE | C7: -10.4% | D7: -9.2% | E7: 1.8% | F7: 1.0% | G7: -1.1% | H7: -1.8% | I7: -1.1% | J7: 0.1%
B8: ŚLĄSKIE | C8: 7.4% | D8: 9.4% | E8: 3.6% | F8: 0.6% | G8: -4.7% | H8: -2.8% | I8: 1.6% | J8: -0.4%
B9: LUBELSKIE | C9: -28.8% | D9: -27.0% | E9: -11.4% | F9: -1.7% | G9: 1.9% | H9: 10.5% | I9: -0.5% | J9: -0.6%
B10: PODKARPACKIE | C10: -28.4% | D10: -25.4% | E10: -4.4% | F10: -1.2% | G10: 0.9% | H10: 2.1% | I10: -1.4% | J10: 1.0%
B11: PODLASKIE | C11: -27.0% | D11: -22.7% | E11: -6.2% | F11: 0.8% | G11: 0.8% | H11: -0.8% | I11: -0.1% | J11: 1.2%
B12: ŚWIĘTOKRZYSKIE | C12: -17.5% | D12: -19.1% | E12: -9.0% | F12: -1.7% | G12: 4.3% | H12: 8.7% | I12: 0.5% | J12: -1.3%
B13: LUBUSKIE | C13: -13.1% | D13: -1.6% | E13: -11.3% | F13: 0.6% | G13: -3.3% | H13: 2.7% | I13: -0.4% | J13: 0.1%
B14: WIELKOPOLSKIE | C14: 5.6% | D14: -2.8% | E14: 17.9% | F14: 1.0% | G14: 1.5% | H14: -9.1% | I14: -1.1% | J14: -1.8%
B15: ZACHODNIOPOMORSKIE | C15: -10.3% | D15: 2.0% | E15: 9.0% | F15: -2.5% | G15: -7.0% | H15: -11.1% | I15: 0.1% | J15: -0.8%
B16: DOLNOŚLĄSKIE | C16: 8.2% | D16: 11.8% | E16: 0.5% | F16: -2.3% | G16: -2.4% | H16: -0.4% | I16: 1.4% | J16: -0.4%
B17: OPOLSKIE | C17: -13.7% | D17: 0.2% | E17: -4.2% | F17: 0.6% | G17: -5.6% | H17: -6.9% | I17: 1.7% | J17: 0.5%
B18: KUJAWSKO-POMORSKIE | C18: -14.1% | D18: -9.4% | E18: 11.0% | F18: -2.4% | G18: -3.2% | H18: -9.0% | I18: -0.7% | J18: -0.4%
B19: POMORSKIE | C19: -4.5% | D19: 4.1% | E19: 6.0% | F19: 1.9% | G19: -2.8% | H19: -11.3% | I19: -1.5% | J19: -0.9%
B20: WARMIŃSKO-MAZURSKIE | C20: -26.3% | D20: -11.2% | E20: -12.4% | F20: -0.2% | G20: -5.4% | H20: 1.7% | I20: -1.4% | J20: 2.5%
B22: Wartości | C22: WDB per capita | D22: WDB na 1 pracującego | E22: Współczynnik dojazdów netto | F22: Udział pracujących wśród aktwnych zawodowo | G22: Współczynnik aktywności zawodowej | H22: Wskaźnik różnicy w metodologii BAEL/demo | I22: Wskaźnik struktury wiekowej | J22: Weryfikacja
C23: WDB_i/N_i | D23: WDB_i/Pp_i | E23: Pp_i/Pz_i | F23: Pz_i/Az_i | G23: Az_i/NB15+_i | H23: NB15+_i/N15+_i | I23: Ni15+_i/N_i
B24: ŁÓDZKIE | C24: =C43/I43*1000000 -> 27,260.02 | D24: =C43/D43*1000000 -> 69,538.01 | E24: =D43/E43/1000 -> 0.75 | F24: =E43/F43 -> 0.93 | G24: =F43/G43 -> 0.55 | H24: =G43/H43*1000 -> 1.18 | I24: =H43/I43 -> 0.86 | J24: =IF(PRODUCT(D24:I24)-C24<0.0001,"prawidłowo","nieprawidłowo") -> prawidłowo
B25: MAZOWIECKIE | C25: =C44/I44*1000000 -> 44,545.15 | D25: =C44/D44*1000000 -> 101,068.61 | E25: =D44/E44/1000 -> 0.93 | F25: =E44/F44 -> 0.94 | G25: 0.59 | H25: =G44/H44*1000 -> 1.01 | I25: =H44/I44 -> 0.85 | J25: =IF(PRODUCT(D25:I25)-C25<0.0001,"prawidłowo","nieprawidłowo") -> prawidłowo
B26: MAŁOPOLSKIE | C26: 26,191.49 | D26: 71,406.92 | E26: 0.91 | F26: 0.94 | G26: 0.54 | H26: 0.95 | I26: 0.84 | J26: prawidłowo
B27: ŚLĄSKIE | C27: 31,396.37 | D27: 86,112.97 | E27: 0.93 | F27: 0.93 | G27: 0.52 | H27: 0.94 | I27: 0.86 | J27: prawidłowo
B28: LUBELSKIE | C28: 20,817.99 | D28: 57,414.81 | E28: 0.79 | F28: 0.91 | G28: 0.55 | H28: 1.07 | I28: 0.84 | J28: prawidłowo
B29: PODKARPACKIE | C29: 20,946.47 | D29: 58,729.21 | E29: 0.86 | F29: 0.92 | G29: 0.55 | H29: 0.99 | I29: 0.84 | J29: prawidłowo
B30: PODLASKIE | C30: 21,333.31 | D30: 60,808.89 | E30: 0.84 | F30: 0.94 | G30: 0.55 | H30: 0.96 | I30: 0.85 | J30: prawidłowo
B31: ŚWIĘTOKRZYSKIE | C31: 24,124.28 | D31: 63,658.13 | E31: 0.82 | F31: 0.91 | G31: 0.57 | H31: 1.06 | I31: 0.85 | J31: prawidłowo
B32: LUBUSKIE | C32: 25,401.35 | D32: 77,416.89 | E32: 0.80 | F32: 0.93 | G32: 0.52 | H32: 1.00 | I32: 0.84 | J32: prawidłowo
B33: WIELKOPOLSKIE | C33: 30,888.41 | D33: 76,463.82 | E33: 1.06 | F33: 0.94 | G33: 0.55 | H33: 0.88 | I33: 0.84 | J33: prawidłowo
B34: ZACHODNIOPOMORSKIE | C34: 26,215.08 | D34: 80,224.75 | E34: 0.98 | F34: 0.91 | G34: 0.50 | H34: 0.86 | I34: 0.85 | J34: prawidłowo
B35: DOLNOŚLĄSKIE | C35: 31,633.69 | D35: 88,001.30 | E35: 0.90 | F35: 0.91 | G35: 0.53 | H35: 0.97 | I35: 0.86 | J35: prawidłowo
B36: OPOLSKIE | C36: 25,242.00 | D36: 78,853.65 | E36: 0.86 | F36: 0.93 | G36: 0.51 | H36: 0.90 | I36: 0.86 | J36: prawidłowo
B37: KUJAWSKO-POMORSKIE | C37: 25,109.31 | D37: 71,266.25 | E37: 1.00 | F37: 0.91 | G37: 0.52 | H37: 0.88 | I37: 0.84 | J37: prawidłowo
B38: POMORSKIE | C38: =C57/I57*1000000 -> 27,923.26 | D38: 81,921.37 | E38: 0.95 | F38: 0.95 | G38: 0.53 | H38: 0.86 | I38: 0.83 | J38: prawidłowo
B39: WARMIŃSKO-MAZURSKIE | C39: 21,553.91 | D39: 69,882.51 | E39: 0.79 | F39: 0.93 | G39: 0.51 | H39: 0.99 | I39: 0.84 | J39: prawidłowo
B40: POLSKA | C40: 29,239.45 | D40: 78,678.88 | E40: 0.90 | F40: 0.93 | G40: 0.54 | H40: 0.97 | I40: 0.85 | J40: prawidłowo
B42: Dane | C42: WDB_i | D42: PP_i | E42: PZ_i | F42: AZ_i | G42: NB15+_i | H42: N15+_i | I42: N_i
B43: ŁÓDZKIE | C43: 69482 | D43: 999194.4998 | E43: 1333 | F43: 1427 | G43: 2580 | H43: 2189006 | I43: 2548861
B44: MAZOWIECKIE | C44: 231835 | D44: 2293837.836 | E44: 2479 | F44: 2636 | G44: 4480 | H44: 4416139 | I44: 5204495
B45: MAŁOPOLSKIE | C45: 86095 | D45: 1205695.436 | E45: 1321 | F45: 1408 | G45: 2626 | H45: 2754999 | I45: 3287136
B46: ŚLĄSKIE | C46: 145857 | D46: 1693786.589 | E46: 1822 | F46: 1950 | G46: 3772 | H46: 3996635 | I46: 4645665
B47: LUBELSKIE | C47: 45005 | D47: 783856.9661 | E47: 986 | F47: 1080 | G47: 1955 | H47: 1822260 | I47: 2161832
B48: PODKARPACKIE | C48: 43977 | D48: 748809.6934 | E48: 873 | F48: 951 | G48: 1739 | H48: 1754186 | I48: 2099495
B49: PODLASKIE | C49: 25418 | D49: 417998.0954 | E49: 497 | F49: 531 | G49: 972 | H49: 1008635 | I49: 1191470
B50: ŚWIĘTOKRZYSKIE | C50: 30705 | D50: 482342.181 | E50: 591 | F50: 647 | G50: 1144 | H50: 1084059 | I50: 1272784
B51: LUBUSKIE | C51: 25629 | D51: 331051.7834 | E51: 416 | F51: 445 | G51: 849 | H51: 851188 | I51: 1008962
B52: WIELKOPOLSKIE | C52: 104947 | D52: 1372505.34 | E52: 1298 | F52: 1383 | G52: 2514 | H52: 2847256 | I52: 3397617
B53: ZACHODNIOPOMORSKIE | C53: 44381 | D53: 553208.3286 | E53: 566 | F53: 625 | G53: 1240 | H53: 1435777 | I53: 1692957
B54: DOLNOŚLĄSKIE | C54: 91012 | D54: 1034212.05 | E54: 1147 | F54: 1264 | G54: 2389 | H54: 2470815 | I54: 2877059
B55: OPOLSKIE | C55: 26076 | D55: 330688.5417 | E55: 385 | F55: 412 | G55: 805 | H55: 890367 | I55: 1033040
B56: KUJAWSKO-POMORSKIE | C56: 51924 | D56: 728591.6848 | E56: 732 | F56: 807 | G56: 1538 | H56: 1740073 | I56: 2067918
B57: POMORSKIE | C57: 61976 | D57: 756530.3476 | E57: 796 | F57: 841 | G57: 1596 | H57: 1852674 | I57: 2219512
B58: WARMIŃSKO-MAZURSKIE | C58: 30759 | D58: 440153.069 | E58: 560 | F58: 604 | G58: 1178 | H58: 1192367 | I58: 1427073
B59: POLSKA | C59: 1115072 | D59: 14172443.77 | E59: 15801 | F59: 17010 | G59: 31372 | H59: 32306436 | I59: 38135876

Sheet 2007 (hidden)
A1: DEKOMPOZYCJA RÓŻNIC W POZIOMIE WDB PER CAPITA
A2: 2007
B3: Różnice względem średniej | C3: WDB per capita | D3: WDB na 1 pracującego | E3: Współczynnik dojazdów netto | F3: Udział pracujących wśród aktwnych zawodowo | G3: Współczynnik aktywności zawodowej | H3: Wskaźnik różnicy w metodologii BAEL/demo | I3: Wskaźnik struktury wiekowej | J3: Interakcje
C4: WDB_i/N_i | D4: WDB_i/Pp_i | E4: Pp_i/Pz_i | F4: Pz_i/Az_i | G4: Az_i/NB15+_i | H4: NB15+_i/N15+_i | I4: Ni15+_i/N_i
B5: ŁÓDZKIE | C5: =(C24-C$40)/C$40 -> -7.3% | D5: =(D24-D$40)/D$40 -> -12.1% | E5: =(E24-E$40)/E$40 -> -13.2% | F5: =(F24-F$40)/F$40 -> 0.3% | G5: =(G24-G$40)/G$40 -> 2.1% | H5: =(H24-H$40)/H$40 -> 16.9% | I5: =(I24-I$40)/I$40 -> 1.4% | J5: =C5-SUM(D5:I5) -> -2.8%
B6: MAZOWIECKIE | C6: =(C25-C$40)/C$40 -> 54.2% | D6: 28.9% | E6: 8.4% | F6: 0.6% | G6: 6.3% | H6: 2.9% | I6: 0.3% | J6: =C6-SUM(D6:I6) -> 6.8%
B7: MAŁOPOLSKIE | C7: -11.0% | D7: -9.8% | E7: 1.5% | F7: 1.1% | G7: -0.4% | H7: -2.3% | I7: -1.1% | J7: 0.1%
B8: ŚLĄSKIE | C8: 5.8% | D8: 8.0% | E8: 3.3% | F8: 1.7% | G8: -6.5% | H8: -1.8% | I8: 1.6% | J8: -0.5%
B9: LUBELSKIE | C9: -30.0% | D9: -28.8% | E9: -12.3% | F9: 0.1% | G9: 5.2% | H9: 7.2% | I9: -0.6% | J9: -0.7%
B10: PODKARPACKIE | C10: -29.5% | D10: -26.8% | E10: -2.1% | F10: 0.1% | G10: 1.4% | H10: -1.4% | I10: -1.6% | J10: 1.0%
B11: PODLASKIE | C11: -25.6% | D11: -20.9% | E11: -1.2% | F11: 1.1% | G11: 1.1% | H11: -6.6% | I11: -0.3% | J11: 1.2%
B12: ŚWIĘTOKRZYSKIE | C12: -20.4% | D12: -21.7% | E12: -10.6% | F12: -2.5% | G12: 4.8% | H12: 10.8% | I12: 0.4% | J12: -1.6%
B13: LUBUSKIE | C13: -10.6% | D13: 0.6% | E13: -18.0% | F13: -0.1% | G13: -0.6% | H13: 9.7% | I13: -0.4% | J13: -1.7%
B14: WIELKOPOLSKIE | C14: 5.5% | D14: -3.2% | E14: 12.5% | F14: 1.5% | G14: 1.3% | H14: -4.8% | I14: -1.0% | J14: -0.8%
B15: ZACHODNIOPOMORSKIE | C15: -11.2% | D15: 1.5% | E15: 9.4% | F15: -2.2% | G15: -8.2% | H15: -11.0% | I15: 0.1% | J15: -0.8%
B16: DOLNOŚLĄSKIE | C16: 9.0% | D16: 15.0% | E16: -4.4% | F16: -3.4% | G16: -0.9% | H16: 1.9% | I16: 1.5% | J16: -0.8%
B17: OPOLSKIE | C17: -15.7% | D17: -1.2% | E17: -3.0% | F17: 0.4% | G17: -4.8% | H17: -9.4% | I17: 1.6% | J17: 0.7%
B18: KUJAWSKO-POMORSKIE | C18: -13.7% | D18: -8.5% | E18: 5.2% | F18: -1.8% | G18: -4.0% | H18: -4.2% | I18: -0.7% | J18: 0.3%
B19: POMORSKIE | C19: -1.6% | D19: 7.1% | E19: 6.4% | F19: 0.1% | G19: -1.1% | H19: -11.5% | I19: -1.4% | J19: -1.2%
B20: WARMIŃSKO-MAZURSKIE | C20: -26.0% | D20: -10.9% | E20: -12.1% | F20: -0.9% | G20: -4.1% | H20: 1.0% | I20: -1.5% | J20: 2.6%
B22: Wartości | C22: WDB per capita | D22: WDB na 1 pracującego | E22: Współczynnik dojazdów netto | F22: Udział pracujących wśród aktwnych zawodowo | G22: Współczynnik aktywności zawodowej | H22: Wskaźnik różnicy w metodologii BAEL/demo | I22: Wskaźnik struktury wiekowej | J22: Weryfikacja
C23: WDB_i/N_i | D23: WDB_i/Pp_i | E23: Pp_i/Pz_i | F23: Pz_i/Az_i | G23: Az_i/NB15+_i | H23: NB15+_i/N15+_i | I23: Ni15+_i/N_i
B24: ŁÓDZKIE | C24: =C43/I43*1000000 -> 25,191.93 | D24: =C43/D43*1000000 -> 66,817.24 | E24: =D43/E43/1000 -> 0.78 | F24: =E43/F43 -> 0.91 | G24: =F43/G43 -> 0.55 | H24: =G43/H43*1000 -> 1.14 | I24: =H43/I43 -> 0.86 | J24: =IF(PRODUCT(D24:I24)-C24<0.0001,"prawidłowo","nieprawidłowo") -> prawidłowo
B25: MAZOWIECKIE | C25: =C44/I44*1000000 -> 41,910.86 | D25: =C44/D44*1000000 -> 97,989.01 | E25: =D44/E44/1000 -> 0.97 | F25: =E44/F44 -> 0.91 | G25: 0.57 | H25: =G44/H44*1000 -> 1.00 | I25: =H44/I44 -> 0.85 | J25: =IF(PRODUCT(D25:I25)-C25<0.0001,"prawidłowo","nieprawidłowo") -> prawidłowo
B26: MAŁOPOLSKIE | C26: 24,177.84 | D26: 68,536.47 | E26: 0.91 | F26: 0.91 | G26: 0.53 | H26: 0.95 | I26: 0.84 | J26: prawidłowo
B27: ŚLĄSKIE | C27: 28,747.46 | D27: 82,051.64 | E27: 0.92 | F27: 0.92 | G27: 0.50 | H27: 0.96 | I27: 0.86 | J27: prawidłowo
B28: LUBELSKIE | C28: 19,021.21 | D28: 54,082.27 | E28: 0.78 | F28: 0.91 | G28: 0.56 | H28: 1.04 | I28: 0.84 | J28: prawidłowo
B29: PODKARPACKIE | C29: 19,149.51 | D29: 55,639.73 | E29: 0.87 | F29: 0.90 | G29: 0.54 | H29: 0.96 | I29: 0.83 | J29: prawidłowo
B30: PODLASKIE | C30: 20,207.77 | D30: 60,112.15 | E30: 0.88 | F30: 0.91 | G30: 0.54 | H30: 0.91 | I30: 0.84 | J30: prawidłowo
B31: ŚWIĘTOKRZYSKIE | C31: 21,640.86 | D31: 59,543.39 | E31: 0.80 | F31: 0.88 | G31: 0.56 | H31: 1.08 | I31: 0.85 | J31: prawidłowo
B32: LUBUSKIE | C32: 24,283.06 | D32: 76,438.60 | E32: 0.73 | F32: 0.90 | G32: 0.53 | H32: 1.07 | I32: 0.84 | J32: prawidłowo
B33: WIELKOPOLSKIE | C33: 28,673.87 | D33: 73,580.61 | E33: 1.01 | F33: 0.92 | G33: 0.54 | H33: 0.93 | I33: 0.84 | J33: prawidłowo
B34: ZACHODNIOPOMORSKIE | C34: 24,117.89 | D34: 77,124.47 | E34: 0.98 | F34: 0.88 | G34: 0.49 | H34: 0.87 | I34: 0.85 | J34: prawidłowo
B35: DOLNOŚLĄSKIE | C35: 29,610.79 | D35: 87,439.28 | E35: 0.86 | F35: 0.87 | G35: 0.53 | H35: 0.99 | I35: 0.86 | J35: prawidłowo
B36: OPOLSKIE | C36: 22,911.27 | D36: 75,086.07 | E36: 0.87 | F36: 0.91 | G36: 0.51 | H36: 0.88 | I36: 0.86 | J36: prawidłowo
B37: KUJAWSKO-POMORSKIE | C37: 23,453.44 | D37: 69,521.76 | E37: 0.94 | F37: 0.89 | G37: 0.52 | H37: 0.93 | I37: 0.84 | J37: prawidłowo
B38: POMORSKIE | C38: 26,738.64 | D38: 81,376.20 | E38: 0.95 | F38: 0.91 | G38: 0.53 | H38: 0.86 | I38: 0.83 | J38: prawidłowo
B39: WARMIŃSKO-MAZURSKIE | C39: 20,110.02 | D39: 67,734.90 | E39: 0.79 | F39: 0.90 | G39: 0.51 | H39: 0.98 | I39: 0.83 | J39: prawidłowo
B40: POLSKA | C40: 27,171.37 | D40: 76,006.51 | E40: 0.89 | F40: 0.90 | G40: 0.54 | H40: 0.97 | I40: 0.85 | J40: prawidłowo
B42: Dane | C42: WDB_i | D42: PP_i | E42: PZ_i | F42: AZ_i | G42: NB15+_i | H42: N15+_i | I42: N_i
B43: ŁÓDZKIE | C43: 64388 | D43: 963643.5751 | E43: 1241 | F43: 1369 | G43: 2496 | H43: 2190899 | I43: 2555898
B44: MAZOWIECKIE | C44: 217454 | D44: 2219167.32 | E44: 2290 | F44: 2518 | G44: 4412 | H44: 4398417 | I44: 5188488
B45: MAŁOPOLSKIE | C45: 79280 | D45: 1156756.349 | E45: 1275 | F45: 1395 | G45: 2609 | H45: 2740317 | I45: 3279036
B46: ŚLĄSKIE | C46: 133794 | D46: 1630607.351 | E46: 1766 | F46: 1921 | G46: 3827 | H46: 3997797 | I46: 4654115
B47: LUBELSKIE | C47: 41204 | D47: 761876.235 | E47: 972 | F47: 1074 | G47: 1901 | H47: 1819681 | I47: 2166213
B48: PODKARPACKIE | C48: 40163 | D48: 721840.373 | E48: 825 | F48: 912 | G48: 1675 | H48: 1744109 | I48: 2097338
B49: PODLASKIE | C49: 24101 | D49: 400933.8943 | E49: 454 | F49: 497 | G49: 915 | H49: 1004784 | I49: 1192660
B50: ŚWIĘTOKRZYSKIE | C50: 27604 | D50: 463594.6721 | E50: 580 | F50: 658 | G50: 1169 | H50: 1082463 | I50: 1275550
B51: LUBUSKIE | C51: 24489 | D51: 320374.7851 | E51: 437 | F51: 484 | G51: 907 | H51: 848815 | I51: 1008481
B52: WIELKOPOLSKIE | C52: 97115 | D52: 1319845.071 | E52: 1312 | F52: 1430 | G52: 2628 | H52: 2832740 | I52: 3386882
B53: ZACHODNIOPOMORSKIE | C53: 40814 | D53: 529196.4743 | E53: 541 | F53: 612 | G53: 1241 | H53: 1431609 | I53: 1692271
B54: DOLNOŚLĄSKIE | C54: 85232 | D54: 974756.4013 | E54: 1140 | F54: 1305 | G54: 2451 | H54: 2468544 | I54: 2878410
B55: OPOLSKIE | C55: 23761 | D55: 316450.1752 | E55: 365 | F55: 402 | G55: 786 | H55: 890641 | I55: 1037088
B56: KUJAWSKO-POMORSKIE | C56: 48458 | D56: 697019.1726 | E56: 741 | F56: 835 | G56: 1619 | H56: 1733674 | I56: 2066136
B57: POMORSKIE | C57: 59117 | D57: 726465.4959 | E57: 764 | F57: 844 | G57: 1589 | H57: 1843003 | I57: 2210920
B58: WARMIŃSKO-MAZURSKIE | C58: 28680 | D58: 423415.3887 | E58: 539 | F58: 602 | G58: 1169 | H58: 1187270 | I58: 1426155
B59: POLSKA | C59: 1035654 | D59: 13625859.34 | E59: 15240 | F59: 16860 | G59: 31393 | H59: 32214763 | I59: 38115641

Sheet 2006 (hidden)
A1: DEKOMPOZYCJA RÓŻNIC W POZIOMIE WDB PER CAPITA
A2: 2006
B3: Różnice względem średniej | C3: WDB per capita | D3: WDB na 1 pracującego | E3: Współczynnik dojazdów netto | F3: Udział pracujących wśród aktwnych zawodowo | G3: Współczynnik aktywności zawodowej | H3: Wskaźnik różnicy w metodologii BAEL/demo | I3: Wskaźnik struktury wiekowej | J3: Interakcje
C4: WDB_i/N_i | D4: WDB_i/Pp_i | E4: Pp_i/Pz_i | F4: Pz_i/Az_i | G4: Az_i/NB15+_i | H4: NB15+_i/N15+_i | I4: Ni15+_i/N_i
B5: ŁÓDZKIE | C5: =(C24-C$40)/C$40 -> -7.5% | D5: =(D24-D$40)/D$40 -> -12.1% | E5: =(E24-E$40)/E$40 -> -8.4% | F5: =(F24-F$40)/F$40 -> 0.4% | G5: =(G24-G$40)/G$40 -> 0.8% | H5: =(H24-H$40)/H$40 -> 11.8% | I5: =(I24-I$40)/I$40 -> 1.5% | J5: =C5-SUM(D5:I5) -> -1.5%
B6: MAZOWIECKIE | C6: =(C25-C$40)/C$40 -> 54.1% | D6: 28.8% | E6: 10.5% | F6: 1.9% | G6: 5.3% | H6: 0.5% | I6: 0.5% | J6: =C6-SUM(D6:I6) -> 6.7%
B7: MAŁOPOLSKIE | C7: -10.0% | D7: -9.3% | E7: -4.9% | F7: 1.5% | G7: 1.8% | H7: 2.2% | I7: -1.2% | J7: -0.1%
B8: ŚLĄSKIE | C8: 6.3% | D8: 8.5% | E8: 2.7% | F8: -0.2% | G8: -5.5% | H8: -0.6% | I8: 1.7% | J8: -0.4%
B9: LUBELSKIE | C9: -30.9% | D9: -30.6% | E9: -9.5% | F9: 1.3% | G9: 3.5% | H9: 5.7% | I9: -0.7% | J9: -0.6%
B10: PODKARPACKIE | C10: -28.5% | D10: -26.2% | E10: -0.8% | F10: 0.4% | G10: -0.0% | H10: -0.9% | I10: -1.9% | J10: 0.8%
B11: PODLASKIE | C11: -27.2% | D11: -22.8% | E11: 2.6% | F11: 3.1% | G11: -0.1% | H11: -10.2% | I11: -0.5% | J11: 0.8%
B12: ŚWIĘTOKRZYSKIE | C12: -21.8% | D12: -23.6% | E12: -7.5% | F12: -1.9% | G12: 1.7% | H12: 10.5% | I12: 0.3% | J12: -1.4%
B13: LUBUSKIE | C13: -10.0% | D13: 1.7% | E13: -18.3% | F13: -0.4% | G13: -1.8% | H13: 11.1% | I13: -0.4% | J13: -2.0%
B14: WIELKOPOLSKIE | C14: 6.3% | D14: -2.3% | E14: 8.9% | F14: 1.3% | G14: 2.4% | H14: -2.6% | I14: -1.0% | J14: -0.3%
B15: ZACHODNIOPOMORSKIE | C15: -9.9% | D15: 2.8% | E15: 4.7% | F15: -4.0% | G15: -5.8% | H15: -7.6% | I15: 0.1% | J15: -0.2%
B16: DOLNOŚLĄSKIE | C16: 7.5% | D16: 14.9% | E16: -6.2% | F16: -3.8% | G16: 0.2% | H16: 1.8% | I16: 1.6% | J16: -1.1%
B17: OPOLSKIE | C17: -18.0% | D17: -3.9% | E17: -4.2% | F17: 0.5% | G17: -2.2% | H17: -10.8% | I17: 1.5% | J17: 1.0%
B18: KUJAWSKO-POMORSKIE | C18: -13.4% | D18: -8.0% | E18: 2.3% | F18: -2.7% | G18: -2.2% | H18: -2.7% | I18: -0.7% | J18: 0.5%
B19: POMORSKIE | C19: -1.4% | D19: 7.5% | E19: 9.9% | F19: 0.5% | G19: -2.3% | H19: -13.9% | I19: -1.3% | J19: -1.8%
B20: WARMIŃSKO-MAZURSKIE | C20: -25.3% | D20: -10.2% | E20: -10.7% | F20: -2.5% | G20: -4.7% | H20: 2.0% | I20: -1.6% | J20: 2.5%
B22: Wartości | C22: WDB per capita | D22: WDB na 1 pracującego | E22: Współczynnik dojazdów netto | F22: Udział pracujących wśród aktwnych zawodowo | G22: Współczynnik aktywności zawodowej | H22: Wskaźnik różnicy w metodologii BAEL/demo | I22: Wskaźnik struktury wiekowej | J22: Weryfikacja
C23: WDB_i/N_i | D23: WDB_i/Pp_i | E23: Pp_i/Pz_i | F23: Pz_i/Az_i | G23: Az_i/NB15+_i | H23: NB15+_i/N15+_i | I23: Ni15+_i/N_i
B24: ŁÓDZKIE | C24: =C43/I43*1000000 -> 22,624.91 | D24: =C43/D43*1000000 -> 62,259.57 | E24: =D43/E43/1000 -> 0.83 | F24: =E43/F43 -> 0.87 | G24: =F43/G43 -> 0.54 | H24: =G43/H43*1000 -> 1.09 | I24: =H43/I43 -> 0.85 | J24: =IF(PRODUCT(D24:I24)-C24<0.0001,"prawidłowo","nieprawidłowo") -> prawidłowo
B25: MAZOWIECKIE | C25: =C44/I44*1000000 -> 37,719.30 | D25: =C44/D44*1000000 -> 91,247.79 | E25: =D44/E44/1000 -> 1.00 | F25: =E44/F44 -> 0.88 | G25: 0.57 | H25: =G44/H44*1000 -> 0.98 | I25: =H44/I44 -> 0.85 | J25: =IF(PRODUCT(D25:I25)-C25<0.0001,"prawidłowo","nieprawidłowo") -> prawidłowo
B26: MAŁOPOLSKIE | C26: 22,017.57 | D26: 64,270.64 | E26: 0.86 | F26: 0.87 | G26: 0.55 | H26: 1.00 | I26: 0.83 | J26: prawidłowo
B27: ŚLĄSKIE | C27: 26,008.45 | D27: 76,866.36 | E27: 0.93 | F27: 0.86 | G27: 0.51 | H27: 0.97 | I27: 0.86 | J27: prawidłowo
B28: LUBELSKIE | C28: 16,918.53 | D28: 49,181.50 | E28: 0.82 | F28: 0.87 | G28: 0.56 | H28: 1.03 | I28: 0.84 | J28: prawidłowo
B29: PODKARPACKIE | C29: 17,488.38 | D29: 52,263.25 | E29: 0.90 | F29: 0.87 | G29: 0.54 | H29: 0.97 | I29: 0.83 | J29: prawidłowo
B30: PODLASKIE | C30: 17,827.93 | D30: 54,718.73 | E30: 0.93 | F30: 0.89 | G30: 0.54 | H30: 0.88 | I30: 0.84 | J30: prawidłowo
B31: ŚWIĘTOKRZYSKIE | C31: 19,125.08 | D31: 54,088.32 | E31: 0.83 | F31: 0.85 | G31: 0.55 | H31: 1.08 | I31: 0.84 | J31: prawidłowo
B32: LUBUSKIE | C32: 22,020.39 | D32: 72,043.13 | E32: 0.74 | F32: 0.86 | G32: 0.53 | H32: 1.09 | I32: 0.84 | J32: prawidłowo
B33: WIELKOPOLSKIE | C33: 26,016.26 | D33: 69,173.42 | E33: 0.98 | F33: 0.87 | G33: 0.55 | H33: 0.95 | I33: 0.83 | J33: prawidłowo
B34: ZACHODNIOPOMORSKIE | C34: 22,037.55 | D34: 72,851.01 | E34: 0.94 | F34: 0.83 | G34: 0.51 | H34: 0.90 | I34: 0.84 | J34: prawidłowo
B35: DOLNOŚLĄSKIE | C35: 26,306.96 | D35: 81,414.94 | E35: 0.85 | F35: 0.83 | G35: 0.54 | H35: 0.99 | I35: 0.86 | J35: prawidłowo
B36: OPOLSKIE | C36: 20,056.80 | D36: 68,097.20 | E36: 0.86 | F36: 0.87 | G36: 0.53 | H36: 0.87 | I36: 0.85 | J36: prawidłowo
B37: KUJAWSKO-POMORSKIE | C37: 21,185.93 | D37: 65,183.23 | E37: 0.92 | F37: 0.84 | G37: 0.53 | H37: 0.95 | I37: 0.84 | J37: prawidłowo
B38: POMORSKIE | C38: 24,131.93 | D38: 76,175.25 | E38: 0.99 | F38: 0.87 | G38: 0.53 | H38: 0.84 | I38: 0.83 | J38: prawidłowo
B39: WARMIŃSKO-MAZURSKIE | C39: 18,282.51 | D39: 63,586.92 | E39: 0.81 | F39: 0.84 | G39: 0.51 | H39: 1.00 | I39: 0.83 | J39: prawidłowo
B40: POLSKA | C40: 24,472.19 | D40: 70,834.55 | E40: 0.90 | F40: 0.86 | G40: 0.54 | H40: 0.98 | I40: 0.84 | J40: prawidłowo
B42: Dane | C42: WDB_i | D42: PP_i | E42: PZ_i | F42: AZ_i | G42: NB15+_i | H42: N15+_i | I42: N_i
B43: ŁÓDZKIE | C43: 58060 | D43: 932547.357 | E43: 1128 | F43: 1304 | G43: 2396 | H43: 2193168 | I43: 2566198
B44: MAZOWIECKIE | C44: 195073 | D44: 2137838.005 | E44: 2143 | F44: 2442 | G44: 4295 | H44: 4374644 | I44: 5171702
B45: MAŁOPOLSKIE | C45: 72024 | D45: 1120636.092 | E45: 1306 | F45: 1493 | G45: 2717 | H45: 2720785 | I45: 3271206
B46: ŚLĄSKIE | C46: 121437 | D46: 1579845.774 | E46: 1704 | F46: 1982 | G46: 3884 | H46: 3998924 | I46: 4669137
B47: LUBELSKIE | C47: 36760 | D47: 747435.5798 | E47: 915 | F47: 1048 | G47: 1875 | H47: 1815913 | I47: 2172766
B48: PODKARPACKIE | C48: 36683 | D48: 701889.0139 | E48: 784 | F48: 906 | G48: 1678 | H48: 1732556 | I48: 2097564
B49: PODLASKIE | C49: 21324 | D49: 389702.0438 | E49: 421 | F49: 474 | G49: 879 | H49: 1001747 | I49: 1196101
B50: ŚWIĘTOKRZYSKIE | C50: 24477 | D50: 452537.603 | E50: 542 | F50: 641 | G50: 1167 | H50: 1080681 | I50: 1279838
B51: LUBUSKIE | C51: 22208 | D51: 308259.7901 | E51: 418 | F51: 487 | G51: 918 | H51: 845857 | I51: 1008520
B52: WIELKOPOLSKIE | C52: 87896 | D52: 1270661.443 | E52: 1293 | F52: 1482 | G52: 2681 | H52: 2816130 | I52: 3378502
B53: ZACHODNIOPOMORSKIE | C53: 37306 | D53: 512086.2419 | E53: 542 | F53: 655 | G53: 1288 | H53: 1426613 | I53: 1692838
B54: DOLNOŚLĄSKIE | C54: 75825 | D54: 931340.1602 | E54: 1100 | F54: 1327 | G54: 2452 | H54: 2465084 | I54: 2882317
B55: OPOLSKIE | C55: 20898 | D55: 306884.8803 | E55: 355 | F55: 410 | G55: 776 | H55: 890398 | I55: 1041941
B56: KUJAWSKO-POMORSKIE | C56: 43778 | D56: 671614.4761 | E56: 727 | F56: 867 | G56: 1642 | H56: 1727002 | I56: 2066371
B57: POMORSKIE | C57: 53177 | D57: 698087.6282 | E57: 704 | F57: 813 | G57: 1541 | H57: 1831584 | I57: 2203595
B58: WARMIŃSKO-MAZURSKIE | C58: 26087 | D58: 410257.32 | E58: 509 | F58: 606 | G58: 1178 | H58: 1182033 | I58: 1426883
B59: POLSKA | C59: 933014 | D59: 13171736.54 | E59: 14593 | F59: 16938 | G59: 31365 | H59: 32103119 | I59: 38125479

Sheet 2005 (hidden)
A1: DEKOMPOZYCJA RÓŻNIC W POZIOMIE WDB PER CAPITA
A2: 2005
B3: Różnice względem średniej | C3: WDB per capita | D3: WDB na 1 pracującego | E3: Współczynnik dojazdów netto | F3: Udział pracujących wśród aktwnych zawodowo | G3: Współczynnik aktywności zawodowej | H3: Wskaźnik różnicy w metodologii BAEL/demo | I3: Wskaźnik struktury wiekowej | J3: Interakcje
C4: WDB_i/N_i | D4: WDB_i/Pp_i | E4: Pp_i/Pz_i | F4: Pz_i/Az_i | G4: Az_i/NB15+_i | H4: NB15+_i/N15+_i | I4: Ni15+_i/N_i
B5: ŁÓDZKIE | C5: =(C24-C$40)/C$40 -> -7.4% | D5: =(D24-D$40)/D$40 -> -11.8% | E5: =(E24-E$40)/E$40 -> -10.2% | F5: =(F24-F$40)/F$40 -> 0.5% | G5: =(G24-G$40)/G$40 -> 0.7% | H5: =(H24-H$40)/H$40 -> 13.7% | I5: =(I24-I$40)/I$40 -> 1.6% | J5: =C5-SUM(D5:I5) -> -1.9%
B6: MAZOWIECKIE | C6: =(C25-C$40)/C$40 -> 53.6% | D6: 28.3% | E6: 15.4% | F6: 3.7% | G6: 2.1% | H6: -2.6% | I6: 0.6% | J6: =C6-SUM(D6:I6) -> 6.1%
B7: MAŁOPOLSKIE | C7: -11.5% | D7: -11.2% | E7: -3.3% | F7: 3.0% | G7: 2.0% | H7: -0.5% | I7: -1.3% | J7: -0.1%
B8: ŚLĄSKIE | C8: 8.0% | D8: 10.2% | E8: 1.9% | F8: -1.5% | G8: -4.9% | H8: 0.8% | I8: 1.8% | J8: -0.4%
B9: LUBELSKIE | C9: -29.9% | D9: -29.8% | E9: -13.6% | F9: 4.3% | G9: 3.3% | H9: 8.2% | I9: -0.9% | J9: -1.4%
B10: PODKARPACKIE | C10: -27.9% | D10: -25.8% | E10: 1.0% | F10: 1.1% | G10: -1.1% | H10: -1.6% | I10: -2.2% | J10: 0.7%
B11: PODLASKIE | C11: -25.9% | D11: -22.0% | E11: -2.0% | F11: 4.3% | G11: 2.0% | H11: -8.2% | I11: -0.8% | J11: 0.7%
B12: ŚWIĘTOKRZYSKIE | C12: -23.3% | D12: -24.9% | E12: -4.4% | F12: -1.5% | G12: -0.9% | H12: 9.4% | I12: 0.1% | J12: -1.1%
B13: LUBUSKIE | C13: -9.4% | D13: 3.8% | E13: -18.1% | F13: -1.5% | G13: 0.0% | H13: 8.6% | I13: -0.4% | J13: -1.8%
B14: WIELKOPOLSKIE | C14: 7.7% | D14: -1.3% | E14: 6.8% | F14: 0.8% | G14: 3.8% | H14: -1.3% | I14: -1.0% | J14: -0.0%
B15: ZACHODNIOPOMORSKIE | C15: -9.3% | D15: 3.8% | E15: -0.7% | F15: -5.9% | G15: -1.5% | H15: -5.1% | I15: 0.1% | J15: 0.1%
B16: DOLNOŚLĄSKIE | C16: 3.5% | D16: 11.0% | E16: -0.7% | F16: -6.3% | G16: -0.8% | H16: -0.7% | I16: 1.7% | J16: -0.7%
B17: OPOLSKIE | C17: -16.4% | D17: -1.5% | E17: -6.3% | F17: 0.6% | G17: -1.7% | H17: -9.6% | I17: 1.3% | J17: 0.8%
B18: KUJAWSKO-POMORSKIE | C18: -13.5% | D18: -7.9% | E18: -2.9% | F18: -2.7% | G18: 1.6% | H18: -1.3% | I18: -0.8% | J18: 0.6%
B19: POMORSKIE | C19: -1.2% | D19: 7.9% | E19: 7.2% | F19: -1.2% | G19: -2.4% | H19: -10.3% | I19: -1.3% | J19: -1.1%
B20: WARMIŃSKO-MAZURSKIE | C20: -24.6% | D20: -9.0% | E20: -9.2% | F20: -3.5% | G20: -4.7% | H20: 0.9% | I20: -1.8% | J20: 2.6%
B22: Wartości | C22: WDB per capita | D22: WDB na 1 pracującego | E22: Współczynnik dojazdów netto | F22: Udział pracujących wśród aktwnych zawodowo | G22: Współczynnik aktywności zawodowej | H22: Wskaźnik różnicy w metodologii BAEL/demo | I22: Wskaźnik struktury wiekowej | J22: Weryfikacja
C23: WDB_i/N_i | D23: WDB_i/Pp_i | E23: Pp_i/Pz_i | F23: Pz_i/Az_i | G23: Az_i/NB15+_i | H23: NB15+_i/N15+_i | I23: Ni15+_i/N_i
B24: ŁÓDZKIE | C24: =C43/I43*1000000 -> 20,979.53 | D24: =C43/D43*1000000 -> 58,573.53 | E24: =D43/E43/1000 -> 0.83 | F24: =E43/F43 -> 0.83 | G24: =F43/G43 -> 0.55 | H24: =G43/H43*1000 -> 1.11 | I24: =H43/I43 -> 0.85 | J24: =IF(PRODUCT(D24:I24)-C24<0.0001,"prawidłowo","nieprawidłowo") -> prawidłowo
B25: MAZOWIECKIE | C25: =C44/I44*1000000 -> 34,806.79 | D25: =C44/D44*1000000 -> 85,195.41 | E25: =D44/E44/1000 -> 1.06 | F25: =E44/F44 -> 0.85 | G25: 0.56 | H25: =G44/H44*1000 -> 0.95 | I25: =H44/I44 -> 0.84 | J25: =IF(PRODUCT(D25:I25)-C25<0.0001,"prawidłowo","nieprawidłowo") -> prawidłowo
B26: MAŁOPOLSKIE | C26: 20,048.76 | D26: 58,984.33 | E26: 0.89 | F26: 0.85 | G26: 0.56 | H26: 0.97 | I26: 0.83 | J26: prawidłowo
B27: ŚLĄSKIE | C27: 24,470.87 | D27: 73,203.10 | E27: 0.94 | F27: 0.81 | G27: 0.52 | H27: 0.99 | I27: 0.85 | J27: prawidłowo
B28: LUBELSKIE | C28: 15,881.27 | D28: 46,609.88 | E28: 0.80 | F28: 0.86 | G28: 0.57 | H28: 1.06 | I28: 0.83 | J28: prawidłowo
B29: PODKARPACKIE | C29: 16,335.89 | D29: 49,270.91 | E29: 0.93 | F29: 0.83 | G29: 0.54 | H29: 0.96 | I29: 0.82 | J29: prawidłowo
B30: PODLASKIE | C30: 16,787.68 | D30: 51,811.09 | E30: 0.90 | F30: 0.86 | G30: 0.56 | H30: 0.90 | I30: 0.83 | J30: prawidłowo
B31: ŚWIĘTOKRZYSKIE | C31: 17,387.45 | D31: 49,855.77 | E31: 0.88 | F31: 0.81 | G31: 0.54 | H31: 1.07 | I31: 0.84 | J31: prawidłowo
B32: LUBUSKIE | C32: 20,537.10 | D32: 68,952.26 | E32: 0.76 | F32: 0.81 | G32: 0.55 | H32: 1.06 | I32: 0.83 | J32: prawidłowo
B33: WIELKOPOLSKIE | C33: 24,417.50 | D33: 65,577.26 | E33: 0.98 | F33: 0.83 | G33: 0.57 | H33: 0.96 | I33: 0.83 | J33: prawidłowo
B34: ZACHODNIOPOMORSKIE | C34: 20,565.14 | D34: 68,938.33 | E34: 0.92 | F34: 0.77 | G34: 0.54 | H34: 0.93 | I34: 0.84 | J34: prawidłowo
B35: DOLNOŚLĄSKIE | C35: 23,451.72 | D35: 73,698.27 | E35: 0.92 | F35: 0.77 | G35: 0.54 | H35: 0.97 | I35: 0.85 | J35: prawidłowo
B36: OPOLSKIE | C36: 18,938.20 | D36: 65,415.12 | E36: 0.86 | F36: 0.83 | G36: 0.54 | H36: 0.88 | I36: 0.85 | J36: prawidłowo
B37: KUJAWSKO-POMORSKIE | C37: 19,600.60 | D37: 61,165.47 | E37: 0.90 | F37: 0.80 | G37: 0.56 | H37: 0.96 | I37: 0.83 | J37: prawidłowo
B38: POMORSKIE | C38: 22,395.65 | D38: 71,697.00 | E38: 0.99 | F38: 0.81 | G38: 0.54 | H38: 0.88 | I38: 0.83 | J38: prawidłowo
B39: WARMIŃSKO-MAZURSKIE | C39: 17,083.15 | D39: 60,449.85 | E39: 0.84 | F39: 0.79 | G39: 0.52 | H39: 0.99 | I39: 0.82 | J39: prawidłowo
B40: POLSKA | C40: 22,664.20 | D40: 66,422.69 | E40: 0.92 | F40: 0.82 | G40: 0.55 | H40: 0.98 | I40: 0.84 | J40: prawidłowo
B42: Dane | C42: WDB_i | D42: PP_i | E42: PZ_i | F42: AZ_i | G42: NB15+_i | H42: N15+_i | I42: N_i
B43: ŁÓDZKIE | C43: 54074 | D43: 923181.5349 | E43: 1114 | F43: 1348 | G43: 2438 | H43: 2193794 | I43: 2577465
B44: MAZOWIECKIE | C44: 179524 | D44: 2107202.813 | E44: 1979 | F44: 2321 | G44: 4142 | H44: 4348777 | I44: 5157729
B45: MAŁOPOLSKIE | C45: 65483 | D45: 1110176.182 | E45: 1245 | F45: 1470 | G45: 2626 | H45: 2700024 | I45: 3266187
B46: ŚLĄSKIE | C46: 114665 | D46: 1566395.42 | E46: 1666 | F46: 2056 | G46: 3937 | H46: 3996187 | I46: 4685775
B47: LUBELSKIE | C47: 34615 | D47: 742653.7304 | E47: 932 | F47: 1086 | G47: 1915 | H47: 1810372 | I47: 2179611
B48: PODKARPACKIE | C48: 34277 | D48: 695684.2844 | E48: 747 | F48: 898 | G48: 1654 | H48: 1719212 | I48: 2098263
B49: PODLASKIE | C49: 20140 | D49: 388719.8585 | E49: 430 | F49: 501 | G49: 895 | H49: 997544 | I49: 1199689
B50: ŚWIĘTOKRZYSKIE | C50: 22343 | D50: 448152.7858 | E50: 508 | F50: 627 | G50: 1153 | H50: 1078138 | I50: 1285007
B51: LUBUSKIE | C51: 20726 | D51: 300584.7671 | E51: 398 | F51: 491 | G51: 894 | H51: 842231 | I51: 1009198
B52: WIELKOPOLSKIE | C52: 82346 | D52: 1255709.706 | E52: 1275 | F52: 1538 | G52: 2699 | H52: 2797203 | I52: 3372417
B53: ZACHODNIOPOMORSKIE | C53: 34841 | D53: 505393.7044 | E53: 552 | F53: 713 | G53: 1318 | H53: 1420768 | I53: 1694178
B54: DOLNOŚLĄSKIE | C54: 67734 | D54: 919071.7362 | E54: 1003 | F54: 1301 | G54: 2389 | H54: 2459998 | I54: 2888232
B55: OPOLSKIE | C55: 19836 | D55: 303232.6385 | E55: 351 | F55: 424 | G55: 786 | H55: 889122 | I55: 1047407
B56: KUJAWSKO-POMORSKIE | C56: 40539 | D56: 662775.8606 | E56: 740 | F56: 925 | G56: 1659 | H56: 1719440 | I56: 2068253
B57: POMORSKIE | C57: 49249 | D57: 686904.5726 | E57: 695 | F57: 855 | G57: 1596 | H57: 1819211 | I57: 2199043
B58: WARMIŃSKO-MAZURSKIE | C58: 24405 | D58: 403723.1191 | E58: 482 | F58: 607 | G58: 1160 | H58: 1175859 | I58: 1428601
B59: POLSKA | C59: 864799 | D59: 13019631.33 | E59: 14116 | F59: 17161 | G59: 31259 | H59: 31967880 | I59: 38157055

Sheet 2004 (hidden)
A1: DEKOMPOZYCJA RÓŻNIC W POZIOMIE WDB PER CAPITA
A2: 2004
B3: Różnice względem średniej | C3: WDB per capita | D3: WDB na 1 pracującego | E3: Współczynnik dojazdów netto | F3: Udział pracujących wśród aktwnych zawodowo | G3: Współczynnik aktywności zawodowej | H3: Wskaźnik różnicy w metodologii BAEL/demo | I3: Wskaźnik struktury wiekowej | J3: Interakcje
C4: WDB_i/N_i | D4: WDB_i/Pp_i | E4: Pp_i/Pz_i | F4: Pz_i/Az_i | G4: Az_i/NB15+_i | H4: NB15+_i/N15+_i | I4: Ni15+_i/N_i
B5: ŁÓDZKIE | C5: =(C24-C$40)/C$40 -> -7.8% | D5: =(D24-D$40)/D$40 -> -11.7% | E5: =(E24-E$40)/E$40 -> -11.0% | F5: =(F24-F$40)/F$40 -> 0.2% | G5: =(G24-G$40)/G$40 -> 0.6% | H5: =(H24-H$40)/H$40 -> 14.5% | I5: =(I24-I$40)/I$40 -> 1.7% | J5: =C5-SUM(D5:I5) -> -2.1%
B6: MAZOWIECKIE | C6: =(C25-C$40)/C$40 -> 50.5% | D6: 25.1% | E6: 13.9% | F6: 5.4% | G6: 2.0% | H6: -2.6% | I6: 0.8% | J6: =C6-SUM(D6:I6) -> 5.8%
B7: MAŁOPOLSKIE | C7: -11.6% | D7: -11.3% | E7: -3.4% | F7: 2.1% | G7: 3.9% | H7: -1.6% | I7: -1.4% | J7: -0.1%
B8: ŚLĄSKIE | C8: 11.9% | D8: 13.4% | E8: 3.2% | F8: -0.4% | G8: -6.4% | H8: 0.7% | I8: 1.9% | J8: -0.5%
B9: LUBELSKIE | C9: -29.1% | D9: -28.6% | E9: -12.4% | F9: 2.7% | G9: 4.6% | H9: 6.5% | I9: -0.9% | J9: -1.0%
B10: PODKARPACKIE | C10: -27.3% | D10: -25.8% | E10: 1.0% | F10: 2.8% | G10: -1.7% | H10: -1.7% | I10: -2.5% | J10: 0.5%
B11: PODLASKIE | C11: -26.2% | D11: -22.7% | E11: -1.7% | F11: 4.4% | G11: 2.1% | H11: -8.0% | I11: -0.9% | J11: 0.6%
B12: ŚWIĘTOKRZYSKIE | C12: -20.8% | D12: -22.5% | E12: -1.1% | F12: -2.0% | G12: -3.6% | H12: 9.3% | I12: 0.1% | J12: -1.0%
B13: LUBUSKIE | C13: -11.2% | D13: 3.7% | E13: -17.1% | F13: -5.2% | G13: 0.2% | H13: 9.3% | I13: -0.4% | J13: -1.6%
B14: WIELKOPOLSKIE | C14: 7.1% | D14: -1.6% | E14: 5.6% | F14: 1.1% | G14: 4.5% | H14: -1.5% | I14: -1.0% | J14: -0.0%
B15: ZACHODNIOPOMORSKIE | C15: -9.7% | D15: 3.8% | E15: -2.8% | F15: -5.9% | G15: -0.7% | H15: -4.3% | I15: 0.1% | J15: 0.1%
B16: DOLNOŚLĄSKIE | C16: 1.4% | D16: 8.6% | E16: 2.9% | F16: -7.4% | G16: -2.2% | H16: -1.6% | I16: 1.7% | J16: -0.7%
B17: OPOLSKIE | C17: -14.2% | D17: 1.4% | E17: -0.5% | F17: 1.4% | G17: -4.2% | H17: -13.6% | I17: 1.2% | J17: -0.0%
B18: KUJAWSKO-POMORSKIE | C18: -11.9% | D18: -6.2% | E18: -8.2% | F18: -3.9% | G18: 2.9% | H18: 4.3% | I18: -0.8% | J18: 0.0%
B19: POMORSKIE | C19: -1.8% | D19: 7.2% | E19: 6.7% | F19: -1.4% | G19: -2.8% | H19: -9.4% | I19: -1.2% | J19: -1.0%
B20: WARMIŃSKO-MAZURSKIE | C20: -24.3% | D20: -7.4% | E20: -9.6% | F20: -4.1% | G20: -2.3% | H20: -1.6% | I20: -1.9% | J20: 2.6%
B22: Wartości | C22: WDB per capita | D22: WDB na 1 pracującego | E22: Współczynnik dojazdów netto | F22: Udział pracujących wśród aktwnych zawodowo | G22: Współczynnik aktywności zawodowej | H22: Wskaźnik różnicy w metodologii BAEL/demo | I22: Wskaźnik struktury wiekowej | J22: Weryfikacja
C23: WDB_i/N_i | D23: WDB_i/Pp_i | E23: Pp_i/Pz_i | F23: Pz_i/Az_i | G23: Az_i/NB15+_i | H23: NB15+_i/N15+_i | I23: Ni15+_i/N_i
B24: ŁÓDZKIE | C24: =C43/I43*1000000 -> 19,804.06 | D24: =C43/D43*1000000 -> 56,062.88 | E24: =D43/E43/1000 -> 0.83 | F24: =E43/F43 -> 0.81 | G24: =F43/G43 -> 0.55 | H24: =G43/H43*1000 -> 1.12 | I24: =H43/I43 -> 0.85 | J24: =IF(PRODUCT(D24:I24)-C24<0.0001,"prawidłowo","nieprawidłowo") -> prawidłowo
B25: MAZOWIECKIE | C25: =C44/I44*1000000 -> 32,309.77 | D25: =C44/D44*1000000 -> 79,453.29 | E25: =D44/E44/1000 -> 1.07 | F25: =E44/F44 -> 0.85 | G25: 0.56 | H25: =G44/H44*1000 -> 0.95 | I25: =H44/I44 -> 0.84 | J25: =IF(PRODUCT(D25:I25)-C25<0.0001,"prawidłowo","nieprawidłowo") -> prawidłowo
B26: MAŁOPOLSKIE | C26: 18,971.53 | D26: 56,354.05 | E26: 0.90 | F26: 0.83 | G26: 0.57 | H26: 0.96 | I26: 0.82 | J26: prawidłowo
B27: ŚLĄSKIE | C27: 24,019.89 | D27: 72,003.12 | E27: 0.97 | F27: 0.81 | G27: 0.51 | H27: 0.99 | I27: 0.85 | J27: prawidłowo
B28: LUBELSKIE | C28: 15,215.39 | D28: 45,318.78 | E28: 0.82 | F28: 0.83 | G28: 0.57 | H28: 1.04 | I28: 0.83 | J28: prawidłowo
B29: PODKARPACKIE | C29: 15,598.37 | D29: 47,124.77 | E29: 0.94 | F29: 0.83 | G29: 0.54 | H29: 0.96 | I29: 0.81 | J29: prawidłowo
B30: PODLASKIE | C30: 15,852.96 | D30: 49,092.89 | E30: 0.92 | F30: 0.85 | G30: 0.56 | H30: 0.90 | I30: 0.83 | J30: prawidłowo
B31: ŚWIĘTOKRZYSKIE | C31: 17,005.60 | D31: 49,219.16 | E31: 0.93 | F31: 0.79 | G31: 0.53 | H31: 1.07 | I31: 0.83 | J31: prawidłowo
B32: LUBUSKIE | C32: 19,072.15 | D32: 65,855.29 | E32: 0.78 | F32: 0.77 | G32: 0.55 | H32: 1.07 | I32: 0.83 | J32: prawidłowo
B33: WIELKOPOLSKIE | C33: 22,991.23 | D33: 62,504.89 | E33: 0.99 | F33: 0.82 | G33: 0.57 | H33: 0.96 | I33: 0.82 | J33: prawidłowo
B34: ZACHODNIOPOMORSKIE | C34: 19,380.89 | D34: 65,938.24 | E34: 0.91 | F34: 0.76 | G34: 0.54 | H34: 0.94 | I34: 0.83 | J34: prawidłowo
B35: DOLNOŚLĄSKIE | C35: 21,761.43 | D35: 68,985.68 | E35: 0.96 | F35: 0.75 | G35: 0.54 | H35: 0.96 | I35: 0.85 | J35: prawidłowo
B36: OPOLSKIE | C36: 18,413.15 | D36: 64,363.86 | E36: 0.93 | F36: 0.82 | G36: 0.52 | H36: 0.85 | I36: 0.84 | J36: prawidłowo
B37: KUJAWSKO-POMORSKIE | C37: 18,910.60 | D37: 59,532.02 | E37: 0.86 | F37: 0.78 | G37: 0.56 | H37: 1.02 | I37: 0.83 | J37: prawidłowo
B38: POMORSKIE | C38: 21,074.36 | D38: 68,095.23 | E38: 1.00 | F38: 0.80 | G38: 0.53 | H38: 0.89 | I38: 0.82 | J38: prawidłowo
B39: WARMIŃSKO-MAZURSKIE | C39: 16,256.58 | D39: 58,817.57 | E39: 0.85 | F39: 0.78 | G39: 0.53 | H39: 0.96 | I39: 0.82 | J39: prawidłowo
B40: POLSKA | C40: 21,469.94 | D40: 63,499.67 | E40: 0.94 | F40: 0.81 | G40: 0.55 | H40: 0.98 | I40: 0.83 | J40: prawidłowo
B42: Dane | C42: WDB_i | D42: PP_i | E42: PZ_i | F42: AZ_i | G42: NB15+_i | H42: N15+_i | I42: N_i
B43: ŁÓDZKIE | C43: 51247 | D43: 914098.628 | E43: 1098 | F43: 1352 | G43: 2456 | H43: 2192249 | I43: 2587702
B44: MAZOWIECKIE | C44: 166266 | D44: 2092625.836 | E44: 1963 | F44: 2299 | G44: 4119 | H44: 4320447 | I44: 5145997
B45: MAŁOPOLSKIE | C45: 61851 | D45: 1097543.194 | E45: 1214 | F45: 1467 | G45: 2580 | H45: 2678380 | I45: 3260201
B46: ŚLĄSKIE | C46: 112912 | D46: 1568154.363 | E46: 1624 | F46: 2012 | G46: 3930 | H46: 3988088 | I46: 4700771
B47: LUBELSKIE | C47: 33248 | D47: 733647.3673 | E47: 895 | F47: 1076 | G47: 1880 | H47: 1802892 | I47: 2185156
B48: PODKARPACKIE | C48: 32725 | D48: 694433.1587 | E48: 735 | F48: 882 | G48: 1640 | H48: 1704327 | I48: 2097975
B49: PODLASKIE | C49: 19062 | D49: 388284.3457 | E49: 422 | F49: 499 | G49: 893 | H49: 992164 | I49: 1202425
B50: ŚWIĘTOKRZYSKIE | C50: 21915 | D50: 445253.4092 | E50: 481 | F50: 606 | G50: 1149 | H50: 1074107 | I50: 1288693
B51: LUBUSKIE | C51: 19247 | D51: 292262.0239 | E51: 377 | F51: 491 | G51: 896 | H51: 837132 | I51: 1009168
B52: WIELKOPOLSKIE | C52: 77372 | D52: 1237855.201 | E52: 1253 | F52: 1530 | G52: 2676 | H52: 2775020 | I52: 3365283
B53: ZACHODNIOPOMORSKIE | C53: 32848 | D53: 498163.0965 | E53: 548 | F53: 719 | G53: 1323 | H53: 1413014 | I53: 1694865
B54: DOLNOŚLĄSKIE | C54: 62957 | D54: 912609.6728 | E54: 948 | F54: 1264 | G54: 2362 | H54: 2451296 | I54: 2893055
B55: OPOLSKIE | C55: 19362 | D55: 300820.9995 | E55: 323 | F55: 393 | G55: 750 | H55: 886394 | I55: 1051531
B56: KUJAWSKO-POMORSKIE | C56: 39112 | D56: 656991.0309 | E56: 765 | F56: 982 | G56: 1745 | H56: 1708658 | I56: 2068258
B57: POMORSKIE | C57: 46238 | D57: 679019.7036 | E57: 680 | F57: 851 | G57: 1601 | H57: 1805006 | I57: 2194041
B58: WARMIŃSKO-MAZURSKIE | C58: 23226 | D58: 394881.9947 | E58: 467 | F58: 601 | G58: 1124 | H58: 1167424 | I58: 1428714
B59: POLSKA | C59: 819590 | D59: 12906995.5 | E59: 13796 | F59: 17026 | G59: 31124 | H59: 31796598 | I59: 38173835

Sheet 2003 (hidden)
A1: DEKOMPOZYCJA RÓŻNIC W POZIOMIE WDB PER CAPITA
A2: 2003
B3: Różnice względem średniej | C3: WDB per capita | D3: WDB na 1 pracującego | E3: Współczynnik dojazdów netto | F3: Udział pracujących wśród aktwnych zawodowo | G3: Współczynnik aktywności zawodowej | H3: Wskaźnik różnicy w metodologii BAEL/demo | I3: Wskaźnik struktury wiekowej | J3: Interakcje
C4: WDB_i/N_i | D4: WDB_i/Pp_i | E4: Pp_i/Pz_i | F4: Pz_i/Az_i | G4: Az_i/NB15+_i | H4: NB15+_i/N15+_i | I4: Ni15+_i/N_i
B5: ŁÓDZKIE | C5: =(C24-C$40)/C$40 -> -7.2% | D5: =(D24-D$40)/D$40 -> -10.5% | E5: =(E24-E$40)/E$40 -> -10.9% | F5: =(F24-F$40)/F$40 -> -0.0% | G5: =(G24-G$40)/G$40 -> 0.8% | H5: =(H24-H$40)/H$40 -> 13.5% | I5: =(I24-I$40)/I$40 -> 1.8% | J5: =C5-SUM(D5:I5) -> -1.8%
B6: MAZOWIECKIE | C6: =(C25-C$40)/C$40 -> 51.3% | D6: 25.9% | E6: 17.1% | F6: 4.1% | G6: 4.6% | H6: -6.7% | I6: 1.0% | J6: =C6-SUM(D6:I6) -> 5.3%
B7: MAŁOPOLSKIE | C7: -10.8% | D7: -10.4% | E7: -4.9% | F7: 2.1% | G7: 3.5% | H7: 0.5% | I7: -1.4% | J7: -0.2%
B8: ŚLĄSKIE | C8: 8.5% | D8: 9.1% | E8: 9.1% | F8: -0.7% | G8: -7.6% | H8: -2.4% | I8: 1.9% | J8: -0.8%
B9: LUBELSKIE | C9: -27.6% | D9: -27.2% | E9: -13.6% | F9: 4.5% | G9: 4.8% | H9: 6.0% | I9: -1.0% | J9: -1.2%
B10: PODKARPACKIE | C10: -25.3% | D10: -23.9% | E10: -4.5% | F10: 2.3% | G10: 2.5% | H10: 0.7% | I10: -2.7% | J10: 0.3%
B11: PODLASKIE | C11: -24.6% | D11: -21.6% | E11: -3.5% | F11: 2.2% | G11: 1.6% | H11: -3.0% | I11: -1.1% | J11: 0.8%
B12: ŚWIĘTOKRZYSKIE | C12: -20.0% | D12: -21.8% | E12: -2.2% | F12: 0.5% | G12: -5.5% | H12: 10.2% | I12: -0.0% | J12: -1.2%
B13: LUBUSKIE | C13: -13.5% | D13: 1.8% | E13: -14.2% | F13: -6.1% | G13: -2.4% | H13: 8.5% | I13: -0.4% | J13: -0.7%
B14: WIELKOPOLSKIE | C14: 5.5% | D14: -1.9% | E14: -1.0% | F14: 3.1% | G14: 4.7% | H14: 1.7% | I14: -1.0% | J14: -0.1%
B15: ZACHODNIOPOMORSKIE | C15: -7.6% | D15: 5.8% | E15: -3.4% | F15: -7.3% | G15: -3.3% | H15: 0.7% | I15: 0.1% | J15: -0.3%
B16: DOLNOŚLĄSKIE | C16: 2.2% | D16: 9.6% | E16: 7.7% | F16: -7.9% | G16: -3.2% | H16: -4.5% | I16: 1.8% | J16: -1.2%
B17: OPOLSKIE | C17: -20.2% | D17: -5.7% | E17: -0.5% | F17: 1.9% | G17: -7.7% | H17: -10.5% | I17: 1.0% | J17: 1.3%
B18: KUJAWSKO-POMORSKIE | C18: -11.1% | D18: -6.1% | E18: -10.0% | F18: -2.8% | G18: 1.7% | H18: 7.2% | I18: -0.8% | J18: -0.4%
B19: POMORSKIE | C19: -0.8% | D19: 7.9% | E19: 4.7% | F19: -1.1% | G19: -1.3% | H19: -9.0% | I19: -1.2% | J19: -0.9%
B20: WARMIŃSKO-MAZURSKIE | C20: -23.3% | D20: -5.7% | E20: -9.7% | F20: -5.4% | G20: -1.6% | H20: -1.2% | I20: -2.0% | J20: 2.4%
B22: Wartości | C22: WDB per capita | D22: WDB na 1 pracującego | E22: Współczynnik dojazdów netto | F22: Udział pracujących wśród aktwnych zawodowo | G22: Współczynnik aktywności zawodowej | H22: Wskaźnik różnicy w metodologii BAEL/demo | I22: Wskaźnik struktury wiekowej | J22: Weryfikacja
C23: WDB_i/N_i | D23: WDB_i/Pp_i | E23: Pp_i/Pz_i | F23: Pz_i/Az_i | G23: Az_i/NB15+_i | H23: NB15+_i/N15+_i | I23: Ni15+_i/N_i
B24: ŁÓDZKIE | C24: =C43/I43*1000000 -> 18,117.17 | D24: =C43/D43*1000000 -> 51,501.77 | E24: =D43/E43/1000 -> 0.85 | F24: =E43/F43 -> 0.80 | G24: =F43/G43 -> 0.55 | H24: =G43/H43*1000 -> 1.11 | I24: =H43/I43 -> 0.84 | J24: =IF(PRODUCT(D24:I24)-C24<0.0001,"prawidłowo","nieprawidłowo") -> prawidłowo
B25: MAZOWIECKIE | C25: =C44/I44*1000000 -> 29,523.54 | D25: =C44/D44*1000000 -> 72,405.34 | E25: =D44/E44/1000 -> 1.11 | F25: =E44/F44 -> 0.84 | G25: 0.57 | H25: =G44/H44*1000 -> 0.91 | I25: =H44/I44 -> 0.84 | J25: =IF(PRODUCT(D25:I25)-C25<0.0001,"prawidłowo","nieprawidłowo") -> prawidłowo
B26: MAŁOPOLSKIE | C26: 17,401.44 | D26: 51,567.19 | E26: 0.90 | F26: 0.82 | G26: 0.57 | H26: 0.98 | I26: 0.82 | J26: prawidłowo
B27: ŚLĄSKIE | C27: 21,180.78 | D27: 62,755.75 | E27: 1.04 | F27: 0.80 | G27: 0.51 | H27: 0.96 | I27: 0.84 | J27: prawidłowo
B28: LUBELSKIE | C28: 14,118.93 | D28: 41,902.11 | E28: 0.82 | F28: 0.84 | G28: 0.57 | H28: 1.04 | I28: 0.82 | J28: prawidłowo
B29: PODKARPACKIE | C29: 14,571.00 | D29: 43,780.27 | E29: 0.91 | F29: 0.82 | G29: 0.56 | H29: 0.99 | I29: 0.81 | J29: prawidłowo
B30: PODLASKIE | C30: 14,708.12 | D30: 45,092.97 | E30: 0.92 | F30: 0.82 | G30: 0.56 | H30: 0.95 | I30: 0.82 | J30: prawidłowo
B31: ŚWIĘTOKRZYSKIE | C31: 15,620.19 | D31: 44,996.15 | E31: 0.93 | F31: 0.81 | G31: 0.52 | H31: 1.08 | I31: 0.83 | J31: prawidłowo
B32: LUBUSKIE | C32: 16,871.76 | D32: 58,538.34 | E32: 0.82 | F32: 0.75 | G32: 0.53 | H32: 1.06 | I32: 0.82 | J32: prawidłowo
B33: WIELKOPOLSKIE | C33: 20,587.32 | D33: 56,405.29 | E33: 0.94 | F33: 0.83 | G33: 0.57 | H33: 1.00 | I33: 0.82 | J33: prawidłowo
B34: ZACHODNIOPOMORSKIE | C34: 18,036.96 | D34: 60,856.94 | E34: 0.92 | F34: 0.75 | G34: 0.53 | H34: 0.99 | I34: 0.83 | J34: prawidłowo
B35: DOLNOŚLĄSKIE | C35: 19,948.50 | D35: 63,030.20 | E35: 1.02 | F35: 0.74 | G35: 0.53 | H35: 0.93 | I35: 0.84 | J35: prawidłowo
B36: OPOLSKIE | C36: 15,565.51 | D36: 54,245.79 | E36: 0.95 | F36: 0.82 | G36: 0.51 | H36: 0.88 | I36: 0.84 | J36: prawidłowo
B37: KUJAWSKO-POMORSKIE | C37: 17,348.42 | D37: 54,036.67 | E37: 0.86 | F37: 0.78 | G37: 0.56 | H37: 1.05 | I37: 0.82 | J37: prawidłowo
B38: POMORSKIE | C38: 19,356.14 | D38: 62,092.42 | E38: 1.00 | F38: 0.79 | G38: 0.54 | H38: 0.89 | I38: 0.82 | J38: prawidłowo
B39: WARMIŃSKO-MAZURSKIE | C39: 14,968.31 | D39: 54,232.98 | E39: 0.86 | F39: 0.76 | G39: 0.54 | H39: 0.97 | I39: 0.81 | J39: prawidłowo
B40: POLSKA | C40: 19,513.04 | D40: 57,524.57 | E40: 0.95 | F40: 0.80 | G40: 0.55 | H40: 0.98 | I40: 0.83 | J40: prawidłowo
B42: Dane | C42: WDB_i | D42: PP_i | E42: PZ_i | F42: AZ_i | G42: NB15+_i | H42: N15+_i | I42: N_i
B43: ŁÓDZKIE | C43: 47052 | D43: 913599.684 | E43: 1078 | F43: 1342 | G43: 2433 | H43: 2189366 | I43: 2597094
B44: MAZOWIECKIE | C44: 151625 | D44: 2094113.52 | E44: 1880 | F44: 2247 | G44: 3923 | H44: 4291917 | I44: 5135732
B45: MAŁOPOLSKIE | C45: 56606 | D45: 1097713.582 | E45: 1213 | F45: 1479 | G45: 2611 | H45: 2654448 | I45: 3252949
B46: ŚLĄSKIE | C46: 99867 | D46: 1591360.24 | E46: 1533 | F46: 1922 | G46: 3799 | H46: 3975782 | I46: 4714982
B47: LUBELSKIE | C47: 30937 | D47: 738316.0226 | E47: 898 | F47: 1069 | G47: 1863 | H47: 1795039 | I47: 2191172
B48: PODKARPACKIE | C48: 30559 | D48: 698008.547 | E48: 768 | F48: 934 | G48: 1665 | H48: 1688561 | I48: 2097248
B49: PODLASKIE | C49: 17725 | D49: 393076.8024 | E49: 428 | F49: 521 | G49: 937 | H49: 986213 | I49: 1205117
B50: ŚWIĘTOKRZYSKIE | C50: 20175 | D50: 448371.6917 | E50: 482 | F50: 597 | G50: 1154 | H50: 1069009 | I50: 1291598
B51: LUBUSKIE | C51: 17020 | D51: 290749.5984 | E51: 356 | F51: 472 | G51: 883 | H51: 831353 | I51: 1008786
B52: WIELKOPOLSKIE | C52: 69172 | D52: 1226338.786 | E52: 1302 | F52: 1571 | G52: 2740 | H52: 2752529 | I52: 3359932
B53: ZACHODNIOPOMORSKIE | C53: 30592 | D53: 502687.1134 | E53: 547 | F53: 734 | G53: 1386 | H53: 1405229 | I53: 1696073
B54: DOLNOŚLĄSKIE | C54: 57817 | D54: 917290.3839 | E54: 895 | F54: 1210 | G54: 2283 | H54: 2441794 | I54: 2898313
B55: OPOLSKIE | C55: 16432 | D55: 302917.5389 | E55: 320 | F55: 391 | G55: 774 | H55: 882821 | I55: 1055667
B56: KUJAWSKO-POMORSKIE | C56: 35879 | D56: 663975.0967 | E56: 775 | F56: 992 | G56: 1782 | H56: 1697669 | I56: 2068142
B57: POMORSKIE | C57: 42369 | D57: 682353.8717 | E57: 685 | F57: 862 | G57: 1596 | H57: 1790237 | I57: 2188918
B58: WARMIŃSKO-MAZURSKIE | C58: 21388 | D58: 394372.5901 | E58: 459 | F58: 604 | G58: 1121 | H58: 1158470 | I58: 1428885
B59: POLSKA | C59: 745215 | D59: 12954725.22 | E59: 13616 | F59: 16945 | G59: 30952 | H59: 31610437 | I59: 38190608

Sheet 2002 (hidden)
A1: DEKOMPOZYCJA RÓŻNIC W POZIOMIE WDB PER CAPITA
A2: 2002
B3: Różnice względem średniej | C3: WDB per capita | D3: WDB na 1 pracującego | E3: Współczynnik dojazdów netto | F3: Udział pracujących wśród aktwnych zawodowo | G3: Współczynnik aktywności zawodowej | H3: Wskaźnik różnicy w metodologii BAEL/demo | I3: Wskaźnik struktury wiekowej | J3: Interakcje
C4: WDB_i/N_i | D4: WDB_i/Pp_i | E4: Pp_i/Pz_i | F4: Pz_i/Az_i | G4: Az_i/NB15+_i | H4: NB15+_i/N15+_i | I4: Ni15+_i/N_i
B5: ŁÓDZKIE | C5: =(C24-C$40)/C$40 -> -8.8% | D5: =(D24-D$40)/D$40 -> -11.9% | E5: =(E24-E$40)/E$40 -> -9.9% | F5: =(F24-F$40)/F$40 -> -0.5% | G5: =(G24-G$40)/G$40 -> 1.2% | H5: =(H24-H$40)/H$40 -> 11.9% | I5: =(I24-I$40)/I$40 -> 2.0% | J5: =C5-SUM(D5:I5) -> -1.6%
B6: MAZOWIECKIE | C6: =(C25-C$40)/C$40 -> 51.3% | D6: 26.2% | E6: 14.6% | F6: 3.6% | G6: 5.4% | H6: -5.2% | I6: 1.1% | J6: =C6-SUM(D6:I6) -> 5.6%
B7: MAŁOPOLSKIE | C7: -11.5% | D7: -10.8% | E7: -5.9% | F7: 4.7% | G7: 2.3% | H7: 0.0% | I7: -1.4% | J7: -0.2%
B8: ŚLĄSKIE | C8: 8.8% | D8: 8.8% | E8: 11.2% | F8: -0.2% | G8: -8.7% | H8: -3.1% | I8: 1.9% | J8: -1.1%
B9: LUBELSKIE | C9: -27.8% | D9: -27.0% | E9: -15.6% | F9: 4.3% | G9: 5.8% | H9: 7.3% | I9: -1.1% | J9: -1.6%
B10: PODKARPACKIE | C10: -25.9% | D10: -24.1% | E10: -1.8% | F10: 2.3% | G10: 3.7% | H10: -3.4% | I10: -3.0% | J10: 0.4%
B11: PODLASKIE | C11: -23.8% | D11: -20.5% | E11: -6.9% | F11: 3.6% | G11: 2.8% | H11: -2.1% | I11: -1.3% | J11: 0.6%
B12: ŚWIĘTOKRZYSKIE | C12: -20.8% | D12: -22.3% | E12: -2.6% | F12: 1.3% | G12: -6.4% | H12: 10.5% | I12: -0.0% | J12: -1.2%
B13: LUBUSKIE | C13: -12.0% | D13: 2.0% | E13: -11.9% | F13: -7.8% | G13: -1.9% | H13: 8.8% | I13: -0.5% | J13: -0.7%
B14: WIELKOPOLSKIE | C14: 4.1% | D14: -2.4% | E14: 2.3% | F14: 2.2% | G14: 2.6% | H14: 0.5% | I14: -1.0% | J14: -0.0%
B15: ZACHODNIOPOMORSKIE | C15: -4.4% | D15: 7.2% | E15: -1.7% | F15: -7.8% | G15: -3.5% | H15: 1.8% | I15: 0.1% | J15: -0.6%
B16: DOLNOŚLĄSKIE | C16: 2.7% | D16: 10.0% | E16: 6.4% | F16: -7.6% | G16: -1.7% | H16: -5.2% | I16: 1.8% | J16: -1.1%
B17: OPOLSKIE | C17: -18.6% | D17: -4.4% | E17: -4.7% | F17: 0.3% | G17: -3.5% | H17: -8.4% | I17: 0.9% | J17: 1.3%
B18: KUJAWSKO-POMORSKIE | C18: -10.2% | D18: -5.4% | E18: -10.8% | F18: -1.8% | G18: 0.0% | H18: 9.2% | I18: -0.8% | J18: -0.6%
B19: POMORSKIE | C19: 0.3% | D19: 8.5% | E19: 2.4% | F19: -2.1% | G19: 0.4% | H19: -7.0% | I19: -1.2% | J19: -0.7%
B20: WARMIŃSKO-MAZURSKIE | C20: -24.7% | D20: -7.5% | E20: -4.9% | F20: -7.7% | G20: -3.2% | H20: -2.0% | I20: -2.2% | J20: 2.8%
B22: Wartości | C22: WDB per capita | D22: WDB na 1 pracującego | E22: Współczynnik dojazdów netto | F22: Udział pracujących wśród aktwnych zawodowo | G22: Współczynnik aktywności zawodowej | H22: Wskaźnik różnicy w metodologii BAEL/demo | I22: Wskaźnik struktury wiekowej | J22: Weryfikacja
C23: WDB_i/N_i | D23: WDB_i/Pp_i | E23: Pp_i/Pz_i | F23: Pz_i/Az_i | G23: Az_i/NB15+_i | H23: NB15+_i/N15+_i | I23: Ni15+_i/N_i
B24: ŁÓDZKIE | C24: =C43/I43*1000000 -> 17,064.64 | D24: =C43/D43*1000000 -> 48,385.81 | E24: =D43/E43/1000 -> 0.85 | F24: =E43/F43 -> 0.80 | G24: =F43/G43 -> 0.56 | H24: =G43/H43*1000 -> 1.11 | I24: =H43/I43 -> 0.84 | J24: =IF(PRODUCT(D24:I24)-C24<0.0001,"prawidłowo","nieprawidłowo") -> prawidłowo
B25: MAZOWIECKIE | C25: =C44/I44*1000000 -> 28,303.50 | D25: =C44/D44*1000000 -> 69,300.04 | E25: =D44/E44/1000 -> 1.08 | F25: =E44/F44 -> 0.83 | G25: 0.58 | H25: =G44/H44*1000 -> 0.94 | I25: =H44/I44 -> 0.83 | J25: =IF(PRODUCT(D25:I25)-C25<0.0001,"prawidłowo","nieprawidłowo") -> prawidłowo
B26: MAŁOPOLSKIE | C26: 16,560.52 | D26: 48,967.78 | E26: 0.89 | F26: 0.84 | G26: 0.57 | H26: 0.99 | I26: 0.81 | J26: prawidłowo
B27: ŚLĄSKIE | C27: 20,348.80 | D27: 59,721.73 | E27: 1.05 | F27: 0.80 | G27: 0.51 | H27: 0.96 | I27: 0.84 | J27: prawidłowo
B28: LUBELSKIE | C28: 13,506.19 | D28: 40,085.18 | E28: 0.80 | F28: 0.84 | G28: 0.59 | H28: 1.06 | I28: 0.81 | J28: prawidłowo
B29: PODKARPACKIE | C29: 13,869.03 | D29: 41,699.73 | E29: 0.93 | F29: 0.82 | G29: 0.57 | H29: 0.96 | I29: 0.80 | J29: prawidłowo
B30: PODLASKIE | C30: 14,246.04 | D30: 43,667.91 | E30: 0.88 | F30: 0.83 | G30: 0.57 | H30: 0.97 | I30: 0.81 | J30: prawidłowo
B31: ŚWIĘTOKRZYSKIE | C31: 14,809.96 | D31: 42,643.90 | E31: 0.92 | F31: 0.81 | G31: 0.52 | H31: 1.09 | I31: 0.82 | J31: prawidłowo
B32: LUBUSKIE | C32: 16,459.10 | D32: 56,026.58 | E32: 0.83 | F32: 0.74 | G32: 0.54 | H32: 1.08 | I32: 0.82 | J32: prawidłowo
B33: WIELKOPOLSKIE | C33: 19,476.77 | D33: 53,603.10 | E33: 0.97 | F33: 0.82 | G33: 0.57 | H33: 0.99 | I33: 0.81 | J33: prawidłowo
B34: ZACHODNIOPOMORSKIE | C34: 17,878.12 | D34: 58,860.58 | E34: 0.93 | F34: 0.74 | G34: 0.53 | H34: 1.01 | I34: 0.82 | J34: prawidłowo
B35: DOLNOŚLĄSKIE | C35: 19,218.55 | D35: 60,426.68 | E35: 1.01 | F35: 0.74 | G35: 0.54 | H35: 0.94 | I35: 0.84 | J35: prawidłowo
B36: OPOLSKIE | C36: 15,234.56 | D36: 52,507.60 | E36: 0.90 | F36: 0.80 | G36: 0.53 | H36: 0.91 | I36: 0.83 | J36: prawidłowo
B37: KUJAWSKO-POMORSKIE | C37: 16,803.39 | D37: 51,956.59 | E37: 0.84 | F37: 0.79 | G37: 0.55 | H37: 1.08 | I37: 0.82 | J37: prawidłowo
B38: POMORSKIE | C38: 18,764.12 | D38: 59,572.15 | E38: 0.97 | F38: 0.78 | G38: 0.56 | H38: 0.92 | I38: 0.81 | J38: prawidłowo
B39: WARMIŃSKO-MAZURSKIE | C39: 14,095.71 | D39: 50,809.47 | E39: 0.90 | F39: 0.74 | G39: 0.54 | H39: 0.97 | I39: 0.80 | J39: prawidłowo
B40: POLSKA | C40: 18,707.36 | D40: 54,908.90 | E40: 0.94 | F40: 0.80 | G40: 0.55 | H40: 0.99 | I40: 0.82 | J40: prawidłowo
B42: Dane | C42: WDB_i | D42: PP_i | E42: PZ_i | F42: AZ_i | G42: NB15+_i | H42: N15+_i | I42: N_i
B43: ŁÓDZKIE | C43: 44494 | D43: 919567.0652 | E43: 1080 | F43: 1356 | G43: 2419 | H43: 2186088 | I43: 2607380
B44: MAZOWIECKIE | C44: 145158 | D44: 2094630.907 | E44: 1935 | F44: 2333 | G44: 3996 | H44: 4262681 | I44: 5128623
B45: MAŁOPOLSKIE | C45: 53610 | D45: 1094801.525 | E45: 1232 | F45: 1470 | G45: 2594 | H45: 2623191 | I45: 3237217
B46: ŚLĄSKIE | C46: 96281 | D46: 1612160.26 | E46: 1535 | F46: 1921 | G46: 3798 | H46: 3962760 | I46: 4731533
B47: LUBELSKIE | C47: 29673 | D47: 740248.6641 | E47: 928 | F47: 1111 | G47: 1895 | H47: 1786528 | I47: 2196992
B48: PODKARPACKIE | C48: 29195 | D48: 700124.4225 | E48: 755 | F48: 922 | G48: 1604 | H48: 1678738 | I48: 2105050
B49: PODLASKIE | C49: 17205 | D49: 393996.4479 | E49: 448 | F49: 540 | G49: 948 | H49: 979495 | I49: 1207704
B50: ŚWIĘTOKRZYSKIE | C50: 19192 | D50: 450052.5967 | E50: 489 | F50: 603 | G50: 1163 | H50: 1064828 | I50: 1295885
B51: LUBUSKIE | C51: 16594 | D51: 296180.8597 | E51: 356 | F51: 482 | G51: 887 | H51: 824230 | I51: 1008196
B52: WIELKOPOLSKIE | C52: 65350 | D52: 1219145.997 | E52: 1261 | F52: 1541 | G52: 2711 | H52: 2729237 | I52: 3355279
B53: ZACHODNIOPOMORSKIE | C53: 30352 | D53: 515659.1891 | E53: 555 | F53: 752 | G53: 1406 | H53: 1396946 | I53: 1697718
B54: DOLNOŚLĄSKIE | C54: 55824 | D54: 923830.3542 | E54: 919 | F54: 1242 | G54: 2279 | H54: 2430970 | I54: 2904694
B55: OPOLSKIE | C55: 16164 | D55: 307841.1229 | E55: 342 | F55: 426 | G55: 797 | H55: 879748 | I55: 1061009
B56: KUJAWSKO-POMORSKIE | C56: 34769 | D56: 669193.2413 | E56: 794 | F56: 1010 | G56: 1822 | H56: 1687215 | I56: 2069166
B57: POMORSKIE | C57: 40974 | D57: 687804.6745 | E57: 711 | F57: 907 | G57: 1631 | H57: 1773490 | I57: 2183636
B58: WARMIŃSKO-MAZURSKIE | C58: 20135 | D58: 396284.4086 | E58: 441 | F58: 597 | G58: 1113 | H58: 1148122 | I58: 1428449
B59: POLSKA | C59: 714968 | D59: 13020986.08 | E59: 13782 | F59: 17213 | G59: 31063 | H59: 31414267 | I59: 38218531

Sheet Łódzkie (hidden)
A1: DEKOMPOZYCJA RÓŻNIC W POZIOMIE WDB PER CAPITA
A2: ŁÓDZKIE
B3: Różnice względem średniej | C3: WDB per capita | D3: WDB na 1 pracującego | E3: Współczynnik dojazdów netto | F3: Udział pracujących wśród aktwnych zawodowo | G3: Współczynnik aktywności zawodowej | H3: Wskaźnik różnicy w metodologii BAEL/demo | I3: Wskaźnik struktury wiekowej
C4: WDB_i/N_i | D4: WDB_i/Pp_i | E4: Pp_i/Pz_i | F4: Pz_i/Az_i | G4: Az_i/NB15+_i | H4: NB15+_i/N15+_i*(N15+/NB15+) | I4: Ni15+_i/N_i
B5: 2013
B6: 2012 | C6: =(C21-C36)/C36 -> -6.7% | D6: =(D21-D36)/D36 -> -9.4% | E6: -11.8% | F6: -1.0% | G6: 1.1% | H6: 15.2% | I6: 1.3%
B7: 2011 | C7: =(C22-C37)/C37 -> -7.1% | D7: -10.5% | E7: -13.6% | F7: 0.4% | G7: 2.4% | H7: 15.4% | I7: 1.3%
B8: 2010 | C8: -7.0% | D8: -10.8% | E8: -12.6% | F8: 0.4% | G8: 1.8% | H8: 15.2% | I8: 1.3%
B9: 2009 | C9: -8.1% | D9: -11.5% | E9: -14.1% | F9: 0.7% | G9: -0.0% | H9: 18.5% | I9: 1.3%
B10: 2008 | C10: -6.8% | D10: -11.6% | E10: -16.4% | F10: 0.6% | G10: 2.0% | H10: 21.4% | I10: 1.4%
B11: 2007 | C11: -7.3% | D11: -12.1% | E11: -13.2% | F11: 0.3% | G11: 2.1% | H11: 16.9% | I11: 1.4%
B12: 2006 | C12: -7.5% | D12: -12.1% | E12: -8.4% | F12: 0.4% | G12: 0.8% | H12: 11.8% | I12: 1.5%
B13: 2005 | C13: -7.4% | D13: -11.8% | E13: -10.2% | F13: 0.5% | G13: 0.7% | H13: 13.6% | I13: 1.6%
B14: 2004 | C14: -7.8% | D14: -11.7% | E14: -11.0% | F14: 0.2% | G14: 0.6% | H14: 14.5% | I14: 1.7%
B15: 2003 | C15: -7.2% | D15: -10.5% | E15: -10.9% | F15: -0.0% | G15: 0.7% | H15: 13.5% | I15: 1.8%
B16: 2002 | C16: -8.8% | D16: -11.9% | E16: -9.9% | F16: -0.5% | G16: 1.2% | H16: 11.9% | I16: 2.0%
B18: Wskaźniki | C18: WDB per capita | D18: WDB na 1 pracującego | E18: Współczynnik dojazdów netto | F18: Udział pracujących wśród aktwnych zawodowo | G18: Współczynnik aktywności zawodowej | H18: Wskaźnik różnicy w metodologii BAEL/demo | I18: Wskaźnik struktury wiekowej
C19: WDB_i/N_i | D19: WDB_i/Pp_i | E19: Pp_i/Pz_i | F19: Pz_i/Az_i | G19: Az_i/NB15+_i | H19: NB15+_i/N15+_i | I19: Ni15+_i/N_i
B20: 2013
B21: 2012 | C21: 34,684.00 | D21: 93,385.62 | E21: 0.79 | F21: 0.89 | G21: 0.57 | H21: 1.09 | I21: 0.86
B22: 2011 | C22: 32,911.80 | D22: 87,608.58 | E22: 0.77 | F22: 0.91 | G22: 0.57 | H22: 1.09 | I22: 0.86
B23: 2010 | C23: 30,553.77 | D23: 81,650.02 | E23: 0.78 | F23: 0.91 | G23: 0.56 | H23: 1.09 | I23: 0.86
B24: 2009 | C24: 29,131.74 | D24: 76,169.44 | E24: 0.76 | F24: 0.92 | G24: 0.55 | H24: 1.15 | I24: 0.86
B25: 2008 | C25: 27,260.02 | D25: 69,538.01 | E25: 0.75 | F25: 0.93 | G25: 0.55 | H25: 1.18 | I25: 0.86
B26: 2007 | C26: 25,191.93 | D26: 66,817.24 | E26: 0.78 | F26: 0.91 | G26: 0.55 | H26: 1.14 | I26: 0.86
B27: 2006 | C27: 22,624.91 | D27: 62,259.57 | E27: 0.83 | F27: 0.87 | G27: 0.54 | H27: 1.09 | I27: 0.85
B28: 2005 | C28: 20,979.53 | D28: 58,573.53 | E28: 0.83 | F28: 0.83 | G28: 0.55 | H28: 1.11 | I28: 0.85
B29: 2004 | C29: 19,804.06 | D29: 56,062.88 | E29: 0.83 | F29: 0.81 | G29: 0.55 | H29: 1.12 | I29: 0.85
B30: 2003 | C30: 18,117.17 | D30: 51,501.77 | E30: 0.85 | F30: 0.80 | G30: 0.55 | H30: 1.11 | I30: 0.84
B31: 2002 | C31: 17,064.64 | D31: 48,385.81 | E31: 0.85 | F31: 0.80 | G31: 0.56 | H31: 1.11 | I31: 0.84
B33: Wskaźniki dla Polski | C33: WDB per capita | D33: WDB na 1 pracującego | E33: Współczynnik dojazdów netto | F33: Udział pracujących wśród aktwnych zawodowo | G33: Współczynnik aktywności zawodowej | H33: Wskaźnik różnicy w metodologii BAEL/demo | I33: Wskaźnik struktury wiekowej
C34: WDB/N | D34: WDB/Pp | E34: Pp/Pz | F34: Pz/Az | G34: Az/NB15+ | H34: NB15+/N15+ | I34: Ni15+/N
B35: 2013
B36: 2012 | C36: 37,159.37 | D36: 103,021.84 | E36: 0.89 | F36: 0.90 | G36: 0.56 | H36: 0.95 | I36: 0.85
B37: 2011 | C37: 35,435.31 | D37: 97,927.91 | E37: 0.90 | F37: 0.90 | G37: 0.56 | H37: 0.95 | I37: 0.85
B38: 2010 | C38: 32,855.16 | D38: 91,511.90 | E38: 0.89 | F38: 0.90 | G38: 0.55 | H38: 0.95 | I38: 0.85
B39: 2009 | C39: 31,695.72 | D39: 86,036.76 | E39: 0.89 | F39: 0.92 | G39: 0.55 | H39: 0.97 | I39: 0.85
B40: 2008 | C40: 29,239.45 | D40: 78,678.78 | E40: 0.90 | F40: 0.93 | G40: 0.54 | H40: 0.97 | I40: 0.85
B41: 2007 | C41: 27,171.37 | D41: 76,006.04 | E41: 0.89 | F41: 0.90 | G41: 0.54 | H41: 0.97 | I41: 0.85
B42: 2006 | C42: 24,472.19 | D42: 70,835.16 | E42: 0.90 | F42: 0.86 | G42: 0.54 | H42: 0.98 | I42: 0.84
B43: 2005 | C43: 22,664.20 | D43: 66,423.05 | E43: 0.92 | F43: 0.82 | G43: 0.55 | H43: 0.98 | I43: 0.84
B44: 2004 | C44: 21,469.94 | D44: 63,501.40 | E44: 0.94 | F44: 0.81 | G44: 0.55 | H44: 0.98 | I44: 0.83
B45: 2003 | C45: 19,513.04 | D45: 57,522.26 | E45: 0.95 | F45: 0.80 | G45: 0.55 | H45: 0.98 | I45: 0.83
B46: 2002 | C46: 18,707.36 | D46: 54,906.64 | E46: 0.94 | F46: 0.80 | G46: 0.55 | H46: 0.99 | I46: 0.82

Sheet Mazowieckie (hidden)
A1: DEKOMPOZYCJA RÓŻNIC W POZIOMIE WDB PER CAPITA
A2: MAZOWIECKIE
B3: Różnice względem średniej | C3: WDB per capita | D3: WDB na 1 pracującego | E3: Współczynnik dojazdów netto | F3: Udział pracujących wśród aktwnych zawodowo | G3: Współczynnik aktywności zawodowej | H3: Wskaźnik różnicy w metodologii BAEL/demo | I3: Wskaźnik struktury wiekowej
C4: WDB_i/N_i | D4: WDB_i/Pp_i | E4: Pp_i/Pz_i | F4: Pz_i/Az_i | G4: Az_i/NB15+_i | H4: NB15+_i/N15+_i*(N15+/NB15+) | I4: Ni15+_i/N_i
B5: 2013
B6: 2012 | C6: =(C21-C36)/C36 -> 58.9% | D6: =(D21-D36)/D36 -> 30.8% | E6: 6.4% | F6: 2.3% | G6: 7.8% | H6: 4.0% | I6: -0.5%
B7: 2011 | C7: =(C22-C37)/C37 -> 57.9% | D7: 31.0% | E7: 6.9% | F7: 2.0% | G7: 7.2% | H7: 3.5% | I7: -0.3%
B8: 2010 | C8: 58.4% | D8: 31.1% | E8: 9.8% | F8: 2.5% | G8: 4.9% | H8: 2.5% | I8: -0.2%
B9: 2009 | C9: 55.3% | D9: 28.1% | E9: 6.2% | F9: 2.3% | G9: 7.1% | H9: 4.1% | I9: 0.0%
B10: 2008 | C10: 52.3% | D10: 28.5% | E10: 3.2% | F10: 1.2% | G10: 8.5% | H10: 4.5% | I10: 0.2%
B11: 2007 | C11: 54.2% | D11: 28.9% | E11: 8.4% | F11: 0.6% | G11: 6.3% | H11: 2.9% | I11: 0.3%
B12: 2006 | C12: 54.1% | D12: 28.8% | E12: 10.5% | F12: 1.9% | G12: 5.3% | H12: 0.5% | I12: 0.5%
B13: 2005 | C13: 53.6% | D13: 28.3% | E13: 15.4% | F13: 3.7% | G13: 2.1% | H13: -2.6% | I13: 0.6%
B14: 2004 | C14: 50.5% | D14: 25.1% | E14: 13.9% | F14: 5.4% | G14: 2.0% | H14: -2.6% | I14: 0.8%
B15: 2003 | C15: 51.3% | D15: 25.9% | E15: 17.1% | F15: 4.1% | G15: 4.6% | H15: -6.6% | I15: 1.0%
B16: 2002 | C16: 51.3% | D16: 26.2% | E16: 14.6% | F16: 3.6% | G16: 5.4% | H16: -5.2% | I16: 1.1%
B18: Wskaźniki | C18: WDB per capita | D18: WDB na 1 pracującego | E18: Współczynnik dojazdów netto | F18: Udział pracujących wśród aktwnych zawodowo | G18: Współczynnik aktywności zawodowej | H18: Wskaźnik różnicy w metodologii BAEL/demo | I18: Wskaźnik struktury wiekowej
C19: WDB_i/N_i | D19: WDB_i/Pp_i | E19: Pp_i/Pz_i | F19: Pz_i/Az_i | G19: Az_i/NB15+_i | H19: NB15+_i/N15+_i | I19: Ni15+_i/N_i
B20: 2013
B21: 2012 | C21: 59,057.37 | D21: 134,768.51 | E21: 0.95 | F21: 0.92 | G21: 0.60 | H21: 0.99 | I21: 0.85
B22: 2011 | C22: 55,939.49 | D22: 128,319.81 | E22: 0.96 | F22: 0.92 | G22: 0.60 | H22: 0.98 | I22: 0.85
B23: 2010 | C23: 52,049.41 | D23: 119,948.03 | E23: 0.98 | F23: 0.93 | G23: 0.58 | H23: 0.97 | I23: 0.85
B24: 2009 | C24: 49,233.39 | D24: 110,253.00 | E24: 0.94 | F24: 0.94 | G24: 0.59 | H24: 1.01 | I24: 0.85
B25: 2008 | C25: 44,545.15 | D25: 101,068.61 | E25: 0.93 | F25: 0.94 | G25: 0.59 | H25: 1.01 | I25: 0.85
B26: 2007 | C26: 41,910.86 | D26: 97,989.01 | E26: 0.97 | F26: 0.91 | G26: 0.57 | H26: 1.00 | I26: 0.85
B27: 2006 | C27: 37,719.30 | D27: 91,247.79 | E27: 1.00 | F27: 0.88 | G27: 0.57 | H27: 0.98 | I27: 0.85
B28: 2005 | C28: 34,806.79 | D28: 85,195.41 | E28: 1.06 | F28: 0.85 | G28: 0.56 | H28: 0.95 | I28: 0.84
B29: 2004 | C29: 32,309.77 | D29: 79,453.29 | E29: 1.07 | F29: 0.85 | G29: 0.56 | H29: 0.95 | I29: 0.84
B30: 2003 | C30: 29,523.54 | D30: 72,405.34 | E30: 1.11 | F30: 0.84 | G30: 0.57 | H30: 0.91 | I30: 0.84
B31: 2002 | C31: 28,303.50 | D31: 69,300.04 | E31: 1.08 | F31: 0.83 | G31: 0.58 | H31: 0.94 | I31: 0.83
B33: Wskaźniki dla Polski | C33: WDB per capita | D33: WDB na 1 pracującego | E33: Współczynnik dojazdów netto | F33: Udział pracujących wśród aktwnych zawodowo | G33: Współczynnik aktywności zawodowej | H33: Wskaźnik różnicy w metodologii BAEL/demo | I33: Wskaźnik struktury wiekowej
C34: WDB/N | D34: WDB/Pp | E34: Pp/Pz | F34: Pz/Az | G34: Az/NB15+ | H34: NB15+/N15+ | I34: Ni15+/N
B35: 2013
B36: 2012 | C36: 37,159.37 | D36: 103,021.84 | E36: 0.89 | F36: 0.90 | G36: 0.56 | H36: 0.95 | I36: 0.85
B37: 2011 | C37: 35,435.31 | D37: 97,927.91 | E37: 0.90 | F37: 0.90 | G37: 0.56 | H37: 0.95 | I37: 0.85
B38: 2010 | C38: 32,855.16 | D38: 91,511.90 | E38: 0.89 | F38: 0.90 | G38: 0.55 | H38: 0.95 | I38: 0.85
B39: 2009 | C39: 31,695.72 | D39: 86,036.76 | E39: 0.89 | F39: 0.92 | G39: 0.55 | H39: 0.97 | I39: 0.85
B40: 2008 | C40: 29,239.45 | D40: 78,678.78 | E40: 0.90 | F40: 0.93 | G40: 0.54 | H40: 0.97 | I40: 0.85
B41: 2007 | C41: 27,171.37 | D41: 76,006.04 | E41: 0.89 | F41: 0.90 | G41: 0.54 | H41: 0.97 | I41: 0.85
B42: 2006 | C42: 24,472.19 | D42: 70,835.16 | E42: 0.90 | F42: 0.86 | G42: 0.54 | H42: 0.98 | I42: 0.84
B43: 2005 | C43: 22,664.20 | D43: 66,423.05 | E43: 0.92 | F43: 0.82 | G43: 0.55 | H43: 0.98 | I43: 0.84
B44: 2004 | C44: 21,469.94 | D44: 63,501.40 | E44: 0.94 | F44: 0.81 | G44: 0.55 | H44: 0.98 | I44: 0.83
B45: 2003 | C45: 19,513.04 | D45: 57,522.26 | E45: 0.95 | F45: 0.80 | G45: 0.55 | H45: 0.98 | I45: 0.83
B46: 2002 | C46: 18,707.36 | D46: 54,906.64 | E46: 0.94 | F46: 0.80 | G46: 0.55 | H46: 0.99 | I46: 0.82

Sheet Małopolskie (hidden)
A1: DEKOMPOZYCJA RÓŻNIC W POZIOMIE WDB PER CAPITA
A2: MAŁOPOLSKIE
B3: Różnice względem średniej | C3: WDB per capita | D3: WDB na 1 pracującego | E3: Współczynnik dojazdów netto | F3: Udział pracujących wśród aktwnych zawodowo | G3: Współczynnik aktywności zawodowej | H3: Wskaźnik różnicy w metodologii BAEL/demo | I3: Wskaźnik struktury wiekowej
C4: WDB_i/N_i | D4: WDB_i/Pp_i | E4: Pp_i/Pz_i | F4: Pz_i/Az_i | G4: Az_i/NB15+_i | H4: NB15+_i/N15+_i*(N15+/NB15+) | I4: Ni15+_i/N_i
B5: 2013
B6: 2012 | C6: =(C21-C36)/C36 -> -12.0% | D6: =(D21-D36)/D36 -> -12.9% | E6: 5.7% | F6: -0.4% | G6: -1.0% | H6: -2.0% | I6: -1.0%
B7: 2011 | C7: =(C22-C37)/C37 -> -11.4% | D7: -11.9% | E7: 5.4% | F7: 0.4% | G7: -0.5% | H7: -3.4% | I7: -1.0%
B8: 2010 | C8: -12.4% | D8: -12.9% | E8: 7.0% | F8: 0.5% | G8: -1.0% | H8: -4.5% | I8: -1.1%
B9: 2009 | C9: -11.3% | D9: -11.1% | E9: 5.6% | F9: 0.2% | G9: -1.2% | H9: -3.6% | I9: -1.0%
B10: 2008 | C10: -10.4% | D10: -9.2% | E10: 1.8% | F10: 1.0% | G10: -1.1% | H10: -1.9% | I10: -1.1%
B11: 2007 | C11: -11.0% | D11: -9.8% | E11: 1.5% | F11: 1.1% | G11: -0.4% | H11: -2.3% | I11: -1.1%
B12: 2006 | C12: -10.0% | D12: -9.3% | E12: -4.9% | F12: 1.5% | G12: 1.8% | H12: 2.2% | I12: -1.2%
B13: 2005 | C13: -11.5% | D13: -11.2% | E13: -3.3% | F13: 3.0% | G13: 2.0% | H13: -0.5% | I13: -1.3%
B14: 2004 | C14: -11.6% | D14: -11.3% | E14: -3.4% | F14: 2.1% | G14: 4.0% | H14: -1.6% | I14: -1.4%
B15: 2003 | C15: -10.8% | D15: -10.4% | E15: -4.9% | F15: 2.1% | G15: 3.4% | H15: 0.5% | I15: -1.4%
B16: 2002 | C16: -11.5% | D16: -10.8% | E16: -5.9% | F16: 4.7% | G16: 2.3% | H16: 0.0% | I16: -1.4%
B18: Wskaźniki | C18: WDB per capita | D18: WDB na 1 pracującego | E18: Współczynnik dojazdów netto | F18: Udział pracujących wśród aktwnych zawodowo | G18: Współczynnik aktywności zawodowej | H18: Wskaźnik różnicy w metodologii BAEL/demo | I18: Wskaźnik struktury wiekowej
C19: WDB_i/N_i | D19: WDB_i/Pp_i | E19: Pp_i/Pz_i | F19: Pz_i/Az_i | G19: Az_i/NB15+_i | H19: NB15+_i/N15+_i | I19: Ni15+_i/N_i
B20: 2013
B21: 2012 | C21: 32,715.11 | D21: 89,708.08 | E21: 0.94 | F21: 0.90 | G21: 0.55 | H21: 0.93 | I21: 0.84
B22: 2011 | C22: 31,396.30 | D22: 86,245.43 | E22: 0.94 | F22: 0.91 | G22: 0.55 | H22: 0.92 | I22: 0.84
B23: 2010 | C23: 28,795.82 | D23: 79,742.61 | E23: 0.96 | F23: 0.91 | G23: 0.55 | H23: 0.90 | I23: 0.84
B24: 2009 | C24: 28,108.37 | D24: 76,462.52 | E24: 0.94 | F24: 0.92 | G24: 0.54 | H24: 0.94 | I24: 0.84
B25: 2008 | C25: 26,191.49 | D25: 71,406.92 | E25: 0.91 | F25: 0.94 | G25: 0.54 | H25: 0.95 | I25: 0.84
B26: 2007 | C26: 24,177.84 | D26: 68,536.47 | E26: 0.91 | F26: 0.91 | G26: 0.53 | H26: 0.95 | I26: 0.84
B27: 2006 | C27: 22,017.57 | D27: 64,270.64 | E27: 0.86 | F27: 0.87 | G27: 0.55 | H27: 1.00 | I27: 0.83
B28: 2005 | C28: 20,048.76 | D28: 58,984.33 | E28: 0.89 | F28: 0.85 | G28: 0.56 | H28: 0.97 | I28: 0.83
B29: 2004 | C29: 18,971.53 | D29: 56,354.05 | E29: 0.90 | F29: 0.83 | G29: 0.57 | H29: 0.96 | I29: 0.82
B30: 2003 | C30: 17,401.44 | D30: 51,567.19 | E30: 0.90 | F30: 0.82 | G30: 0.57 | H30: 0.98 | I30: 0.82
B31: 2002 | C31: 16,560.52 | D31: 48,967.78 | E31: 0.89 | F31: 0.84 | G31: 0.57 | H31: 0.99 | I31: 0.81
B33: Wskaźniki dla Polski | C33: WDB per capita | D33: WDB na 1 pracującego | E33: Współczynnik dojazdów netto | F33: Udział pracujących wśród aktwnych zawodowo | G33: Współczynnik aktywności zawodowej | H33: Wskaźnik różnicy w metodologii BAEL/demo | I33: Wskaźnik struktury wiekowej
C34: WDB/N | D34: WDB/Pp | E34: Pp/Pz | F34: Pz/Az | G34: Az/NB15+ | H34: NB15+/N15+ | I34: Ni15+/N
B35: 2013
B36: 2012 | C36: 37,159.37 | D36: 103,021.84 | E36: 0.89 | F36: 0.90 | G36: 0.56 | H36: 0.95 | I36: 0.85
B37: 2011 | C37: 35,435.31 | D37: 97,927.91 | E37: 0.90 | F37: 0.90 | G37: 0.56 | H37: 0.95 | I37: 0.85
B38: 2010 | C38: 32,855.16 | D38: 91,511.90 | E38: 0.89 | F38: 0.90 | G38: 0.55 | H38: 0.95 | I38: 0.85
B39: 2009 | C39: 31,695.72 | D39: 86,036.76 | E39: 0.89 | F39: 0.92 | G39: 0.55 | H39: 0.97 | I39: 0.85
B40: 2008 | C40: 29,239.45 | D40: 78,678.78 | E40: 0.90 | F40: 0.93 | G40: 0.54 | H40: 0.97 | I40: 0.85
B41: 2007 | C41: 27,171.37 | D41: 76,006.04 | E41: 0.89 | F41: 0.90 | G41: 0.54 | H41: 0.97 | I41: 0.85
B42: 2006 | C42: 24,472.19 | D42: 70,835.16 | E42: 0.90 | F42: 0.86 | G42: 0.54 | H42: 0.98 | I42: 0.84
B43: 2005 | C43: 22,664.20 | D43: 66,423.05 | E43: 0.92 | F43: 0.82 | G43: 0.55 | H43: 0.98 | I43: 0.84
B44: 2004 | C44: 21,469.94 | D44: 63,501.40 | E44: 0.94 | F44: 0.81 | G44: 0.55 | H44: 0.98 | I44: 0.83
B45: 2003 | C45: 19,513.04 | D45: 57,522.26 | E45: 0.95 | F45: 0.80 | G45: 0.55 | H45: 0.98 | I45: 0.83
B46: 2002 | C46: 18,707.36 | D46: 54,906.64 | E46: 0.94 | F46: 0.80 | G46: 0.55 | H46: 0.99 | I46: 0.82

Sheet Śląskie (hidden)
A1: DEKOMPOZYCJA RÓŻNIC W POZIOMIE WDB PER CAPITA
A2: ŚLĄSKIE
B3: Różnice względem średniej | C3: WDB per capita | D3: WDB na 1 pracującego | E3: Współczynnik dojazdów netto | F3: Udział pracujących wśród aktwnych zawodowo | G3: Współczynnik aktywności zawodowej | H3: Wskaźnik różnicy w metodologii BAEL/demo | I3: Wskaźnik struktury wiekowej
C4: WDB_i/N_i | D4: WDB_i/Pp_i | E4: Pp_i/Pz_i | F4: Pz_i/Az_i | G4: Az_i/NB15+_i | H4: NB15+_i/N15+_i*(N15+/NB15+) | I4: Ni15+_i/N_i
B5: 2013
B6: 2012 | C6: =(C21-C36)/C36 -> 5.9% | D6: =(D21-D36)/D36 -> 6.5% | E6: -2.6% | F6: 0.8% | G6: -4.4% | H6: 4.6% | I6: 1.3%
B7: 2011 | C7: =(C22-C37)/C37 -> 7.5% | D7: 8.2% | E7: -2.4% | F7: 0.4% | G7: -4.1% | H7: 4.3% | I7: 1.4%
B8: 2010 | C8: 7.0% | D8: 7.6% | E8: 2.8% | F8: 0.6% | G8: -5.4% | H8: 0.2% | I8: 1.5%
B9: 2009 | C9: 6.4% | D9: 8.8% | E9: 1.7% | F9: 1.5% | G9: -4.4% | H9: -2.3% | I9: 1.5%
B10: 2008 | C10: 7.4% | D10: 9.4% | E10: 3.6% | F10: 0.6% | G10: -4.6% | H10: -2.8% | I10: 1.6%
B11: 2007 | C11: 5.8% | D11: 8.0% | E11: 3.3% | F11: 1.7% | G11: -6.5% | H11: -1.8% | I11: 1.6%
B12: 2006 | C12: 6.3% | D12: 8.5% | E12: 2.7% | F12: -0.2% | G12: -5.5% | H12: -0.6% | I12: 1.7%
B13: 2005 | C13: 8.0% | D13: 10.2% | E13: 1.9% | F13: -1.5% | G13: -4.9% | H13: 0.7% | I13: 1.8%
B14: 2004 | C14: 11.9% | D14: 13.4% | E14: 3.2% | F14: -0.4% | G14: -6.4% | H14: 0.7% | I14: 1.9%
B15: 2003 | C15: 8.5% | D15: 9.1% | E15: 9.1% | F15: -0.7% | G15: -7.6% | H15: -2.4% | I15: 1.9%
B16: 2002 | C16: 8.8% | D16: 8.8% | E16: 11.2% | F16: -0.2% | G16: -8.7% | H16: -3.1% | I16: 1.9%
B18: Wskaźniki | C18: WDB per capita | D18: WDB na 1 pracującego | E18: Współczynnik dojazdów netto | F18: Udział pracujących wśród aktwnych zawodowo | G18: Współczynnik aktywności zawodowej | H18: Wskaźnik różnicy w metodologii BAEL/demo | I18: Wskaźnik struktury wiekowej
C19: WDB_i/N_i | D19: WDB_i/Pp_i | E19: Pp_i/Pz_i | F19: Pz_i/Az_i | G19: Az_i/NB15+_i | H19: NB15+_i/N15+_i | I19: Ni15+_i/N_i
B20: 2013
B21: 2012 | C21: 39,358.99 | D21: 109,698.30 | E21: 0.87 | F21: 0.91 | G21: 0.53 | H21: 0.99 | I21: 0.86
B22: 2011 | C22: 38,089.15 | D22: 105,913.87 | E22: 0.87 | F22: 0.91 | G22: 0.53 | H22: 0.99 | I22: 0.86
B23: 2010 | C23: 35,146.12 | D23: 98,455.28 | E23: 0.92 | F23: 0.91 | G23: 0.52 | H23: 0.95 | I23: 0.86
B24: 2009 | C24: 33,735.68 | D24: 93,594.61 | E24: 0.90 | F24: 0.93 | G24: 0.53 | H24: 0.95 | I24: 0.86
B25: 2008 | C25: 31,396.37 | D25: 86,112.97 | E25: 0.93 | F25: 0.93 | G25: 0.52 | H25: 0.94 | I25: 0.86
B26: 2007 | C26: 28,747.46 | D26: 82,051.64 | E26: 0.92 | F26: 0.92 | G26: 0.50 | H26: 0.96 | I26: 0.86
B27: 2006 | C27: 26,008.45 | D27: 76,866.36 | E27: 0.93 | F27: 0.86 | G27: 0.51 | H27: 0.97 | I27: 0.86
B28: 2005 | C28: 24,470.87 | D28: 73,203.10 | E28: 0.94 | F28: 0.81 | G28: 0.52 | H28: 0.99 | I28: 0.85
B29: 2004 | C29: 24,019.89 | D29: 72,003.12 | E29: 0.97 | F29: 0.81 | G29: 0.51 | H29: 0.99 | I29: 0.85
B30: 2003 | C30: 21,180.78 | D30: 62,755.75 | E30: 1.04 | F30: 0.80 | G30: 0.51 | H30: 0.96 | I30: 0.84
B31: 2002 | C31: 20,348.80 | D31: 59,721.73 | E31: 1.05 | F31: 0.80 | G31: 0.51 | H31: 0.96 | I31: 0.84
B33: Wskaźniki dla Polski | C33: WDB per capita | D33: WDB na 1 pracującego | E33: Współczynnik dojazdów netto | F33: Udział pracujących wśród aktwnych zawodowo | G33: Współczynnik aktywności zawodowej | H33: Wskaźnik różnicy w metodologii BAEL/demo | I33: Wskaźnik struktury wiekowej
C34: WDB/N | D34: WDB/Pp | E34: Pp/Pz | F34: Pz/Az | G34: Az/NB15+ | H34: NB15+/N15+ | I34: Ni15+/N
B35: 2013
B36: 2012 | C36: 37,159.37 | D36: 103,021.84 | E36: 0.89 | F36: 0.90 | G36: 0.56 | H36: 0.95 | I36: 0.85
B37: 2011 | C37: 35,435.31 | D37: 97,927.91 | E37: 0.90 | F37: 0.90 | G37: 0.56 | H37: 0.95 | I37: 0.85
B38: 2010 | C38: 32,855.16 | D38: 91,511.90 | E38: 0.89 | F38: 0.90 | G38: 0.55 | H38: 0.95 | I38: 0.85
B39: 2009 | C39: 31,695.72 | D39: 86,036.76 | E39: 0.89 | F39: 0.92 | G39: 0.55 | H39: 0.97 | I39: 0.85
B40: 2008 | C40: 29,239.45 | D40: 78,678.78 | E40: 0.90 | F40: 0.93 | G40: 0.54 | H40: 0.97 | I40: 0.85
B41: 2007 | C41: 27,171.37 | D41: 76,006.04 | E41: 0.89 | F41: 0.90 | G41: 0.54 | H41: 0.97 | I41: 0.85
B42: 2006 | C42: 24,472.19 | D42: 70,835.16 | E42: 0.90 | F42: 0.86 | G42: 0.54 | H42: 0.98 | I42: 0.84
B43: 2005 | C43: 22,664.20 | D43: 66,423.05 | E43: 0.92 | F43: 0.82 | G43: 0.55 | H43: 0.98 | I43: 0.84
B44: 2004 | C44: 21,469.94 | D44: 63,501.40 | E44: 0.94 | F44: 0.81 | G44: 0.55 | H44: 0.98 | I44: 0.83
B45: 2003 | C45: 19,513.04 | D45: 57,522.26 | E45: 0.95 | F45: 0.80 | G45: 0.55 | H45: 0.98 | I45: 0.83
B46: 2002 | C46: 18,707.36 | D46: 54,906.64 | E46: 0.94 | F46: 0.80 | G46: 0.55 | H46: 0.99 | I46: 0.82

Sheet Lubelskie (hidden)
A1: DEKOMPOZYCJA RÓŻNIC W POZIOMIE WDB PER CAPITA
A2: LUBELSKIE
B3: Różnice względem średniej | C3: WDB per capita | D3: WDB na 1 pracującego | E3: Współczynnik dojazdów netto | F3: Udział pracujących wśród aktwnych zawodowo | G3: Współczynnik aktywności zawodowej | H3: Wskaźnik różnicy w metodologii BAEL/demo | I3: Wskaźnik struktury wiekowej
C4: WDB_i/N_i | D4: WDB_i/Pp_i | E4: Pp_i/Pz_i | F4: Pz_i/Az_i | G4: Az_i/NB15+_i | H4: NB15+_i/N15+_i*(N15+/NB15+) | I4: Ni15+_i/N_i
B5: 2013
B6: 2012 | C6: =(C21-C36)/C36 -> -29.6% | D6: =(D21-D36)/D36 -> -27.5% | E6: -10.2% | F6: -0.4% | G6: 1.2% | H6: 7.3% | I6: -0.0%
B7: 2011 | C7: =(C22-C37)/C37 -> -30.2% | D7: -28.3% | E7: -12.0% | F7: -0.7% | G7: 2.0% | H7: 9.3% | I7: -0.1%
B8: 2010 | C8: -30.6% | D8: -28.4% | E8: -14.1% | F8: -0.3% | G8: 1.1% | H8: 12.0% | I8: -0.2%
B9: 2009 | C9: -30.8% | D9: -29.2% | E9: -10.6% | F9: -1.7% | G9: 1.5% | H9: 10.1% | I9: -0.4%
B10: 2008 | C10: -28.8% | D10: -27.0% | E10: -11.4% | F10: -1.7% | G10: 1.9% | H10: 10.5% | I10: -0.5%
B11: 2007 | C11: -30.0% | D11: -28.8% | E11: -12.3% | F11: 0.1% | G11: 5.2% | H11: 7.2% | I11: -0.6%
B12: 2006 | C12: -30.9% | D12: -30.6% | E12: -9.5% | F12: 1.3% | G12: 3.5% | H12: 5.7% | I12: -0.7%
B13: 2005 | C13: -29.9% | D13: -29.8% | E13: -13.6% | F13: 4.3% | G13: 3.3% | H13: 8.2% | I13: -0.9%
B14: 2004 | C14: -29.1% | D14: -28.6% | E14: -12.4% | F14: 2.6% | G14: 4.6% | H14: 6.5% | I14: -0.9%
B15: 2003 | C15: -27.6% | D15: -27.2% | E15: -13.6% | F15: 4.6% | G15: 4.8% | H15: 6.0% | I15: -1.0%
B16: 2002 | C16: -27.8% | D16: -27.0% | E16: -15.6% | F16: 4.3% | G16: 5.8% | H16: 7.3% | I16: -1.1%
B18: Wskaźniki | C18: WDB per capita | D18: WDB na 1 pracującego | E18: Współczynnik dojazdów netto | F18: Udział pracujących wśród aktwnych zawodowo | G18: Współczynnik aktywności zawodowej | H18: Wskaźnik różnicy w metodologii BAEL/demo | I18: Wskaźnik struktury wiekowej
C19: WDB_i/N_i | D19: WDB_i/Pp_i | E19: Pp_i/Pz_i | F19: Pz_i/Az_i | G19: Az_i/NB15+_i | H19: NB15+_i/N15+_i | I19: Ni15+_i/N_i
B20: 2013
B21: 2012 | C21: 26,157.49 | D21: 74,709.04 | E21: 0.80 | F21: 0.90 | G21: 0.57 | H21: 1.02 | I21: 0.85
B22: 2011 | C22: 24,735.97 | D22: 70,243.31 | E22: 0.79 | F22: 0.90 | G22: 0.57 | H22: 1.04 | I22: 0.85
B23: 2010 | C23: 22,789.29 | D23: 65,548.77 | E23: 0.77 | F23: 0.90 | G23: 0.56 | H23: 1.06 | I23: 0.85
B24: 2009 | C24: 21,929.80 | D24: 60,900.01 | E24: 0.79 | F24: 0.90 | G24: 0.56 | H24: 1.07 | I24: 0.85
B25: 2008 | C25: 20,817.99 | D25: 57,414.81 | E25: 0.79 | F25: 0.91 | G25: 0.55 | H25: 1.07 | I25: 0.84
B26: 2007 | C26: 19,021.21 | D26: 54,082.27 | E26: 0.78 | F26: 0.91 | G26: 0.56 | H26: 1.04 | I26: 0.84
B27: 2006 | C27: 16,918.53 | D27: 49,181.50 | E27: 0.82 | F27: 0.87 | G27: 0.56 | H27: 1.03 | I27: 0.84
B28: 2005 | C28: 15,881.27 | D28: 46,609.88 | E28: 0.80 | F28: 0.86 | G28: 0.57 | H28: 1.06 | I28: 0.83
B29: 2004 | C29: 15,215.39 | D29: 45,318.78 | E29: 0.82 | F29: 0.83 | G29: 0.57 | H29: 1.04 | I29: 0.83
B30: 2003 | C30: 14,118.93 | D30: 41,902.11 | E30: 0.82 | F30: 0.84 | G30: 0.57 | H30: 1.04 | I30: 0.82
B31: 2002 | C31: 13,506.19 | D31: 40,085.18 | E31: 0.80 | F31: 0.84 | G31: 0.59 | H31: 1.06 | I31: 0.81
B33: Wskaźniki dla Polski | C33: WDB per capita | D33: WDB na 1 pracującego | E33: Współczynnik dojazdów netto | F33: Udział pracujących wśród aktwnych zawodowo | G33: Współczynnik aktywności zawodowej | H33: Wskaźnik różnicy w metodologii BAEL/demo | I33: Wskaźnik struktury wiekowej
C34: WDB/N | D34: WDB/Pp | E34: Pp/Pz | F34: Pz/Az | G34: Az/NB15+ | H34: NB15+/N15+ | I34: Ni15+/N
B35: 2013
B36: 2012 | C36: 37,159.37 | D36: 103,021.84 | E36: 0.89 | F36: 0.90 | G36: 0.56 | H36: 0.95 | I36: 0.85
B37: 2011 | C37: 35,435.31 | D37: 97,927.91 | E37: 0.90 | F37: 0.90 | G37: 0.56 | H37: 0.95 | I37: 0.85
B38: 2010 | C38: 32,855.16 | D38: 91,511.90 | E38: 0.89 | F38: 0.90 | G38: 0.55 | H38: 0.95 | I38: 0.85
B39: 2009 | C39: 31,695.72 | D39: 86,036.76 | E39: 0.89 | F39: 0.92 | G39: 0.55 | H39: 0.97 | I39: 0.85
B40: 2008 | C40: 29,239.45 | D40: 78,678.78 | E40: 0.90 | F40: 0.93 | G40: 0.54 | H40: 0.97 | I40: 0.85
B41: 2007 | C41: 27,171.37 | D41: 76,006.04 | E41: 0.89 | F41: 0.90 | G41: 0.54 | H41: 0.97 | I41: 0.85
B42: 2006 | C42: 24,472.19 | D42: 70,835.16 | E42: 0.90 | F42: 0.86 | G42: 0.54 | H42: 0.98 | I42: 0.84
B43: 2005 | C43: 22,664.20 | D43: 66,423.05 | E43: 0.92 | F43: 0.82 | G43: 0.55 | H43: 0.98 | I43: 0.84
B44: 2004 | C44: 21,469.94 | D44: 63,501.40 | E44: 0.94 | F44: 0.81 | G44: 0.55 | H44: 0.98 | I44: 0.83
B45: 2003 | C45: 19,513.04 | D45: 57,522.26 | E45: 0.95 | F45: 0.80 | G45: 0.55 | H45: 0.98 | I45: 0.83
B46: 2002 | C46: 18,707.36 | D46: 54,906.64 | E46: 0.94 | F46: 0.80 | G46: 0.55 | H46: 0.99 | I46: 0.82

Sheet Podlaskie (hidden)
A1: DEKOMPOZYCJA RÓŻNIC W POZIOMIE WDB PER CAPITA
A2: PODLASKIE
B3: Różnice względem średniej | C3: WDB per capita | D3: WDB na 1 pracującego | E3: Współczynnik dojazdów netto | F3: Udział pracujących wśród aktwnych zawodowo | G3: Współczynnik aktywności zawodowej | H3: Wskaźnik różnicy w metodologii BAEL/demo | I3: Wskaźnik struktury wiekowej
C4: WDB_i/N_i | D4: WDB_i/Pp_i | E4: Pp_i/Pz_i | F4: Pz_i/Az_i | G4: Az_i/NB15+_i | H4: NB15+_i/N15+_i*(N15+/NB15+) | I4: Ni15+_i/N_i
B5: 2013
B6: 2012 | C6: =(C21-C36)/C36 -> -28.3% | D6: =(D21-D36)/D36 -> -21.5% | E6: -3.4% | F6: 1.1% | G6: -0.4% | H6: -6.5% | I6: 0.4%
B7: 2011 | C7: =(C22-C37)/C37 -> -26.9% | D7: -20.3% | E7: -6.4% | F7: 0.5% | G7: -0.9% | H7: -1.9% | I7: 0.3%
B8: 2010 | C8: -26.8% | D8: -19.9% | E8: -6.9% | F8: -0.5% | G8: -1.8% | H8: 0.2% | I8: 0.1%
B9: 2009 | C9: -26.2% | D9: -21.5% | E9: -6.3% | F9: 1.2% | G9: 0.0% | H9: -1.0% | I9: 0.1%
B10: 2008 | C10: -27.0% | D10: -22.7% | E10: -6.2% | F10: 0.8% | G10: 0.8% | H10: -0.8% | I10: -0.1%
B11: 2007 | C11: -25.6% | D11: -20.9% | E11: -1.2% | F11: 1.0% | G11: 1.2% | H11: -6.6% | I11: -0.3%
B12: 2006 | C12: -27.2% | D12: -22.8% | E12: 2.6% | F12: 3.1% | G12: -0.1% | H12: -10.2% | I12: -0.5%
B13: 2005 | C13: -25.9% | D13: -22.0% | E13: -2.0% | F13: 4.3% | G13: 2.0% | H13: -8.3% | I13: -0.8%
B14: 2004 | C14: -26.2% | D14: -22.7% | E14: -1.6% | F14: 4.4% | G14: 2.2% | H14: -8.0% | I14: -0.9%
B15: 2003 | C15: -24.6% | D15: -21.6% | E15: -3.5% | F15: 2.2% | G15: 1.5% | H15: -3.0% | I15: -1.1%
B16: 2002 | C16: -23.8% | D16: -20.5% | E16: -6.9% | F16: 3.6% | G16: 2.8% | H16: -2.1% | I16: -1.3%
B18: Wskaźniki | C18: WDB per capita | D18: WDB na 1 pracującego | E18: Współczynnik dojazdów netto | F18: Udział pracujących wśród aktwnych zawodowo | G18: Współczynnik aktywności zawodowej | H18: Wskaźnik różnicy w metodologii BAEL/demo | I18: Wskaźnik struktury wiekowej
C19: WDB_i/N_i | D19: WDB_i/Pp_i | E19: Pp_i/Pz_i | F19: Pz_i/Az_i | G19: Az_i/NB15+_i | H19: NB15+_i/N15+_i | I19: Ni15+_i/N_i
B20: 2013
B21: 2012 | C21: 26,655.77 | D21: 80,843.15 | E21: 0.86 | F21: 0.91 | G21: 0.56 | H21: 0.89 | I21: 0.85
B22: 2011 | C22: 25,910.46 | D22: 78,091.53 | E22: 0.84 | F22: 0.91 | G22: 0.55 | H22: 0.93 | I22: 0.85
B23: 2010 | C23: 24,049.23 | D23: 73,329.79 | E23: 0.83 | F23: 0.90 | G23: 0.54 | H23: 0.95 | I23: 0.85
B24: 2009 | C24: 23,376.71 | D24: 67,523.15 | E24: 0.83 | F24: 0.93 | G24: 0.55 | H24: 0.96 | I24: 0.85
B25: 2008 | C25: 21,333.31 | D25: 60,808.89 | E25: 0.84 | F25: 0.94 | G25: 0.55 | H25: 0.96 | I25: 0.85
B26: 2007 | C26: 20,207.77 | D26: 60,112.15 | E26: 0.88 | F26: 0.91 | G26: 0.54 | H26: 0.91 | I26: 0.84
B27: 2006 | C27: 17,827.93 | D27: 54,718.73 | E27: 0.93 | F27: 0.89 | G27: 0.54 | H27: 0.88 | I27: 0.84
B28: 2005 | C28: 16,787.68 | D28: 51,811.09 | E28: 0.90 | F28: 0.86 | G28: 0.56 | H28: 0.90 | I28: 0.83
B29: 2004 | C29: 15,852.96 | D29: 49,092.89 | E29: 0.92 | F29: 0.85 | G29: 0.56 | H29: 0.90 | I29: 0.83
B30: 2003 | C30: 14,708.12 | D30: 45,092.97 | E30: 0.92 | F30: 0.82 | G30: 0.56 | H30: 0.95 | I30: 0.82
B31: 2002 | C31: 14,246.04 | D31: 43,667.91 | E31: 0.88 | F31: 0.83 | G31: 0.57 | H31: 0.97 | I31: 0.81
B33: Wskaźniki dla Polski | C33: WDB per capita | D33: WDB na 1 pracującego | E33: Współczynnik dojazdów netto | F33: Udział pracujących wśród aktwnych zawodowo | G33: Współczynnik aktywności zawodowej | H33: Wskaźnik różnicy w metodologii BAEL/demo | I33: Wskaźnik struktury wiekowej
C34: WDB/N | D34: WDB/Pp | E34: Pp/Pz | F34: Pz/Az | G34: Az/NB15+ | H34: NB15+/N15+ | I34: Ni15+/N
B35: 2013
B36: 2012 | C36: 37,159.37 | D36: 103,021.84 | E36: 0.89 | F36: 0.90 | G36: 0.56 | H36: 0.95 | I36: 0.85
B37: 2011 | C37: 35,435.31 | D37: 97,927.91 | E37: 0.90 | F37: 0.90 | G37: 0.56 | H37: 0.95 | I37: 0.85
B38: 2010 | C38: 32,855.16 | D38: 91,511.90 | E38: 0.89 | F38: 0.90 | G38: 0.55 | H38: 0.95 | I38: 0.85
B39: 2009 | C39: 31,695.72 | D39: 86,036.76 | E39: 0.89 | F39: 0.92 | G39: 0.55 | H39: 0.97 | I39: 0.85
B40: 2008 | C40: 29,239.45 | D40: 78,678.78 | E40: 0.90 | F40: 0.93 | G40: 0.54 | H40: 0.97 | I40: 0.85
B41: 2007 | C41: 27,171.37 | D41: 76,006.04 | E41: 0.89 | F41: 0.90 | G41: 0.54 | H41: 0.97 | I41: 0.85
B42: 2006 | C42: 24,472.19 | D42: 70,835.16 | E42: 0.90 | F42: 0.86 | G42: 0.54 | H42: 0.98 | I42: 0.84
B43: 2005 | C43: 22,664.20 | D43: 66,423.05 | E43: 0.92 | F43: 0.82 | G43: 0.55 | H43: 0.98 | I43: 0.84
B44: 2004 | C44: 21,469.94 | D44: 63,501.40 | E44: 0.94 | F44: 0.81 | G44: 0.55 | H44: 0.98 | I44: 0.83
B45: 2003 | C45: 19,513.04 | D45: 57,522.26 | E45: 0.95 | F45: 0.80 | G45: 0.55 | H45: 0.98 | I45: 0.83
B46: 2002 | C46: 18,707.36 | D46: 54,906.64 | E46: 0.94 | F46: 0.80 | G46: 0.55 | H46: 0.99 | I46: 0.82

Sheet Świętokrzyskie (hidden)
A1: DEKOMPOZYCJA RÓŻNIC W POZIOMIE WDB PER CAPITA
A2: ŚWIĘTOKRZYSKIE
B3: Różnice względem średniej | C3: WDB per capita | D3: WDB na 1 pracującego | E3: Współczynnik dojazdów netto | F3: Udział pracujących wśród aktwnych zawodowo | G3: Współczynnik aktywności zawodowej | H3: Wskaźnik różnicy w metodologii BAEL/demo | I3: Wskaźnik struktury wiekowej
C4: WDB_i/N_i | D4: WDB_i/Pp_i | E4: Pp_i/Pz_i | F4: Pz_i/Az_i | G4: Az_i/NB15+_i | H4: NB15+_i/N15+_i*(N15+/NB15+) | I4: Ni15+_i/N_i
B5: 2013
B6: 2012 | C6: =(C21-C36)/C36 -> -24.9% | D6: =(D21-D36)/D36 -> -23.4% | E6: -13.5% | F6: -3.5% | G6: 2.4% | H6: 13.4% | I6: 1.0%
B7: 2011 | C7: =(C22-C37)/C37 -> -23.6% | D7: -22.6% | E7: -15.2% | F7: -3.6% | G7: 2.7% | H7: 16.6% | I7: 0.9%
B8: 2010 | C8: -22.5% | D8: -21.1% | E8: -16.9% | F8: -2.5% | G8: 2.3% | H8: 17.5% | I8: 0.8%
B9: 2009 | C9: -20.6% | D9: -21.3% | E9: -8.7% | F9: -2.9% | G9: 1.9% | H9: 10.9% | I9: 0.7%
B10: 2008 | C10: -17.5% | D10: -19.1% | E10: -9.0% | F10: -1.7% | G10: 4.3% | H10: 8.7% | I10: 0.5%
B11: 2007 | C11: -20.4% | D11: -21.7% | E11: -10.6% | F11: -2.5% | G11: 4.8% | H11: 10.8% | I11: 0.4%
B12: 2006 | C12: -21.8% | D12: -23.6% | E12: -7.5% | F12: -1.9% | G12: 1.7% | H12: 10.5% | I12: 0.3%
B13: 2005 | C13: -23.3% | D13: -24.9% | E13: -4.4% | F13: -1.5% | G13: -0.9% | H13: 9.4% | I13: 0.1%
B14: 2004 | C14: -20.8% | D14: -22.5% | E14: -1.1% | F14: -2.1% | G14: -3.6% | H14: 9.3% | I14: 0.1%
B15: 2003 | C15: -20.0% | D15: -21.8% | E15: -2.2% | F15: 0.5% | G15: -5.5% | H15: 10.3% | I15: -0.0%
B16: 2002 | C16: -20.8% | D16: -22.3% | E16: -2.6% | F16: 1.3% | G16: -6.4% | H16: 10.5% | I16: -0.0%
B18: Wskaźniki | C18: WDB per capita | D18: WDB na 1 pracującego | E18: Współczynnik dojazdów netto | F18: Udział pracujących wśród aktwnych zawodowo | G18: Współczynnik aktywności zawodowej | H18: Wskaźnik różnicy w metodologii BAEL/demo | I18: Wskaźnik struktury wiekowej
C19: WDB_i/N_i | D19: WDB_i/Pp_i | E19: Pp_i/Pz_i | F19: Pz_i/Az_i | G19: Az_i/NB15+_i | H19: NB15+_i/N15+_i | I19: Ni15+_i/N_i
B20: 2013
B21: 2012 | C21: 27,909.06 | D21: 78,930.22 | E21: 0.77 | F21: 0.87 | G21: 0.57 | H21: 1.08 | I21: 0.86
B22: 2011 | C22: 27,065.62 | D22: 75,784.49 | E22: 0.76 | F22: 0.87 | G22: 0.57 | H22: 1.10 | I22: 0.86
B23: 2010 | C23: 25,468.09 | D23: 72,220.42 | E23: 0.74 | F23: 0.88 | G23: 0.57 | H23: 1.11 | I23: 0.85
B24: 2009 | C24: 25,151.17 | D24: 67,716.48 | E24: 0.81 | F24: 0.89 | G24: 0.56 | H24: 1.08 | I24: 0.85
B25: 2008 | C25: 24,124.28 | D25: 63,658.13 | E25: 0.82 | F25: 0.91 | G25: 0.57 | H25: 1.06 | I25: 0.85
B26: 2007 | C26: 21,640.86 | D26: 59,543.39 | E26: 0.80 | F26: 0.88 | G26: 0.56 | H26: 1.08 | I26: 0.85
B27: 2006 | C27: 19,125.08 | D27: 54,088.32 | E27: 0.83 | F27: 0.85 | G27: 0.55 | H27: 1.08 | I27: 0.84
B28: 2005 | C28: 17,387.45 | D28: 49,855.77 | E28: 0.88 | F28: 0.81 | G28: 0.54 | H28: 1.07 | I28: 0.84
B29: 2004 | C29: 17,005.60 | D29: 49,219.16 | E29: 0.93 | F29: 0.79 | G29: 0.53 | H29: 1.07 | I29: 0.83
B30: 2003 | C30: 15,620.19 | D30: 44,996.15 | E30: 0.93 | F30: 0.81 | G30: 0.52 | H30: 1.08 | I30: 0.83
B31: 2002 | C31: 14,809.96 | D31: 42,643.90 | E31: 0.92 | F31: 0.81 | G31: 0.52 | H31: 1.09 | I31: 0.82
B33: Wskaźniki dla Polski | C33: WDB per capita | D33: WDB na 1 pracującego | E33: Współczynnik dojazdów netto | F33: Udział pracujących wśród aktwnych zawodowo | G33: Współczynnik aktywności zawodowej | H33: Wskaźnik różnicy w metodologii BAEL/demo | I33: Wskaźnik struktury wiekowej
C34: WDB/N | D34: WDB/Pp | E34: Pp/Pz | F34: Pz/Az | G34: Az/NB15+ | H34: NB15+/N15+ | I34: Ni15+/N
B35: 2013
B36: 2012 | C36: 37,159.37 | D36: 103,021.84 | E36: 0.89 | F36: 0.90 | G36: 0.56 | H36: 0.95 | I36: 0.85
B37: 2011 | C37: 35,435.31 | D37: 97,927.91 | E37: 0.90 | F37: 0.90 | G37: 0.56 | H37: 0.95 | I37: 0.85
B38: 2010 | C38: 32,855.16 | D38: 91,511.90 | E38: 0.89 | F38: 0.90 | G38: 0.55 | H38: 0.95 | I38: 0.85
B39: 2009 | C39: 31,695.72 | D39: 86,036.76 | E39: 0.89 | F39: 0.92 | G39: 0.55 | H39: 0.97 | I39: 0.85
B40: 2008 | C40: 29,239.45 | D40: 78,678.78 | E40: 0.90 | F40: 0.93 | G40: 0.54 | H40: 0.97 | I40: 0.85
B41: 2007 | C41: 27,171.37 | D41: 76,006.04 | E41: 0.89 | F41: 0.90 | G41: 0.54 | H41: 0.97 | I41: 0.85
B42: 2006 | C42: 24,472.19 | D42: 70,835.16 | E42: 0.90 | F42: 0.86 | G42: 0.54 | H42: 0.98 | I42: 0.84
B43: 2005 | C43: 22,664.20 | D43: 66,423.05 | E43: 0.92 | F43: 0.82 | G43: 0.55 | H43: 0.98 | I43: 0.84
B44: 2004 | C44: 21,469.94 | D44: 63,501.40 | E44: 0.94 | F44: 0.81 | G44: 0.55 | H44: 0.98 | I44: 0.83
B45: 2003 | C45: 19,513.04 | D45: 57,522.26 | E45: 0.95 | F45: 0.80 | G45: 0.55 | H45: 0.98 | I45: 0.83
B46: 2002 | C46: 18,707.36 | D46: 54,906.64 | E46: 0.94 | F46: 0.80 | G46: 0.55 | H46: 0.99 | I46: 0.82

Sheet Lubuskie (hidden)
A1: DEKOMPOZYCJA RÓŻNIC W POZIOMIE WDB PER CAPITA
A2: LUBUSKIE
B3: Różnice względem średniej | C3: WDB per capita | D3: WDB na 1 pracującego | E3: Współczynnik dojazdów netto | F3: Udział pracujących wśród aktwnych zawodowo | G3: Współczynnik aktywności zawodowej | H3: Wskaźnik różnicy w metodologii BAEL/demo | I3: Wskaźnik struktury wiekowej
C4: WDB_i/N_i | D4: WDB_i/Pp_i | E4: Pp_i/Pz_i | F4: Pz_i/Az_i | G4: Az_i/NB15+_i | H4: NB15+_i/N15+_i*(N15+/NB15+) | I4: Ni15+_i/N_i
B5: 2013
B6: 2012 | C6: =(C21-C36)/C36 -> -16.9% | D6: =(D21-D36)/D36 -> -5.4% | E6: -10.1% | F6: 1.0% | G6: -3.8% | H6: 1.0% | I6: -0.3%
B7: 2011 | C7: =(C22-C37)/C37 -> -16.8% | D7: -6.2% | E7: -12.5% | F7: -0.1% | G7: -1.5% | H7: 3.3% | I7: -0.3%
B8: 2010 | C8: -15.3% | D8: -4.5% | E8: -14.9% | F8: -0.7% | G8: -0.3% | H8: 5.5% | I8: -0.3%
B9: 2009 | C9: -14.4% | D9: -2.1% | E9: -9.8% | F9: -1.5% | G9: -2.5% | H9: 1.3% | I9: -0.4%
B10: 2008 | C10: -13.1% | D10: -1.6% | E10: -11.3% | F10: 0.6% | G10: -3.3% | H10: 2.7% | I10: -0.4%
B11: 2007 | C11: -10.6% | D11: 0.6% | E11: -18.0% | F11: -0.1% | G11: -0.6% | H11: 9.6% | I11: -0.4%
B12: 2006 | C12: -10.0% | D12: 1.7% | E12: -18.3% | F12: -0.4% | G12: -1.8% | H12: 11.1% | I12: -0.4%
B13: 2005 | C13: -9.4% | D13: 3.8% | E13: -18.1% | F13: -1.5% | G13: 0.0% | H13: 8.5% | I13: -0.4%
B14: 2004 | C14: -11.2% | D14: 3.7% | E14: -17.1% | F14: -5.3% | G14: 0.2% | H14: 9.3% | I14: -0.4%
B15: 2003 | C15: -13.5% | D15: 1.8% | E15: -14.2% | F15: -6.1% | G15: -2.4% | H15: 8.5% | I15: -0.4%
B16: 2002 | C16: -12.0% | D16: 2.0% | E16: -11.9% | F16: -7.8% | G16: -1.9% | H16: 8.8% | I16: -0.5%
B18: Wskaźniki | C18: WDB per capita | D18: WDB na 1 pracującego | E18: Współczynnik dojazdów netto | F18: Udział pracujących wśród aktwnych zawodowo | G18: Współczynnik aktywności zawodowej | H18: Wskaźnik różnicy w metodologii BAEL/demo | I18: Wskaźnik struktury wiekowej
C19: WDB_i/N_i | D19: WDB_i/Pp_i | E19: Pp_i/Pz_i | F19: Pz_i/Az_i | G19: Az_i/NB15+_i | H19: NB15+_i/N15+_i | I19: Ni15+_i/N_i
B20: 2013
B21: 2012 | C21: 30,884.86 | D21: 97,426.30 | E21: 0.80 | F21: 0.91 | G21: 0.54 | H21: 0.96 | I21: 0.85
B22: 2011 | C22: 29,497.89 | D22: 91,862.06 | E22: 0.78 | F22: 0.90 | G22: 0.55 | H22: 0.98 | I22: 0.85
B23: 2010 | C23: 27,827.00 | D23: 87,417.78 | E23: 0.76 | F23: 0.90 | G23: 0.55 | H23: 1.00 | I23: 0.85
B24: 2009 | C24: 27,138.34 | D24: 84,245.83 | E24: 0.80 | F24: 0.90 | G24: 0.54 | H24: 0.98 | I24: 0.84
B25: 2008 | C25: 25,401.35 | D25: 77,416.89 | E25: 0.80 | F25: 0.93 | G25: 0.52 | H25: 1.00 | I25: 0.84
B26: 2007 | C26: 24,283.06 | D26: 76,438.60 | E26: 0.73 | F26: 0.90 | G26: 0.53 | H26: 1.07 | I26: 0.84
B27: 2006 | C27: 22,020.39 | D27: 72,043.13 | E27: 0.74 | F27: 0.86 | G27: 0.53 | H27: 1.09 | I27: 0.84
B28: 2005 | C28: 20,537.10 | D28: 68,952.26 | E28: 0.76 | F28: 0.81 | G28: 0.55 | H28: 1.06 | I28: 0.83
B29: 2004 | C29: 19,072.15 | D29: 65,855.29 | E29: 0.78 | F29: 0.77 | G29: 0.55 | H29: 1.07 | I29: 0.83
B30: 2003 | C30: 16,871.76 | D30: 58,538.34 | E30: 0.82 | F30: 0.75 | G30: 0.53 | H30: 1.06 | I30: 0.82
B31: 2002 | C31: 16,459.10 | D31: 56,026.58 | E31: 0.83 | F31: 0.74 | G31: 0.54 | H31: 1.08 | I31: 0.82
B33: Wskaźniki dla Polski | C33: WDB per capita | D33: WDB na 1 pracującego | E33: Współczynnik dojazdów netto | F33: Udział pracujących wśród aktwnych zawodowo | G33: Współczynnik aktywności zawodowej | H33: Wskaźnik różnicy w metodologii BAEL/demo | I33: Wskaźnik struktury wiekowej
C34: WDB/N | D34: WDB/Pp | E34: Pp/Pz | F34: Pz/Az | G34: Az/NB15+ | H34: NB15+/N15+ | I34: Ni15+/N
B35: 2013
B36: 2012 | C36: 37,159.37 | D36: 103,021.84 | E36: 0.89 | F36: 0.90 | G36: 0.56 | H36: 0.95 | I36: 0.85
B37: 2011 | C37: 35,435.31 | D37: 97,927.91 | E37: 0.90 | F37: 0.90 | G37: 0.56 | H37: 0.95 | I37: 0.85
B38: 2010 | C38: 32,855.16 | D38: 91,511.90 | E38: 0.89 | F38: 0.90 | G38: 0.55 | H38: 0.95 | I38: 0.85
B39: 2009 | C39: 31,695.72 | D39: 86,036.76 | E39: 0.89 | F39: 0.92 | G39: 0.55 | H39: 0.97 | I39: 0.85
B40: 2008 | C40: 29,239.45 | D40: 78,678.78 | E40: 0.90 | F40: 0.93 | G40: 0.54 | H40: 0.97 | I40: 0.85
B41: 2007 | C41: 27,171.37 | D41: 76,006.04 | E41: 0.89 | F41: 0.90 | G41: 0.54 | H41: 0.97 | I41: 0.85
B42: 2006 | C42: 24,472.19 | D42: 70,835.16 | E42: 0.90 | F42: 0.86 | G42: 0.54 | H42: 0.98 | I42: 0.84
B43: 2005 | C43: 22,664.20 | D43: 66,423.05 | E43: 0.92 | F43: 0.82 | G43: 0.55 | H43: 0.98 | I43: 0.84
B44: 2004 | C44: 21,469.94 | D44: 63,501.40 | E44: 0.94 | F44: 0.81 | G44: 0.55 | H44: 0.98 | I44: 0.83
B45: 2003 | C45: 19,513.04 | D45: 57,522.26 | E45: 0.95 | F45: 0.80 | G45: 0.55 | H45: 0.98 | I45: 0.83
B46: 2002 | C46: 18,707.36 | D46: 54,906.64 | E46: 0.94 | F46: 0.80 | G46: 0.55 | H46: 0.99 | I46: 0.82

Sheet Wielkopolskie (hidden)
A1: DEKOMPOZYCJA RÓŻNIC W POZIOMIE WDB PER CAPITA
A2: WIELKOPOLSKIE
B3: Różnice względem średniej | C3: WDB per capita | D3: WDB na 1 pracującego | E3: Współczynnik dojazdów netto | F3: Udział pracujących wśród aktwnych zawodowo | G3: Współczynnik aktywności zawodowej | H3: Wskaźnik różnicy w metodologii BAEL/demo | I3: Wskaźnik struktury wiekowej
C4: WDB_i/N_i | D4: WDB_i/Pp_i | E4: Pp_i/Pz_i | F4: Pz_i/Az_i | G4: Az_i/NB15+_i | H4: NB15+_i/N15+_i*(N15+/NB15+) | I4: Ni15+_i/N_i
B5: 2013
B6: 2012 | C6: =(C21-C36)/C36 -> 6.2% | D6: =(D21-D36)/D36 -> -3.2% | E6: 12.0% | F6: 1.7% | G6: 2.5% | H6: -4.9% | I6: -1.2%
B7: 2011 | C7: =(C22-C37)/C37 -> 5.1% | D7: -3.6% | E7: 11.6% | F7: 1.1% | G7: 3.2% | H7: -5.2% | I7: -1.2%
B8: 2010 | C8: 5.1% | D8: -3.3% | E8: 11.8% | F8: 1.0% | G8: 4.5% | H8: -6.9% | I8: -1.1%
B9: 2009 | C9: 7.7% | D9: -0.4% | E9: 18.0% | F9: 0.8% | G9: 2.1% | H9: -10.0% | I9: -1.1%
B10: 2008 | C10: 5.6% | D10: -2.8% | E10: 17.9% | F10: 1.0% | G10: 1.5% | H10: -9.1% | I10: -1.1%
B11: 2007 | C11: 5.5% | D11: -3.2% | E11: 12.5% | F11: 1.5% | G11: 1.3% | H11: -4.8% | I11: -1.0%
B12: 2006 | C12: 6.3% | D12: -2.3% | E12: 8.9% | F12: 1.3% | G12: 2.4% | H12: -2.6% | I12: -1.0%
B13: 2005 | C13: 7.7% | D13: -1.3% | E13: 6.8% | F13: 0.8% | G13: 3.8% | H13: -1.3% | I13: -1.0%
B14: 2004 | C14: 7.1% | D14: -1.6% | E14: 5.6% | F14: 1.1% | G14: 4.5% | H14: -1.5% | I14: -1.0%
B15: 2003 | C15: 5.5% | D15: -1.9% | E15: -1.0% | F15: 3.2% | G15: 4.7% | H15: 1.7% | I15: -1.0%
B16: 2002 | C16: 4.1% | D16: -2.4% | E16: 2.3% | F16: 2.2% | G16: 2.6% | H16: 0.5% | I16: -1.0%
B18: Wskaźniki | C18: WDB per capita | D18: WDB na 1 pracującego | E18: Współczynnik dojazdów netto | F18: Udział pracujących wśród aktwnych zawodowo | G18: Współczynnik aktywności zawodowej | H18: Wskaźnik różnicy w metodologii BAEL/demo | I18: Wskaźnik struktury wiekowej
C19: WDB_i/N_i | D19: WDB_i/Pp_i | E19: Pp_i/Pz_i | F19: Pz_i/Az_i | G19: Az_i/NB15+_i | H19: NB15+_i/N15+_i | I19: Ni15+_i/N_i
B20: 2013
B21: 2012 | C21: 39,454.15 | D21: 99,696.55 | E21: 1.00 | F21: 0.91 | G21: 0.57 | H21: 0.90 | I21: 0.84
B22: 2011 | C22: 37,238.27 | D22: 94,377.63 | E22: 1.00 | F22: 0.91 | G22: 0.57 | H22: 0.90 | I22: 0.84
B23: 2010 | C23: 34,526.78 | D23: 88,469.70 | E23: 1.00 | F23: 0.91 | G23: 0.58 | H23: 0.88 | I23: 0.84
B24: 2009 | C24: 34,132.16 | D24: 85,706.94 | E24: 1.05 | F24: 0.93 | G24: 0.56 | H24: 0.87 | I24: 0.84
B25: 2008 | C25: 30,888.41 | D25: 76,463.82 | E25: 1.06 | F25: 0.94 | G25: 0.55 | H25: 0.88 | I25: 0.84
B26: 2007 | C26: 28,673.87 | D26: 73,580.61 | E26: 1.01 | F26: 0.92 | G26: 0.54 | H26: 0.93 | I26: 0.84
B27: 2006 | C27: 26,016.26 | D27: 69,173.42 | E27: 0.98 | F27: 0.87 | G27: 0.55 | H27: 0.95 | I27: 0.83
B28: 2005 | C28: 24,417.50 | D28: 65,577.26 | E28: 0.98 | F28: 0.83 | G28: 0.57 | H28: 0.96 | I28: 0.83
B29: 2004 | C29: 22,991.23 | D29: 62,504.89 | E29: 0.99 | F29: 0.82 | G29: 0.57 | H29: 0.96 | I29: 0.82
B30: 2003 | C30: 20,587.32 | D30: 56,405.29 | E30: 0.94 | F30: 0.83 | G30: 0.57 | H30: 1.00 | I30: 0.82
B31: 2002 | C31: 19,476.77 | D31: 53,603.10 | E31: 0.97 | F31: 0.82 | G31: 0.57 | H31: 0.99 | I31: 0.81
B33: Wskaźniki dla Polski | C33: WDB per capita | D33: WDB na 1 pracującego | E33: Współczynnik dojazdów netto | F33: Udział pracujących wśród aktwnych zawodowo | G33: Współczynnik aktywności zawodowej | H33: Wskaźnik różnicy w metodologii BAEL/demo | I33: Wskaźnik struktury wiekowej
C34: WDB/N | D34: WDB/Pp | E34: Pp/Pz | F34: Pz/Az | G34: Az/NB15+ | H34: NB15+/N15+ | I34: Ni15+/N
B35: 2013
B36: 2012 | C36: 37,159.37 | D36: 103,021.84 | E36: 0.89 | F36: 0.90 | G36: 0.56 | H36: 0.95 | I36: 0.85
B37: 2011 | C37: 35,435.31 | D37: 97,927.91 | E37: 0.90 | F37: 0.90 | G37: 0.56 | H37: 0.95 | I37: 0.85
B38: 2010 | C38: 32,855.16 | D38: 91,511.90 | E38: 0.89 | F38: 0.90 | G38: 0.55 | H38: 0.95 | I38: 0.85
B39: 2009 | C39: 31,695.72 | D39: 86,036.76 | E39: 0.89 | F39: 0.92 | G39: 0.55 | H39: 0.97 | I39: 0.85
B40: 2008 | C40: 29,239.45 | D40: 78,678.78 | E40: 0.90 | F40: 0.93 | G40: 0.54 | H40: 0.97 | I40: 0.85
B41: 2007 | C41: 27,171.37 | D41: 76,006.04 | E41: 0.89 | F41: 0.90 | G41: 0.54 | H41: 0.97 | I41: 0.85
B42: 2006 | C42: 24,472.19 | D42: 70,835.16 | E42: 0.90 | F42: 0.86 | G42: 0.54 | H42: 0.98 | I42: 0.84
B43: 2005 | C43: 22,664.20 | D43: 66,423.05 | E43: 0.92 | F43: 0.82 | G43: 0.55 | H43: 0.98 | I43: 0.84
B44: 2004 | C44: 21,469.94 | D44: 63,501.40 | E44: 0.94 | F44: 0.81 | G44: 0.55 | H44: 0.98 | I44: 0.83
B45: 2003 | C45: 19,513.04 | D45: 57,522.26 | E45: 0.95 | F45: 0.80 | G45: 0.55 | H45: 0.98 | I45: 0.83
B46: 2002 | C46: 18,707.36 | D46: 54,906.64 | E46: 0.94 | F46: 0.80 | G46: 0.55 | H46: 0.99 | I46: 0.82

Sheet Zachodniopomorskie (hidden)
A1: DEKOMPOZYCJA RÓŻNIC W POZIOMIE WDB PER CAPITA
A2: ZACHODNIOPOMORSKIE
B3: Różnice względem średniej | C3: WDB per capita | D3: WDB na 1 pracującego | E3: Współczynnik dojazdów netto | F3: Udział pracujących wśród aktwnych zawodowo | G3: Współczynnik aktywności zawodowej | H3: Wskaźnik różnicy w metodologii BAEL/demo | I3: Wskaźnik struktury wiekowej
C4: WDB_i/N_i | D4: WDB_i/Pp_i | E4: Pp_i/Pz_i | F4: Pz_i/Az_i | G4: Az_i/NB15+_i | H4: NB15+_i/N15+_i*(N15+/NB15+) | I4: Ni15+_i/N_i
B5: 2013
B6: 2012 | C6: =(C21-C36)/C36 -> -15.7% | D6: =(D21-D36)/D36 -> 0.6% | E6: 3.8% | F6: -0.9% | G6: -6.6% | H6: -13.2% | I6: 0.5%
B7: 2011 | C7: =(C22-C37)/C37 -> -15.9% | D7: -0.3% | E7: 7.3% | F7: -2.2% | G7: -7.7% | H7: -13.3% | I7: 0.5%
B8: 2010 | C8: -14.2% | D8: 1.4% | E8: 3.9% | F8: -3.1% | G8: -5.5% | H8: -11.4% | I8: 0.4%
B9: 2009 | C9: -12.5% | D9: 1.1% | E9: 1.9% | F9: -2.2% | G9: -5.1% | H9: -8.6% | I9: 0.2%
B10: 2008 | C10: -10.3% | D10: 2.0% | E10: 9.0% | F10: -2.5% | G10: -7.0% | H10: -11.1% | I10: 0.1%
B11: 2007 | C11: -11.2% | D11: 1.5% | E11: 9.4% | F11: -2.2% | G11: -8.2% | H11: -11.0% | I11: 0.1%
B12: 2006 | C12: -9.9% | D12: 2.8% | E12: 4.7% | F12: -4.0% | G12: -5.8% | H12: -7.6% | I12: 0.1%
B13: 2005 | C13: -9.3% | D13: 3.8% | E13: -0.7% | F13: -5.9% | G13: -1.5% | H13: -5.1% | I13: 0.1%
B14: 2004 | C14: -9.7% | D14: 3.8% | E14: -2.8% | F14: -5.9% | G14: -0.6% | H14: -4.3% | I14: 0.1%
B15: 2003 | C15: -7.6% | D15: 5.8% | E15: -3.4% | F15: -7.2% | G15: -3.3% | H15: 0.7% | I15: 0.1%
B16: 2002 | C16: -4.4% | D16: 7.2% | E16: -1.7% | F16: -7.8% | G16: -3.5% | H16: 1.8% | I16: 0.1%
B18: Wskaźniki | C18: WDB per capita | D18: WDB na 1 pracującego | E18: Współczynnik dojazdów netto | F18: Udział pracujących wśród aktwnych zawodowo | G18: Współczynnik aktywności zawodowej | H18: Wskaźnik różnicy w metodologii BAEL/demo | I18: Wskaźnik struktury wiekowej
C19: WDB_i/N_i | D19: WDB_i/Pp_i | E19: Pp_i/Pz_i | F19: Pz_i/Az_i | G19: Az_i/NB15+_i | H19: NB15+_i/N15+_i | I19: Ni15+_i/N_i
B20: 2013
B21: 2012 | C21: 31,323.25 | D21: 103,665.68 | E21: 0.93 | F21: 0.89 | G21: 0.52 | H21: 0.82 | I21: 0.85
B22: 2011 | C22: 29,814.15 | D22: 97,613.76 | E22: 0.96 | F22: 0.88 | G22: 0.51 | H22: 0.82 | I22: 0.85
B23: 2010 | C23: 28,194.49 | D23: 92,802.71 | E23: 0.93 | F23: 0.88 | G23: 0.52 | H23: 0.84 | I23: 0.85
B24: 2009 | C24: 27,745.13 | D24: 86,980.87 | E24: 0.90 | F24: 0.90 | G24: 0.52 | H24: 0.89 | I24: 0.85
B25: 2008 | C25: 26,215.08 | D25: 80,224.75 | E25: 0.98 | F25: 0.91 | G25: 0.50 | H25: 0.86 | I25: 0.85
B26: 2007 | C26: 24,117.89 | D26: 77,124.47 | E26: 0.98 | F26: 0.88 | G26: 0.49 | H26: 0.87 | I26: 0.85
B27: 2006 | C27: 22,037.55 | D27: 72,851.01 | E27: 0.94 | F27: 0.83 | G27: 0.51 | H27: 0.90 | I27: 0.84
B28: 2005 | C28: 20,565.14 | D28: 68,938.33 | E28: 0.92 | F28: 0.77 | G28: 0.54 | H28: 0.93 | I28: 0.84
B29: 2004 | C29: 19,380.89 | D29: 65,938.24 | E29: 0.91 | F29: 0.76 | G29: 0.54 | H29: 0.94 | I29: 0.83
B30: 2003 | C30: 18,036.96 | D30: 60,856.94 | E30: 0.92 | F30: 0.75 | G30: 0.53 | H30: 0.99 | I30: 0.83
B31: 2002 | C31: 17,878.12 | D31: 58,860.58 | E31: 0.93 | F31: 0.74 | G31: 0.53 | H31: 1.01 | I31: 0.82
B33: Wskaźniki dla Polski | C33: WDB per capita | D33: WDB na 1 pracującego | E33: Współczynnik dojazdów netto | F33: Udział pracujących wśród aktwnych zawodowo | G33: Współczynnik aktywności zawodowej | H33: Wskaźnik różnicy w metodologii BAEL/demo | I33: Wskaźnik struktury wiekowej
C34: WDB/N | D34: WDB/Pp | E34: Pp/Pz | F34: Pz/Az | G34: Az/NB15+ | H34: NB15+/N15+ | I34: Ni15+/N
B35: 2013
B36: 2012 | C36: 37,159.37 | D36: 103,021.84 | E36: 0.89 | F36: 0.90 | G36: 0.56 | H36: 0.95 | I36: 0.85
B37: 2011 | C37: 35,435.31 | D37: 97,927.91 | E37: 0.90 | F37: 0.90 | G37: 0.56 | H37: 0.95 | I37: 0.85
B38: 2010 | C38: 32,855.16 | D38: 91,511.90 | E38: 0.89 | F38: 0.90 | G38: 0.55 | H38: 0.95 | I38: 0.85
B39: 2009 | C39: 31,695.72 | D39: 86,036.76 | E39: 0.89 | F39: 0.92 | G39: 0.55 | H39: 0.97 | I39: 0.85
B40: 2008 | C40: 29,239.45 | D40: 78,678.78 | E40: 0.90 | F40: 0.93 | G40: 0.54 | H40: 0.97 | I40: 0.85
B41: 2007 | C41: 27,171.37 | D41: 76,006.04 | E41: 0.89 | F41: 0.90 | G41: 0.54 | H41: 0.97 | I41: 0.85
B42: 2006 | C42: 24,472.19 | D42: 70,835.16 | E42: 0.90 | F42: 0.86 | G42: 0.54 | H42: 0.98 | I42: 0.84
B43: 2005 | C43: 22,664.20 | D43: 66,423.05 | E43: 0.92 | F43: 0.82 | G43: 0.55 | H43: 0.98 | I43: 0.84
B44: 2004 | C44: 21,469.94 | D44: 63,501.40 | E44: 0.94 | F44: 0.81 | G44: 0.55 | H44: 0.98 | I44: 0.83
B45: 2003 | C45: 19,513.04 | D45: 57,522.26 | E45: 0.95 | F45: 0.80 | G45: 0.55 | H45: 0.98 | I45: 0.83
B46: 2002 | C46: 18,707.36 | D46: 54,906.64 | E46: 0.94 | F46: 0.80 | G46: 0.55 | H46: 0.99 | I46: 0.82

Sheet Dolnośląskie (hidden)
A1: DEKOMPOZYCJA RÓŻNIC W POZIOMIE WDB PER CAPITA
A2: DOLNOŚLĄSKIE
B3: Różnice względem średniej | C3: WDB per capita | D3: WDB na 1 pracującego | E3: Współczynnik dojazdów netto | F3: Udział pracujących wśród aktwnych zawodowo | G3: Współczynnik aktywności zawodowej | H3: Wskaźnik różnicy w metodologii BAEL/demo | I3: Wskaźnik struktury wiekowej
C4: WDB_i/N_i | D4: WDB_i/Pp_i | E4: Pp_i/Pz_i | F4: Pz_i/Az_i | G4: Az_i/NB15+_i | H4: NB15+_i/N15+_i*(N15+/NB15+) | I4: Ni15+_i/N_i
B5: 2013
B6: 2012 | C6: =(C21-C36)/C36 -> 13.2% | D6: =(D21-D36)/D36 -> 16.3% | E6: 5.6% | F6: -1.2% | G6: -3.7% | H6: -4.3% | I6: 1.3%
B7: 2011 | C7: =(C22-C37)/C37 -> 14.0% | D7: 17.4% | E7: 4.4% | F7: -1.1% | G7: -3.9% | H7: -3.4% | I7: 1.3%
B8: 2010 | C8: 12.6% | D8: 16.2% | E8: 0.2% | F8: -1.9% | G8: -2.0% | H8: -0.7% | I8: 1.3%
B9: 2009 | C9: 9.3% | D9: 12.8% | E9: 1.3% | F9: -2.1% | G9: -1.8% | H9: -1.8% | I9: 1.3%
B10: 2008 | C10: 8.2% | D10: 11.8% | E10: 0.5% | F10: -2.3% | G10: -2.4% | H10: -0.4% | I10: 1.4%
B11: 2007 | C11: 9.0% | D11: 15.0% | E11: -4.4% | F11: -3.4% | G11: -0.8% | H11: 1.9% | I11: 1.5%
B12: 2006 | C12: 7.5% | D12: 14.9% | E12: -6.2% | F12: -3.8% | G12: 0.2% | H12: 1.8% | I12: 1.6%
B13: 2005 | C13: 3.5% | D13: 11.0% | E13: -0.7% | F13: -6.3% | G13: -0.8% | H13: -0.7% | I13: 1.7%
B14: 2004 | C14: 1.4% | D14: 8.6% | E14: 2.9% | F14: -7.5% | G14: -2.2% | H14: -1.6% | I14: 1.7%
B15: 2003 | C15: 2.2% | D15: 9.6% | E15: 7.7% | F15: -7.9% | G15: -3.2% | H15: -4.5% | I15: 1.8%
B16: 2002 | C16: 2.7% | D16: 10.1% | E16: 6.4% | F16: -7.6% | G16: -1.7% | H16: -5.2% | I16: 1.8%
B18: Wskaźniki | C18: WDB per capita | D18: WDB na 1 pracującego | E18: Współczynnik dojazdów netto | F18: Udział pracujących wśród aktwnych zawodowo | G18: Współczynnik aktywności zawodowej | H18: Wskaźnik różnicy w metodologii BAEL/demo | I18: Wskaźnik struktury wiekowej
C19: WDB_i/N_i | D19: WDB_i/Pp_i | E19: Pp_i/Pz_i | F19: Pz_i/Az_i | G19: Az_i/NB15+_i | H19: NB15+_i/N15+_i | I19: Ni15+_i/N_i
B20: 2013
B21: 2012 | C21: 42,049.68 | D21: 119,773.63 | E21: 0.94 | F21: 0.89 | G21: 0.54 | H21: 0.91 | I21: 0.86
B22: 2011 | C22: 40,398.04 | D22: 114,943.99 | E22: 0.94 | F22: 0.89 | G22: 0.53 | H22: 0.92 | I22: 0.86
B23: 2010 | C23: 36,994.87 | D23: 106,330.13 | E23: 0.90 | F23: 0.89 | G23: 0.54 | H23: 0.94 | I23: 0.86
B24: 2009 | C24: 34,652.04 | D24: 97,056.83 | E24: 0.90 | F24: 0.90 | G24: 0.54 | H24: 0.95 | I24: 0.86
B25: 2008 | C25: 31,633.69 | D25: 88,001.30 | E25: 0.90 | F25: 0.91 | G25: 0.53 | H25: 0.97 | I25: 0.86
B26: 2007 | C26: 29,610.79 | D26: 87,439.28 | E26: 0.86 | F26: 0.87 | G26: 0.53 | H26: 0.99 | I26: 0.86
B27: 2006 | C27: 26,306.96 | D27: 81,414.94 | E27: 0.85 | F27: 0.83 | G27: 0.54 | H27: 0.99 | I27: 0.86
B28: 2005 | C28: 23,451.72 | D28: 73,698.27 | E28: 0.92 | F28: 0.77 | G28: 0.54 | H28: 0.97 | I28: 0.85
B29: 2004 | C29: 21,761.43 | D29: 68,985.68 | E29: 0.96 | F29: 0.75 | G29: 0.54 | H29: 0.96 | I29: 0.85
B30: 2003 | C30: 19,948.50 | D30: 63,030.20 | E30: 1.02 | F30: 0.74 | G30: 0.53 | H30: 0.93 | I30: 0.84
B31: 2002 | C31: 19,218.55 | D31: 60,426.68 | E31: 1.01 | F31: 0.74 | G31: 0.54 | H31: 0.94 | I31: 0.84
B33: Wskaźniki dla Polski | C33: WDB per capita | D33: WDB na 1 pracującego | E33: Współczynnik dojazdów netto | F33: Udział pracujących wśród aktwnych zawodowo | G33: Współczynnik aktywności zawodowej | H33: Wskaźnik różnicy w metodologii BAEL/demo | I33: Wskaźnik struktury wiekowej
C34: WDB/N | D34: WDB/Pp | E34: Pp/Pz | F34: Pz/Az | G34: Az/NB15+ | H34: NB15+/N15+ | I34: Ni15+/N
B35: 2013
B36: 2012 | C36: 37,159.37 | D36: 103,021.84 | E36: 0.89 | F36: 0.90 | G36: 0.56 | H36: 0.95 | I36: 0.85
B37: 2011 | C37: 35,435.31 | D37: 97,927.91 | E37: 0.90 | F37: 0.90 | G37: 0.56 | H37: 0.95 | I37: 0.85
B38: 2010 | C38: 32,855.16 | D38: 91,511.90 | E38: 0.89 | F38: 0.90 | G38: 0.55 | H38: 0.95 | I38: 0.85
B39: 2009 | C39: 31,695.72 | D39: 86,036.76 | E39: 0.89 | F39: 0.92 | G39: 0.55 | H39: 0.97 | I39: 0.85
B40: 2008 | C40: 29,239.45 | D40: 78,678.78 | E40: 0.90 | F40: 0.93 | G40: 0.54 | H40: 0.97 | I40: 0.85
B41: 2007 | C41: 27,171.37 | D41: 76,006.04 | E41: 0.89 | F41: 0.90 | G41: 0.54 | H41: 0.97 | I41: 0.85
B42: 2006 | C42: 24,472.19 | D42: 70,835.16 | E42: 0.90 | F42: 0.86 | G42: 0.54 | H42: 0.98 | I42: 0.84
B43: 2005 | C43: 22,664.20 | D43: 66,423.05 | E43: 0.92 | F43: 0.82 | G43: 0.55 | H43: 0.98 | I43: 0.84
B44: 2004 | C44: 21,469.94 | D44: 63,501.40 | E44: 0.94 | F44: 0.81 | G44: 0.55 | H44: 0.98 | I44: 0.83
B45: 2003 | C45: 19,513.04 | D45: 57,522.26 | E45: 0.95 | F45: 0.80 | G45: 0.55 | H45: 0.98 | I45: 0.83
B46: 2002 | C46: 18,707.36 | D46: 54,906.64 | E46: 0.94 | F46: 0.80 | G46: 0.55 | H46: 0.99 | I46: 0.82

Sheet Opolskie (hidden)
A1: DEKOMPOZYCJA RÓŻNIC W POZIOMIE WDB PER CAPITA
A2: OPOLSKIE
B3: Różnice względem średniej | C3: WDB per capita | D3: WDB na 1 pracującego | E3: Współczynnik dojazdów netto | F3: Udział pracujących wśród aktwnych zawodowo | G3: Współczynnik aktywności zawodowej | H3: Wskaźnik różnicy w metodologii BAEL/demo | I3: Wskaźnik struktury wiekowej
C4: WDB_i/N_i | D4: WDB_i/Pp_i | E4: Pp_i/Pz_i | F4: Pz_i/Az_i | G4: Az_i/NB15+_i | H4: NB15+_i/N15+_i*(N15+/NB15+) | I4: Ni15+_i/N_i
B5: 2013
B6: 2012 | C6: =(C21-C36)/C36 -> -19.0% | D6: =(D21-D36)/D36 -> -4.6% | E6: -3.9% | F6: 0.6% | G6: -2.7% | H6: -11.5% | I6: 2.0%
B7: 2011 | C7: =(C22-C37)/C37 -> -18.0% | D7: -4.1% | E7: -2.6% | F7: 0.1% | G7: -3.7% | H7: -10.7% | I7: 1.9%
B8: 2010 | C8: -17.7% | D8: -3.6% | E8: -3.9% | F8: 0.4% | G8: -3.8% | H8: -9.6% | I8: 1.8%
B9: 2009 | C9: -17.6% | D9: -3.4% | E9: -5.0% | F9: -2.0% | G9: -2.2% | H9: -7.9% | I9: 1.9%
B10: 2008 | C10: -13.7% | D10: 0.2% | E10: -4.2% | F10: 0.6% | G10: -5.6% | H10: -6.9% | I10: 1.7%
B11: 2007 | C11: -15.7% | D11: -1.2% | E11: -3.0% | F11: 0.4% | G11: -4.8% | H11: -9.4% | I11: 1.6%
B12: 2006 | C12: -18.0% | D12: -3.9% | E12: -4.2% | F12: 0.5% | G12: -2.2% | H12: -10.8% | I12: 1.5%
B13: 2005 | C13: -16.4% | D13: -1.5% | E13: -6.3% | F13: 0.6% | G13: -1.7% | H13: -9.6% | I13: 1.3%
B14: 2004 | C14: -14.2% | D14: 1.4% | E14: -0.4% | F14: 1.4% | G14: -4.2% | H14: -13.6% | I14: 1.2%
B15: 2003 | C15: -20.2% | D15: -5.7% | E15: -0.5% | F15: 1.9% | G15: -7.7% | H15: -10.5% | I15: 1.0%
B16: 2002 | C16: -18.6% | D16: -4.4% | E16: -4.7% | F16: 0.3% | G16: -3.5% | H16: -8.4% | I16: 0.9%
B18: Wskaźniki | C18: WDB per capita | D18: WDB na 1 pracującego | E18: Współczynnik dojazdów netto | F18: Udział pracujących wśród aktwnych zawodowo | G18: Współczynnik aktywności zawodowej | H18: Wskaźnik różnicy w metodologii BAEL/demo | I18: Wskaźnik struktury wiekowej
C19: WDB_i/N_i | D19: WDB_i/Pp_i | E19: Pp_i/Pz_i | F19: Pz_i/Az_i | G19: Az_i/NB15+_i | H19: NB15+_i/N15+_i | I19: Ni15+_i/N_i
B20: 2013
B21: 2012 | C21: 30,090.98 | D21: 98,318.22 | E21: 0.86 | F21: 0.90 | G21: 0.54 | H21: 0.84 | I21: 0.87
B22: 2011 | C22: 29,041.87 | D22: 93,931.24 | E22: 0.87 | F22: 0.90 | G22: 0.54 | H22: 0.85 | I22: 0.87
B23: 2010 | C23: 27,044.72 | D23: 88,226.95 | E23: 0.86 | F23: 0.91 | G23: 0.53 | H23: 0.86 | I23: 0.86
B24: 2009 | C24: 26,125.57 | D24: 83,083.70 | E24: 0.84 | F24: 0.90 | G24: 0.54 | H24: 0.89 | I24: 0.86
B25: 2008 | C25: 25,242.00 | D25: 78,853.65 | E25: 0.86 | F25: 0.93 | G25: 0.51 | H25: 0.90 | I25: 0.86
B26: 2007 | C26: 22,911.27 | D26: 75,086.07 | E26: 0.87 | F26: 0.91 | G26: 0.51 | H26: 0.88 | I26: 0.86
B27: 2006 | C27: 20,056.80 | D27: 68,097.20 | E27: 0.86 | F27: 0.87 | G27: 0.53 | H27: 0.87 | I27: 0.85
B28: 2005 | C28: 18,938.20 | D28: 65,415.12 | E28: 0.86 | F28: 0.83 | G28: 0.54 | H28: 0.88 | I28: 0.85
B29: 2004 | C29: 18,413.15 | D29: 64,363.86 | E29: 0.93 | F29: 0.82 | G29: 0.52 | H29: 0.85 | I29: 0.84
B30: 2003 | C30: 15,565.51 | D30: 54,245.79 | E30: 0.95 | F30: 0.82 | G30: 0.51 | H30: 0.88 | I30: 0.84
B31: 2002 | C31: 15,234.56 | D31: 52,507.60 | E31: 0.90 | F31: 0.80 | G31: 0.53 | H31: 0.91 | I31: 0.83
B33: Wskaźniki dla Polski | C33: WDB per capita | D33: WDB na 1 pracującego | E33: Współczynnik dojazdów netto | F33: Udział pracujących wśród aktwnych zawodowo | G33: Współczynnik aktywności zawodowej | H33: Wskaźnik różnicy w metodologii BAEL/demo | I33: Wskaźnik struktury wiekowej
C34: WDB/N | D34: WDB/Pp | E34: Pp/Pz | F34: Pz/Az | G34: Az/NB15+ | H34: NB15+/N15+ | I34: Ni15+/N
B35: 2013
B36: 2012 | C36: 37,159.37 | D36: 103,021.84 | E36: 0.89 | F36: 0.90 | G36: 0.56 | H36: 0.95 | I36: 0.85
B37: 2011 | C37: 35,435.31 | D37: 97,927.91 | E37: 0.90 | F37: 0.90 | G37: 0.56 | H37: 0.95 | I37: 0.85
B38: 2010 | C38: 32,855.16 | D38: 91,511.90 | E38: 0.89 | F38: 0.90 | G38: 0.55 | H38: 0.95 | I38: 0.85
B39: 2009 | C39: 31,695.72 | D39: 86,036.76 | E39: 0.89 | F39: 0.92 | G39: 0.55 | H39: 0.97 | I39: 0.85
B40: 2008 | C40: 29,239.45 | D40: 78,678.78 | E40: 0.90 | F40: 0.93 | G40: 0.54 | H40: 0.97 | I40: 0.85
B41: 2007 | C41: 27,171.37 | D41: 76,006.04 | E41: 0.89 | F41: 0.90 | G41: 0.54 | H41: 0.97 | I41: 0.85
B42: 2006 | C42: 24,472.19 | D42: 70,835.16 | E42: 0.90 | F42: 0.86 | G42: 0.54 | H42: 0.98 | I42: 0.84
B43: 2005 | C43: 22,664.20 | D43: 66,423.05 | E43: 0.92 | F43: 0.82 | G43: 0.55 | H43: 0.98 | I43: 0.84
B44: 2004 | C44: 21,469.94 | D44: 63,501.40 | E44: 0.94 | F44: 0.81 | G44: 0.55 | H44: 0.98 | I44: 0.83
B45: 2003 | C45: 19,513.04 | D45: 57,522.26 | E45: 0.95 | F45: 0.80 | G45: 0.55 | H45: 0.98 | I45: 0.83
B46: 2002 | C46: 18,707.36 | D46: 54,906.64 | E46: 0.94 | F46: 0.80 | G46: 0.55 | H46: 0.99 | I46: 0.82

Sheet Kujawsko-Pomorskie (hidden)
A1: DEKOMPOZYCJA RÓŻNIC W POZIOMIE WDB PER CAPITA
A2: KUJAWSKO-POMORSKIE
B3: Różnice względem średniej | C3: WDB per capita | D3: WDB na 1 pracującego | E3: Współczynnik dojazdów netto | F3: Udział pracujących wśród aktwnych zawodowo | G3: Współczynnik aktywności zawodowej | H3: Wskaźnik różnicy w metodologii BAEL/demo | I3: Wskaźnik struktury wiekowej
C4: WDB_i/N_i | D4: WDB_i/Pp_i | E4: Pp_i/Pz_i | F4: Pz_i/Az_i | G4: Az_i/NB15+_i | H4: NB15+_i/N15+_i*(N15+/NB15+) | I4: Ni15+_i/N_i
B5: 2013
B6: 2012 | C6: =(C21-C36)/C36 -> -18.6% | D6: =(D21-D36)/D36 -> -10.7% | E6: -2.3% | F6: -2.0% | G6: 0.8% | H6: -5.2% | I6: -0.3%
B7: 2011 | C7: =(C22-C37)/C37 -> -18.2% | D7: -10.8% | E7: 1.9% | F7: -1.5% | G7: -2.4% | H7: -6.1% | I7: -0.4%
B8: 2010 | C8: -16.9% | D8: -9.6% | E8: -0.4% | F8: -1.3% | G8: -1.7% | H8: -4.4% | I8: -0.5%
B9: 2009 | C9: -16.0% | D9: -10.0% | E9: -3.3% | F9: -2.3% | G9: -0.2% | H9: -0.4% | I9: -0.6%
B10: 2008 | C10: -14.1% | D10: -9.4% | E10: 11.0% | F10: -2.3% | G10: -3.2% | H10: -9.0% | I10: -0.7%
B11: 2007 | C11: -13.7% | D11: -8.5% | E11: 5.2% | F11: -1.8% | G11: -4.0% | H11: -4.2% | I11: -0.7%
B12: 2006 | C12: -13.4% | D12: -8.0% | E12: 2.4% | F12: -2.7% | G12: -2.2% | H12: -2.7% | I12: -0.7%
B13: 2005 | C13: -13.5% | D13: -7.9% | E13: -2.9% | F13: -2.7% | G13: 1.6% | H13: -1.3% | I13: -0.8%
B14: 2004 | C14: -11.9% | D14: -6.3% | E14: -8.2% | F14: -3.9% | G14: 2.9% | H14: 4.3% | I14: -0.8%
B15: 2003 | C15: -11.1% | D15: -6.1% | E15: -10.0% | F15: -2.8% | G15: 1.7% | H15: 7.2% | I15: -0.8%
B16: 2002 | C16: -10.2% | D16: -5.4% | E16: -10.8% | F16: -1.8% | G16: 0.0% | H16: 9.2% | I16: -0.8%
B18: Wskaźniki | C18: WDB per capita | D18: WDB na 1 pracującego | E18: Współczynnik dojazdów netto | F18: Udział pracujących wśród aktwnych zawodowo | G18: Współczynnik aktywności zawodowej | H18: Wskaźnik różnicy w metodologii BAEL/demo | I18: Wskaźnik struktury wiekowej
C19: WDB_i/N_i | D19: WDB_i/Pp_i | E19: Pp_i/Pz_i | F19: Pz_i/Az_i | G19: Az_i/NB15+_i | H19: NB15+_i/N15+_i | I19: Ni15+_i/N_i
B20: 2013
B21: 2012 | C21: 30,233.68 | D21: 91,954.46 | E21: 0.87 | F21: 0.88 | G21: 0.56 | H21: 0.90 | I21: 0.85
B22: 2011 | C22: 28,981.07 | D22: 87,381.51 | E22: 0.91 | F22: 0.89 | G22: 0.54 | H22: 0.89 | I22: 0.85
B23: 2010 | C23: 27,291.51 | D23: 82,690.27 | E23: 0.89 | F23: 0.89 | G23: 0.54 | H23: 0.91 | I23: 0.84
B24: 2009 | C24: 26,609.86 | D24: 77,431.95 | E24: 0.86 | F24: 0.90 | G24: 0.55 | H24: 0.97 | I24: 0.84
B25: 2008 | C25: 25,109.31 | D25: 71,266.25 | E25: 1.00 | F25: 0.91 | G25: 0.52 | H25: 0.88 | I25: 0.84
B26: 2007 | C26: 23,453.44 | D26: 69,521.76 | E26: 0.94 | F26: 0.89 | G26: 0.52 | H26: 0.93 | I26: 0.84
B27: 2006 | C27: 21,185.93 | D27: 65,183.23 | E27: 0.92 | F27: 0.84 | G27: 0.53 | H27: 0.95 | I27: 0.84
B28: 2005 | C28: 19,600.60 | D28: 61,165.47 | E28: 0.90 | F28: 0.80 | G28: 0.56 | H28: 0.96 | I28: 0.83
B29: 2004 | C29: 18,910.60 | D29: 59,532.02 | E29: 0.86 | F29: 0.78 | G29: 0.56 | H29: 1.02 | I29: 0.83
B30: 2003 | C30: 17,348.42 | D30: 54,036.67 | E30: 0.86 | F30: 0.78 | G30: 0.56 | H30: 1.05 | I30: 0.82
B31: 2002 | C31: 16,803.39 | D31: 51,956.59 | E31: 0.84 | F31: 0.79 | G31: 0.55 | H31: 1.08 | I31: 0.82
B33: Wskaźniki dla Polski | C33: WDB per capita | D33: WDB na 1 pracującego | E33: Współczynnik dojazdów netto | F33: Udział pracujących wśród aktwnych zawodowo | G33: Współczynnik aktywności zawodowej | H33: Wskaźnik różnicy w metodologii BAEL/demo | I33: Wskaźnik struktury wiekowej
C34: WDB/N | D34: WDB/Pp | E34: Pp/Pz | F34: Pz/Az | G34: Az/NB15+ | H34: NB15+/N15+ | I34: Ni15+/N
B35: 2013
B36: 2012 | C36: 37,159.37 | D36: 103,021.84 | E36: 0.89 | F36: 0.90 | G36: 0.56 | H36: 0.95 | I36: 0.85
B37: 2011 | C37: 35,435.31 | D37: 97,927.91 | E37: 0.90 | F37: 0.90 | G37: 0.56 | H37: 0.95 | I37: 0.85
B38: 2010 | C38: 32,855.16 | D38: 91,511.90 | E38: 0.89 | F38: 0.90 | G38: 0.55 | H38: 0.95 | I38: 0.85
B39: 2009 | C39: 31,695.72 | D39: 86,036.76 | E39: 0.89 | F39: 0.92 | G39: 0.55 | H39: 0.97 | I39: 0.85
B40: 2008 | C40: 29,239.45 | D40: 78,678.78 | E40: 0.90 | F40: 0.93 | G40: 0.54 | H40: 0.97 | I40: 0.85
B41: 2007 | C41: 27,171.37 | D41: 76,006.04 | E41: 0.89 | F41: 0.90 | G41: 0.54 | H41: 0.97 | I41: 0.85
B42: 2006 | C42: 24,472.19 | D42: 70,835.16 | E42: 0.90 | F42: 0.86 | G42: 0.54 | H42: 0.98 | I42: 0.84
B43: 2005 | C43: 22,664.20 | D43: 66,423.05 | E43: 0.92 | F43: 0.82 | G43: 0.55 | H43: 0.98 | I43: 0.84
B44: 2004 | C44: 21,469.94 | D44: 63,501.40 | E44: 0.94 | F44: 0.81 | G44: 0.55 | H44: 0.98 | I44: 0.83
B45: 2003 | C45: 19,513.04 | D45: 57,522.26 | E45: 0.95 | F45: 0.80 | G45: 0.55 | H45: 0.98 | I45: 0.83
B46: 2002 | C46: 18,707.36 | D46: 54,906.64 | E46: 0.94 | F46: 0.80 | G46: 0.55 | H46: 0.99 | I46: 0.82

Sheet Pomorskie (hidden)
A1: DEKOMPOZYCJA RÓŻNIC W POZIOMIE WDB PER CAPITA
A2: POMORSKIE
B3: Różnice względem średniej | C3: WDB per capita | D3: WDB na 1 pracującego | E3: Współczynnik dojazdów netto | F3: Udział pracujących wśród aktwnych zawodowo | G3: Współczynnik aktywności zawodowej | H3: Wskaźnik różnicy w metodologii BAEL/demo | I3: Wskaźnik struktury wiekowej
C4: WDB_i/N_i | D4: WDB_i/Pp_i | E4: Pp_i/Pz_i | F4: Pz_i/Az_i | G4: Az_i/NB15+_i | H4: NB15+_i/N15+_i*(N15+/NB15+) | I4: Ni15+_i/N_i
B5: 2013
B6: 2012 | C6: =(C21-C36)/C36 -> -2.3% | D6: =(D21-D36)/D36 -> 6.7% | E6: -1.2% | F6: 0.6% | G6: -0.6% | H6: -5.8% | I6: -1.5%
B7: 2011 | C7: =(C22-C37)/C37 -> -4.2% | D7: 3.7% | E7: 6.9% | F7: 1.2% | G7: -1.9% | H7: -11.6% | I7: -1.5%
B8: 2010 | C8: -4.1% | D8: 2.6% | E8: 6.1% | F8: 0.2% | G8: 0.5% | H8: -11.2% | I8: -1.5%
B9: 2009 | C9: -1.8% | D9: 5.7% | E9: 9.0% | F9: 2.2% | G9: -4.7% | H9: -11.1% | I9: -1.6%
B10: 2008 | C10: -4.5% | D10: 4.1% | E10: 6.0% | F10: 1.9% | G10: -2.8% | H10: -11.3% | I10: -1.5%
B11: 2007 | C11: -1.6% | D11: 7.1% | E11: 6.4% | F11: 0.1% | G11: -1.1% | H11: -11.5% | I11: -1.4%
B12: 2006 | C12: -1.4% | D12: 7.5% | E12: 9.9% | F12: 0.5% | G12: -2.3% | H12: -13.9% | I12: -1.3%
B13: 2005 | C13: -1.2% | D13: 7.9% | E13: 7.2% | F13: -1.2% | G13: -2.4% | H13: -10.3% | I13: -1.3%
B14: 2004 | C14: -1.8% | D14: 7.2% | E14: 6.7% | F14: -1.4% | G14: -2.8% | H14: -9.4% | I14: -1.2%
B15: 2003 | C15: -0.8% | D15: 7.9% | E15: 4.7% | F15: -1.1% | G15: -1.4% | H15: -8.9% | I15: -1.2%
B16: 2002 | C16: 0.3% | D16: 8.5% | E16: 2.4% | F16: -2.1% | G16: 0.4% | H16: -7.0% | I16: -1.2%
B18: Wskaźniki | C18: WDB per capita | D18: WDB na 1 pracującego | E18: Współczynnik dojazdów netto | F18: Udział pracujących wśród aktwnych zawodowo | G18: Współczynnik aktywności zawodowej | H18: Wskaźnik różnicy w metodologii BAEL/demo | I18: Wskaźnik struktury wiekowej
C19: WDB_i/N_i | D19: WDB_i/Pp_i | E19: Pp_i/Pz_i | F19: Pz_i/Az_i | G19: Az_i/NB15+_i | H19: NB15+_i/N15+_i | I19: Ni15+_i/N_i
B20: 2013
B21: 2012 | C21: 36,317.67 | D21: 109,930.80 | E21: 0.88 | F21: 0.90 | G21: 0.56 | H21: 0.89 | I21: 0.84
B22: 2011 | C22: 33,945.26 | D22: 101,555.79 | E22: 0.96 | F22: 0.92 | G22: 0.54 | H22: 0.84 | I22: 0.84
B23: 2010 | C23: 31,502.61 | D23: 93,904.03 | E23: 0.95 | F23: 0.91 | G23: 0.56 | H23: 0.84 | I23: 0.84
B24: 2009 | C24: 31,124.18 | D24: 90,982.26 | E24: 0.97 | F24: 0.94 | G24: 0.52 | H24: 0.86 | I24: 0.84
B25: 2008 | C25: 27,923.26 | D25: 81,921.37 | E25: 0.95 | F25: 0.95 | G25: 0.53 | H25: 0.86 | I25: 0.83
B26: 2007 | C26: 26,738.64 | D26: 81,376.20 | E26: 0.95 | F26: 0.91 | G26: 0.53 | H26: 0.86 | I26: 0.83
B27: 2006 | C27: 24,131.93 | D27: 76,175.25 | E27: 0.99 | F27: 0.87 | G27: 0.53 | H27: 0.84 | I27: 0.83
B28: 2005 | C28: 22,395.65 | D28: 71,697.00 | E28: 0.99 | F28: 0.81 | G28: 0.54 | H28: 0.88 | I28: 0.83
B29: 2004 | C29: 21,074.36 | D29: 68,095.23 | E29: 1.00 | F29: 0.80 | G29: 0.53 | H29: 0.89 | I29: 0.82
B30: 2003 | C30: 19,356.14 | D30: 62,092.42 | E30: 1.00 | F30: 0.79 | G30: 0.54 | H30: 0.89 | I30: 0.82
B31: 2002 | C31: 18,764.12 | D31: 59,572.15 | E31: 0.97 | F31: 0.78 | G31: 0.56 | H31: 0.92 | I31: 0.81
B33: Wskaźniki dla Polski | C33: WDB per capita | D33: WDB na 1 pracującego | E33: Współczynnik dojazdów netto | F33: Udział pracujących wśród aktwnych zawodowo | G33: Współczynnik aktywności zawodowej | H33: Wskaźnik różnicy w metodologii BAEL/demo | I33: Wskaźnik struktury wiekowej
C34: WDB/N | D34: WDB/Pp | E34: Pp/Pz | F34: Pz/Az | G34: Az/NB15+ | H34: NB15+/N15+ | I34: Ni15+/N
B35: 2013
B36: 2012 | C36: 37,159.37 | D36: 103,021.84 | E36: 0.89 | F36: 0.90 | G36: 0.56 | H36: 0.95 | I36: 0.85
B37: 2011 | C37: 35,435.31 | D37: 97,927.91 | E37: 0.90 | F37: 0.90 | G37: 0.56 | H37: 0.95 | I37: 0.85
B38: 2010 | C38: 32,855.16 | D38: 91,511.90 | E38: 0.89 | F38: 0.90 | G38: 0.55 | H38: 0.95 | I38: 0.85
B39: 2009 | C39: 31,695.72 | D39: 86,036.76 | E39: 0.89 | F39: 0.92 | G39: 0.55 | H39: 0.97 | I39: 0.85
B40: 2008 | C40: 29,239.45 | D40: 78,678.78 | E40: 0.90 | F40: 0.93 | G40: 0.54 | H40: 0.97 | I40: 0.85
B41: 2007 | C41: 27,171.37 | D41: 76,006.04 | E41: 0.89 | F41: 0.90 | G41: 0.54 | H41: 0.97 | I41: 0.85
B42: 2006 | C42: 24,472.19 | D42: 70,835.16 | E42: 0.90 | F42: 0.86 | G42: 0.54 | H42: 0.98 | I42: 0.84
B43: 2005 | C43: 22,664.20 | D43: 66,423.05 | E43: 0.92 | F43: 0.82 | G43: 0.55 | H43: 0.98 | I43: 0.84
B44: 2004 | C44: 21,469.94 | D44: 63,501.40 | E44: 0.94 | F44: 0.81 | G44: 0.55 | H44: 0.98 | I44: 0.83
B45: 2003 | C45: 19,513.04 | D45: 57,522.26 | E45: 0.95 | F45: 0.80 | G45: 0.55 | H45: 0.98 | I45: 0.83
B46: 2002 | C46: 18,707.36 | D46: 54,906.64 | E46: 0.94 | F46: 0.80 | G46: 0.55 | H46: 0.99 | I46: 0.82

Sheet Warmińsko-Mazurskie (hidden)
A1: DEKOMPOZYCJA RÓŻNIC W POZIOMIE WDB PER CAPITA
A2: WARMIŃSKO-MAZURSKIE
B3: Różnice względem średniej | C3: WDB per capita | D3: WDB na 1 pracującego | E3: Współczynnik dojazdów netto | F3: Udział pracujących wśród aktwnych zawodowo | G3: Współczynnik aktywności zawodowej | H3: Wskaźnik różnicy w metodologii BAEL/demo | I3: Wskaźnik struktury wiekowej
C4: WDB_i/N_i | D4: WDB_i/Pp_i | E4: Pp_i/Pz_i | F4: Pz_i/Az_i | G4: Az_i/NB15+_i | H4: NB15+_i/N15+_i*(N15+/NB15+) | I4: Ni15+_i/N_i
B5: 2013
B6: 2012 | C6: =(C21-C36)/C36 -> -28.2% | D6: =(D21-D36)/D36 -> -11.8% | E6: -5.4% | F6: -1.3% | G6: -7.8% | H6: -4.7% | I6: -0.8%
B7: 2011 | C7: =(C22-C37)/C37 -> -27.8% | D7: -12.0% | E7: -7.6% | F7: -0.1% | G7: -6.9% | H7: -3.6% | I7: -0.9%
B8: 2010 | C8: -27.3% | D8: -11.6% | E8: -12.5% | F8: -0.1% | G8: -4.2% | H8: -0.7% | I8: -1.0%
B9: 2009 | C9: -26.3% | D9: -9.7% | E9: -14.0% | F9: -0.3% | G9: -4.5% | H9: 1.0% | I9: -1.3%
B10: 2008 | C10: -26.3% | D10: -11.2% | E10: -12.4% | F10: -0.2% | G10: -5.4% | H10: 1.7% | I10: -1.4%
B11: 2007 | C11: -26.0% | D11: -10.9% | E11: -12.1% | F11: -1.0% | G11: -4.1% | H11: 1.0% | I11: -1.5%
B12: 2006 | C12: -25.3% | D12: -10.2% | E12: -10.7% | F12: -2.5% | G12: -4.7% | H12: 2.0% | I12: -1.6%
B13: 2005 | C13: -24.6% | D13: -9.0% | E13: -9.2% | F13: -3.5% | G13: -4.7% | H13: 0.9% | I13: -1.8%
B14: 2004 | C14: -24.3% | D14: -7.4% | E14: -9.6% | F14: -4.1% | G14: -2.2% | H14: -1.6% | I14: -1.9%
B15: 2003 | C15: -23.3% | D15: -5.7% | E15: -9.7% | F15: -5.4% | G15: -1.6% | H15: -1.2% | I15: -2.0%
B16: 2002 | C16: -24.7% | D16: -7.5% | E16: -4.9% | F16: -7.7% | G16: -3.2% | H16: -2.0% | I16: -2.2%
B18: Wskaźniki | C18: WDB per capita | D18: WDB na 1 pracującego | E18: Współczynnik dojazdów netto | F18: Udział pracujących wśród aktwnych zawodowo | G18: Współczynnik aktywności zawodowej | H18: Wskaźnik różnicy w metodologii BAEL/demo | I18: Wskaźnik struktury wiekowej
C19: WDB_i/N_i | D19: WDB_i/Pp_i | E19: Pp_i/Pz_i | F19: Pz_i/Az_i | G19: Az_i/NB15+_i | H19: NB15+_i/N15+_i | I19: Ni15+_i/N_i
B20: 2013
B21: 2012 | C21: 26,663.73 | D21: 90,841.15 | E21: 0.84 | F21: 0.89 | G21: 0.51 | H21: 0.90 | I21: 0.84
B22: 2011 | C22: 25,572.15 | D22: 86,134.74 | E22: 0.83 | F22: 0.90 | G22: 0.52 | H22: 0.91 | I22: 0.84
B23: 2010 | C23: 23,891.48 | D23: 80,911.93 | E23: 0.78 | F23: 0.90 | G23: 0.53 | H23: 0.94 | I23: 0.84
B24: 2009 | C24: 23,366.67 | D24: 77,713.26 | E24: 0.76 | F24: 0.92 | G24: 0.52 | H24: 0.98 | I24: 0.84
B25: 2008 | C25: 21,553.91 | D25: 69,882.51 | E25: 0.79 | F25: 0.93 | G25: 0.51 | H25: 0.99 | I25: 0.84
B26: 2007 | C26: 20,110.02 | D26: 67,734.90 | E26: 0.79 | F26: 0.90 | G26: 0.51 | H26: 0.98 | I26: 0.83
B27: 2006 | C27: 18,282.51 | D27: 63,586.92 | E27: 0.81 | F27: 0.84 | G27: 0.51 | H27: 1.00 | I27: 0.83
B28: 2005 | C28: 17,083.15 | D28: 60,449.85 | E28: 0.84 | F28: 0.79 | G28: 0.52 | H28: 0.99 | I28: 0.82
B29: 2004 | C29: 16,256.58 | D29: 58,817.57 | E29: 0.85 | F29: 0.78 | G29: 0.53 | H29: 0.96 | I29: 0.82
B30: 2003 | C30: 14,968.31 | D30: 54,232.98 | E30: 0.86 | F30: 0.76 | G30: 0.54 | H30: 0.97 | I30: 0.81
B31: 2002 | C31: 14,095.71 | D31: 50,809.47 | E31: 0.90 | F31: 0.74 | G31: 0.54 | H31: 0.97 | I31: 0.80
B33: Wskaźniki dla Polski | C33: WDB per capita | D33: WDB na 1 pracującego | E33: Współczynnik dojazdów netto | F33: Udział pracujących wśród aktwnych zawodowo | G33: Współczynnik aktywności zawodowej | H33: Wskaźnik różnicy w metodologii BAEL/demo | I33: Wskaźnik struktury wiekowej
C34: WDB/N | D34: WDB/Pp | E34: Pp/Pz | F34: Pz/Az | G34: Az/NB15+ | H34: NB15+/N15+ | I34: Ni15+/N
B35: 2013
B36: 2012 | C36: 37,159.37 | D36: 103,021.84 | E36: 0.89 | F36: 0.90 | G36: 0.56 | H36: 0.95 | I36: 0.85
B37: 2011 | C37: 35,435.31 | D37: 97,927.91 | E37: 0.90 | F37: 0.90 | G37: 0.56 | H37: 0.95 | I37: 0.85
B38: 2010 | C38: 32,855.16 | D38: 91,511.90 | E38: 0.89 | F38: 0.90 | G38: 0.55 | H38: 0.95 | I38: 0.85
B39: 2009 | C39: 31,695.72 | D39: 86,036.76 | E39: 0.89 | F39: 0.92 | G39: 0.55 | H39: 0.97 | I39: 0.85
B40: 2008 | C40: 29,239.45 | D40: 78,678.78 | E40: 0.90 | F40: 0.93 | G40: 0.54 | H40: 0.97 | I40: 0.85
B41: 2007 | C41: 27,171.37 | D41: 76,006.04 | E41: 0.89 | F41: 0.90 | G41: 0.54 | H41: 0.97 | I41: 0.85
B42: 2006 | C42: 24,472.19 | D42: 70,835.16 | E42: 0.90 | F42: 0.86 | G42: 0.54 | H42: 0.98 | I42: 0.84
B43: 2005 | C43: 22,664.20 | D43: 66,423.05 | E43: 0.92 | F43: 0.82 | G43: 0.55 | H43: 0.98 | I43: 0.84
B44: 2004 | C44: 21,469.94 | D44: 63,501.40 | E44: 0.94 | F44: 0.81 | G44: 0.55 | H44: 0.98 | I44: 0.83
B45: 2003 | C45: 19,513.04 | D45: 57,522.26 | E45: 0.95 | F45: 0.80 | G45: 0.55 | H45: 0.98 | I45: 0.83
B46: 2002 | C46: 18,707.36 | D46: 54,906.64 | E46: 0.94 | F46: 0.80 | G46: 0.55 | H46: 0.99 | I46: 0.82
